Workbook

Sheet Main
B10: 2021-12-01
B12: Sheet No. | C12: Template Name | D12: Summary
B13: 1 | C13: Future Intra | D13: For Intraday trading in F&O segment
B14: 2 | C14: Cash Intra | D14: For Intraday trading in cash market segment
B15: 3 | C15: Mid-cap Intra | D15: For Intraday trading in Mid-cap stocks
B16: 4 | C16: Bulk Deals | D16: Reveals Bulk Deals carried on NSE & BSE
B17: 5 | C17: Call Tracker
K27: `

Sheet Future Intra
M5: Back to Main Page
A6: FOR INTRA DAY TRADING | L6: =Main!B10 -> 2021-12-01
A9: Sr.no | B9: Sector | C9: Scrip | D9: Expiry Date | E9: CLOSE RATE | F9: Pivot Point | G9: Supports | J9: Resistances
E10: Point | F10: Point | G10: S1 | H10: S2 | I10: S3 | J10: R1 | K10: R2 | L10: R3 | M10: HIGH | N10: LOW | O10: OI | P10: % Change in OI
A11: 1 | B11: Index | C11: BANKNIFTY | D11: 2021-12-30 | E11: 35780.20 | F11: 36091.63 | G11: 35334.27 | H11: 34888.33 | I11: 34130.97 | J11: 36537.57 | K11: 37294.93 | L11: 37740.87 | M11: 36849 | N11: 35645.7 | O11: 2744050 | P11: 4.20%
A12: 2 | B12: Index | C12: NIFTY | D12: 2021-12-30 | E12: 17033.60 | F12: 17126.87 | G12: 16906.73 | H12: 16779.87 | I12: 16559.73 | J12: 17253.73 | K12: 17473.87 | L12: 17600.73 | M12: 17347 | N12: 17000 | O12: 11968000 | P12: 3.53%
A13: 3 | B13: Index | C13: FINNIFTY | D13: 2021-12-28 | E13: 17909.90 | F13: 17919.88 | G13: 17899.92 | H13: 17889.93 | I13: 17869.97 | J13: 17929.87 | K13: 17949.83 | L13: 17959.82 | M13: 17939.85 | N13: 17909.9 | O13: 320 | P13: -66.67%
A14: 4 | B14: Chemical | C14: AARTIIND | D14: 2021-12-30 | E14: 938.30 | F14: 943.00 | G14: 927.30 | H14: 916.30 | I14: 900.60 | J14: 954.00 | K14: 969.70 | L14: 980.70 | M14: 958.7 | N14: 932 | O14: 2234650 | P14: -1.24%
A15: 5 | B15: Pharma | C15: ABBOTINDIA | D15: 2021-12-30 | E15: 19156.25 | F15: 19201.92 | G15: 19003.83 | H15: 18851.42 | I15: 18653.33 | J15: 19354.33 | K15: 19552.42 | L15: 19704.83 | M15: 19400 | N15: 19049.5 | O15: 28575 | P15: 1.24%
A16: 6 | B16: Textile | C16: ABFRL | D16: 2021-12-30 | E16: 256.05 | F16: 257.88 | G16: 250.92 | H16: 245.78 | I16: 238.82 | J16: 263.02 | K16: 269.98 | L16: 275.12 | M16: 264.85 | N16: 252.75 | O16: 10995400 | P16: 0.33%
A17: 7 | B17: Cement | C17: ACC | D17: 2021-12-30 | E17: 2294.60 | F17: 2300.98 | G17: 2272.97 | H17: 2251.33 | I17: 2223.32 | J17: 2322.62 | K17: 2350.63 | L17: 2372.27 | M17: 2329 | N17: 2279.35 | O17: 2047500 | P17: -0.06%
A18: 8 | B18: Others | C18: ADANIENT | D18: 2021-12-30 | E18: 1665.00 | F18: 1681.63 | G18: 1639.37 | H18: 1613.73 | I18: 1571.47 | J18: 1707.27 | K18: 1749.53 | L18: 1775.17 | M18: 1723.9 | N18: 1656 | O18: 21162500 | P18: -1.22%
A19: 9 | B19: Others | C19: ADANIPORTS | D19: 2021-12-30 | E19: 686.50 | F19: 694.82 | G19: 674.83 | H19: 663.17 | I19: 643.18 | J19: 706.48 | K19: 726.47 | L19: 738.13 | M19: 714.8 | N19: 683.15 | O19: 90621250 | P19: 1.25%
A20: 10 | B20: Pharma | C20: ALKEM | D20: 2021-12-30 | E20: 3604.55 | F20: 3571.92 | G20: 3524.83 | H20: 3445.12 | I20: 3398.03 | J20: 3651.63 | K20: 3698.72 | L20: 3778.43 | M20: 3619 | N20: 3492.2 | O20: 540400 | P20: 14.44%
A21: 11 | B21: Automobile | C21: AMARAJABAT | D21: 2021-12-30 | E21: 619.25 | F21: 619.35 | G21: 613.80 | H21: 608.35 | I21: 602.80 | J21: 624.80 | K21: 630.35 | L21: 635.80 | M21: 624.9 | N21: 613.9 | O21: 10022000 | P21: -1.65%
A22: 12 | B22: Cement | C22: AMBUJACEM | D22: 2021-12-30 | E22: 375.25 | F22: 374.30 | G22: 369.20 | H22: 363.15 | I22: 358.05 | J22: 380.35 | K22: 385.45 | L22: 391.50 | M22: 379.4 | N22: 368.25 | O22: 13408500 | P22: -5.18%
A23: 13 | B23: Pharma | C23: APLLTD | D23: 2021-12-30 | E23: 809.50 | F23: 807.48 | G23: 798.97 | H23: 788.43 | I23: 779.92 | J23: 818.02 | K23: 826.53 | L23: 837.07 | M23: 816 | N23: 796.95 | O23: 1898300 | P23: -0.92%
A24: 14 | B24: Others | C24: APOLLOHOSP | D24: 2021-12-30 | E24: 5705.25 | F24: 5727.32 | G24: 5621.93 | H24: 5538.62 | I24: 5433.23 | J24: 5810.63 | K24: 5916.02 | L24: 5999.33 | M24: 5832.7 | N24: 5644 | O24: 1894500 | P24: 2.99%
A25: 15 | B25: Automobile | C25: APOLLOTYRE | D25: 2021-12-30 | E25: 205.35 | F25: 207.15 | G25: 202.60 | H25: 199.85 | I25: 195.30 | J25: 209.90 | K25: 214.45 | L25: 217.20 | M25: 211.7 | N25: 204.4 | O25: 12155000 | P25: 5.44%
A26: 16 | B26: Automobile | C26: ASHOKLEY | D26: 2021-12-30 | E26: 119.80 | F26: 121.18 | G26: 117.77 | H26: 115.73 | I26: 112.32 | J26: 123.22 | K26: 126.63 | L26: 128.67 | M26: 124.6 | N26: 119.15 | O26: 46395000 | P26: 1.64%
A27: 17 | B27: FMCG | C27: ASIANPAINT | D27: 2021-12-30 | E27: 3154.90 | F27: 3158.88 | G27: 3118.82 | H27: 3082.73 | I27: 3042.67 | J27: 3194.97 | K27: 3235.03 | L27: 3271.12 | M27: 3198.95 | N27: 3122.8 | O27: 4037850 | P27: 3.43%
A28: 18 | B28: Others | C28: ASTRAL | D28: 2021-12-30 | E28: 2197.65 | F28: 2174.73 | G28: 2142.97 | H28: 2088.28 | I28: 2056.52 | J28: 2229.42 | K28: 2261.18 | L28: 2315.87 | M28: 2206.5 | N28: 2120.05 | O28: 451550 | P28: -4.31%
A29: 19 | B29: Others | C29: ATUL | D29: 2021-12-30 | E29: 8699.60 | F29: 8658.30 | G29: 8566.35 | H29: 8433.10 | I29: 8341.15 | J29: 8791.55 | K29: 8883.50 | L29: 9016.75 | M29: 8750.25 | N29: 8525.05 | O29: 41550 | P29: 0.91%
A30: 20 | B30: Banking | C30: AUBANK | D30: 2021-12-30 | E30: 1096.35 | F30: 1108.42 | G30: 1075.93 | H30: 1055.52 | I30: 1023.03 | J30: 1128.83 | K30: 1161.32 | L30: 1181.73 | M30: 1140.9 | N30: 1088 | O30: 3782500 | P30: -0.09%
A31: 21 | B31: Pharma | C31: AUROPHARMA | D31: 2021-12-30 | E31: 661.70 | F31: 662.15 | G31: 650.55 | H31: 639.40 | I31: 627.80 | J31: 673.30 | K31: 684.90 | L31: 696.05 | M31: 673.75 | N31: 651 | O31: 15941950 | P31: 0.37%
A32: 22 | B32: Banking | C32: AXISBANK | D32: 2021-12-30 | E32: 656.45 | F32: 662.18 | G32: 645.37 | H32: 634.28 | I32: 617.47 | J32: 673.27 | K32: 690.08 | L32: 701.17 | M32: 679 | N32: 651.1 | O32: 62352000 | P32: 0.84%
A33: 23 | B33: Automobile | C33: BAJAJ-AUTO | D33: 2021-12-30 | E33: 3254.35 | F33: 3277.82 | G33: 3217.93 | H33: 3181.52 | I33: 3121.63 | J33: 3314.23 | K33: 3374.12 | L33: 3410.53 | M33: 3337.7 | N33: 3241.4 | O33: 3365500 | P33: 7.15%
A34: 24 | B34: Finance | C34: BAJAJFINSV | D34: 2021-12-30 | E34: 17287.20 | F34: 17283.22 | G34: 16988.13 | H34: 16689.07 | I34: 16393.98 | J34: 17582.28 | K34: 17877.37 | L34: 18176.43 | M34: 17578.3 | N34: 16984.15 | O34: 637600 | P34: 1.24%
A35: 25 | B35: Finance | C35: BAJFINANCE | D35: 2021-12-30 | E35: 7024.00 | F35: 7030.67 | G35: 6844.33 | H35: 6664.67 | I35: 6478.33 | J35: 7210.33 | K35: 7396.67 | L35: 7576.33 | M35: 7217 | N35: 6851 | O35: 4201250 | P35: -0.07%
A36: 26 | B36: Automobile | C36: BALKRISIND | D36: 2021-12-30 | E36: 2185.10 | F36: 2203.35 | G36: 2159.40 | H36: 2133.70 | I36: 2089.75 | J36: 2229.05 | K36: 2273.00 | L36: 2298.70 | M36: 2247.3 | N36: 2177.65 | O36: 1715000 | P36: 4.52%
A37: 27 | B37: Banking | C37: BANDHANBNK | D37: 2021-12-30 | E37: 273.20 | F37: 275.93 | G37: 267.47 | H37: 261.73 | I37: 253.27 | J37: 281.67 | K37: 290.13 | L37: 295.87 | M37: 284.4 | N37: 270.2 | O37: 23868000 | P37: -0.20%
A38: 28 | B38: Banking | C38: BANKBARODA | D38: 2021-12-30 | E38: 85.80 | F38: 86.75 | G38: 84.40 | H38: 83.00 | I38: 80.65 | J38: 88.15 | K38: 90.50 | L38: 91.90 | M38: 89.1 | N38: 85.35 | O38: 135193500 | P38: -0.07%
A39: 29 | B39: FMCG | C39: BATAINDIA | D39: 2021-12-30 | E39: 1888.45 | F39: 1905.45 | G39: 1861.00 | H39: 1833.55 | I39: 1789.10 | J39: 1932.90 | K39: 1977.35 | L39: 2004.80 | M39: 1949.9 | N39: 1878 | O39: 1702800 | P39: 2.93%
A40: 30 | B40: Capital_Goods | C40: BEL | D40: 2021-12-30 | E40: 203.70 | F40: 202.33 | G40: 199.42 | H40: 195.13 | I40: 192.22 | J40: 206.62 | K40: 209.53 | L40: 213.82 | M40: 205.25 | N40: 198.05 | O40: 20949400 | P40: -8.85%
A41: 31 | B41: FMCG | C41: BERGEPAINT | D41: 2021-12-30 | E41: 754.60 | F41: 755.58 | G41: 740.82 | H41: 727.03 | I41: 712.27 | J41: 769.37 | K41: 784.13 | L41: 797.92 | M41: 770.35 | N41: 741.8 | O41: 4073300 | P41: 5.83%
A42: 32 | B42: Automobile | C42: BHARATFORG | D42: 2021-12-30 | E42: 696.05 | F42: 702.52 | G42: 686.53 | H42: 677.02 | I42: 661.03 | J42: 712.03 | K42: 728.02 | L42: 737.53 | M42: 718.5 | N42: 693 | O42: 9173250 | P42: -4.46%
A43: 33 | B43: Telecom | C43: BHARTIARTL | D43: 2021-12-30 | E43: 731.00 | F43: 736.50 | G43: 721.00 | H43: 711.00 | I43: 695.50 | J43: 746.50 | K43: 762.00 | L43: 772.00 | M43: 752 | N43: 726.5 | O43: 62815992 | P43: 1.56%
A44: 34 | B44: Capital_Goods | C44: BHEL | D44: 2021-12-30 | E44: 58.95 | F44: 59.12 | G44: 57.28 | H44: 55.62 | I44: 53.78 | J44: 60.78 | K44: 62.62 | L44: 64.28 | M44: 60.95 | N44: 57.45 | O44: 103761000 | P44: -1.14%
A45: 35 | B45: Pharma | C45: BIOCON | D45: 2021-12-30 | E45: 361.50 | F45: 364.32 | G45: 356.63 | H45: 351.77 | I45: 344.08 | J45: 369.18 | K45: 376.87 | L45: 381.73 | M45: 372 | N45: 359.45 | O45: 15278900 | P45: 4.50%
A46: 36 | B46: Automobile | C46: BOSCHLTD | D46: 2021-12-30 | E46: 16111.80 | F46: 16264.85 | G46: 15879.70 | H46: 15647.60 | I46: 15262.45 | J46: 16496.95 | K46: 16882.10 | L46: 17114.20 | M46: 16650 | N46: 16032.75 | O46: 145600 | P46: -0.48%
A47: 37 | B47: Oil_Gas | C47: BPCL | D47: 2021-12-30 | E47: 370.75 | F47: 373.37 | G47: 366.83 | H47: 362.92 | I47: 356.38 | J47: 377.28 | K47: 383.82 | L47: 387.73 | M47: 379.9 | N47: 369.45 | O47: 30807000 | P47: -1.42%
A48: 38 | B48: FMCG | C48: BRITANNIA | D48: 2021-12-30 | E48: 3554.20 | F48: 3548.03 | G48: 3521.17 | H48: 3488.13 | I48: 3461.27 | J48: 3581.07 | K48: 3607.93 | L48: 3640.97 | M48: 3574.9 | N48: 3515 | O48: 1463600 | P48: 2.12%
A49: 39 | B49: Technology | C49: BSOFT | D49: 2021-12-30 | E49: 476.30 | F49: 481.23 | G49: 466.07 | H49: 455.83 | I49: 440.67 | J49: 491.47 | K49: 506.63 | L49: 516.87 | M49: 496.4 | N49: 471 | O49: 3931200 | P49: 6.78%
A50: 40 | B50: Pharma | C50: CADILAHC | D50: 2021-12-30 | E50: 467.15 | F50: 463.78 | G50: 453.37 | H50: 439.58 | I50: 429.17 | J50: 477.57 | K50: 487.98 | L50: 501.77 | M50: 474.2 | N50: 450 | O50: 19024500 | P50: -1.19%
A51: 41 | B51: Banking | C51: CANBK | D51: 2021-12-30 | E51: 199.35 | F51: 201.53 | G51: 195.92 | H51: 192.48 | I51: 186.87 | J51: 204.97 | K51: 210.58 | L51: 214.02 | M51: 207.15 | N51: 198.1 | O51: 49674600 | P51: -0.14%
A52: 42 | B52: Finance | C52: CANFINHOME | D52: 2021-12-30 | E52: 590.30 | F52: 588.22 | G52: 579.08 | H52: 567.87 | I52: 558.73 | J52: 599.43 | K52: 608.57 | L52: 619.78 | M52: 597.35 | N52: 577 | O52: 4341675 | P52: -3.72%
A53: 43 | B53: Others | C53: CHAMBLFERT | D53: 2021-12-30 | E53: 364.70 | F53: 368.38 | G53: 359.72 | H53: 354.73 | I53: 346.07 | J53: 373.37 | K53: 382.03 | L53: 387.02 | M53: 377.05 | N53: 363.4 | O53: 1707000 | P53: -1.04%
A54: 44 | B54: Finance | C54: CHOLAFIN | D54: 2021-12-30 | E54: 551.15 | F54: 554.12 | G54: 542.08 | H54: 533.02 | I54: 520.98 | J54: 563.18 | K54: 575.22 | L54: 584.28 | M54: 566.15 | N54: 545.05 | O54: 8915000 | P54: 0.00%
A55: 45 | B55: Pharma | C55: CIPLA | D55: 2021-12-30 | E55: 975.35 | F55: 973.82 | G55: 960.83 | H55: 946.32 | I55: 933.33 | J55: 988.33 | K55: 1001.32 | L55: 1015.83 | M55: 986.8 | N55: 959.3 | O55: 10778300 | P55: 0.94%
A56: 46 | B56: Others | C56: COALINDIA | D56: 2021-12-30 | E56: 152.70 | F56: 154.50 | G56: 150.20 | H56: 147.70 | I56: 143.40 | J56: 157.00 | K56: 161.30 | L56: 163.80 | M56: 158.8 | N56: 152 | O56: 58249800 | P56: 0.51%
A57: 47 | B57: Technology | C57: COFORGE | D57: 2021-12-30 | E57: 5218.30 | F57: 5245.83 | G57: 5145.67 | H57: 5073.03 | I57: 4972.87 | J57: 5318.47 | K57: 5418.63 | L57: 5491.27 | M57: 5346 | N57: 5173.2 | O57: 802600 | P57: 9.76%
A58: 48 | B58: FMCG | C58: COLPAL | D58: 2021-12-30 | E58: 1439.70 | F58: 1446.57 | G58: 1421.33 | H58: 1402.97 | I58: 1377.73 | J58: 1464.93 | K58: 1490.17 | L58: 1508.53 | M58: 1471.8 | N58: 1428.2 | O58: 3543400 | P58: 3.54%
A59: 49 | B59: Others | C59: CONCOR | D59: 2021-12-30 | E59: 620.80 | F59: 616.80 | G59: 606.00 | H59: 591.20 | I59: 580.40 | J59: 631.60 | K59: 642.40 | L59: 657.20 | M59: 627.6 | N59: 602 | O59: 5789260 | P59: -5.18%
A60: 50 | B60: Others | C60: COROMANDEL | D60: 2021-12-30 | E60: 740.20 | F60: 739.57 | G60: 732.73 | H60: 725.27 | I60: 718.43 | J60: 747.03 | K60: 753.87 | L60: 761.33 | M60: 746.4 | N60: 732.1 | O60: 1439375 | P60: -0.26%
A61: 51 | B61: Capital_Goods | C61: CROMPTON | D61: 2021-12-30 | E61: 448.05 | F61: 450.68 | G61: 438.37 | H61: 428.68 | I61: 416.37 | J61: 460.37 | K61: 472.68 | L61: 482.37 | M61: 463 | N61: 441 | O61: 1224300 | P61: -6.86%
A62: 52 | B62: Banking | C62: CUB | D62: 2021-12-30 | E62: 144.75 | F62: 145.87 | G62: 143.13 | H62: 141.52 | I62: 138.78 | J62: 147.48 | K62: 150.22 | L62: 151.83 | M62: 148.6 | N62: 144.25 | O62: 9081700 | P62: 0.09%
A63: 53 | B63: Capital_Goods | C63: CUMMINSIND | D63: 2021-12-30 | E63: 878.15 | F63: 883.25 | G63: 869.10 | H63: 860.05 | I63: 845.90 | J63: 892.30 | K63: 906.45 | L63: 915.50 | M63: 897.4 | N63: 874.2 | O63: 1301400 | P63: -1.81%
A64: 54 | B64: FMCG | C64: DABUR | D64: 2021-12-30 | E64: 596.90 | F64: 598.43 | G64: 592.52 | H64: 588.13 | I64: 582.22 | J64: 602.82 | K64: 608.73 | L64: 613.12 | M64: 604.35 | N64: 594.05 | O64: 10110000 | P64: 9.83%
A65: 55 | B65: Cement | C65: DALBHARAT | D65: 2021-12-30 | E65: 1876.20 | F65: 1884.07 | G65: 1857.03 | H65: 1837.87 | I65: 1810.83 | J65: 1903.23 | K65: 1930.27 | L65: 1949.43 | M65: 1911.1 | N65: 1864.9 | O65: 423000 | P65: -0.76%
A66: 56 | B66: Chemical | C66: DEEPAKNTR | D66: 2021-12-30 | E66: 2121.40 | F66: 2126.80 | G66: 2088.45 | H66: 2055.50 | I66: 2017.15 | J66: 2159.75 | K66: 2198.10 | L66: 2231.05 | M66: 2165.15 | N66: 2093.85 | O66: 2726000 | P66: -5.15%
A67: 57 | B67: Others | C67: DELTACORP | D67: 2021-12-30 | E67: 247.20 | F67: 251.70 | G67: 241.20 | H67: 235.20 | I67: 224.70 | J67: 257.70 | K67: 268.20 | L67: 274.20 | M67: 262.2 | N67: 245.7 | O67: 13896600 | P67: 3.23%
A68: 58 | B68: Pharma | C68: DIVISLAB | D68: 2021-12-30 | E68: 4894.75 | F68: 4906.22 | G68: 4846.43 | H68: 4798.12 | I68: 4738.33 | J68: 4954.53 | K68: 5014.32 | L68: 5062.63 | M68: 4966 | N68: 4857.9 | O68: 1998600 | P68: -0.17%
A69: 59 | B69: Others | C69: DIXON | D69: 2021-12-30 | E69: 5102.15 | F69: 5107.20 | G69: 5019.95 | H69: 4937.75 | I69: 4850.50 | J69: 5189.40 | K69: 5276.65 | L69: 5358.85 | M69: 5194.45 | N69: 5025 | O69: 370750 | P69: -5.48%
A70: 60 | B70: Realty | C70: DLF | D70: 2021-12-30 | E70: 376.30 | F70: 380.92 | G70: 369.48 | H70: 362.67 | I70: 351.23 | J70: 387.73 | K70: 399.17 | L70: 405.98 | M70: 392.35 | N70: 374.1 | O70: 33853050 | P70: 2.13%
A71: 61 | B71: Pharma | C71: DRREDDY | D71: 2021-12-30 | E71: 4684.95 | F71: 4702.90 | G71: 4647.90 | H71: 4610.85 | I71: 4555.85 | J71: 4739.95 | K71: 4794.95 | L71: 4832.00 | M71: 4757.9 | N71: 4665.85 | O71: 2666750 | P71: 3.48%
A72: 62 | B72: Automobile | C72: EICHERMOT | D72: 2021-12-30 | E72: 2379.05 | F72: 2400.88 | G72: 2347.77 | H72: 2316.48 | I72: 2263.37 | J72: 2432.17 | K72: 2485.28 | L72: 2516.57 | M72: 2454 | N72: 2369.6 | O72: 3702650 | P72: 1.69%
A73: 63 | B73: Automobile | C73: ESCORTS | D73: 2021-12-30 | E73: 1852.25 | F73: 1860.15 | G73: 1837.30 | H73: 1822.35 | I73: 1799.50 | J73: 1875.10 | K73: 1897.95 | L73: 1912.90 | M73: 1883 | N73: 1845.2 | O73: 6177050 | P73: -0.65%
A74: 64 | B74: Automobile | C74: EXIDEIND | D74: 2021-12-30 | E74: 162.90 | F74: 164.00 | G74: 160.95 | H74: 159.00 | I74: 155.95 | J74: 165.95 | K74: 169.00 | L74: 170.95 | M74: 167.05 | N74: 162.05 | O74: 26514000 | P74: -1.01%
A75: 65 | B75: Banking | C75: FEDERALBNK | D75: 2021-12-30 | E75: 86.85 | F75: 87.85 | G75: 85.40 | H75: 83.95 | I75: 81.50 | J75: 89.30 | K75: 91.75 | L75: 93.20 | M75: 90.3 | N75: 86.4 | O75: 99280000 | P75: -0.39%
A76: 66 | B76: Technology | C76: FSL | D76: 2021-12-30 | E76: 169.30 | F76: 168.00 | G76: 165.00 | H76: 160.70 | I76: 157.70 | J76: 172.30 | K76: 175.30 | L76: 179.60 | M76: 171 | N76: 163.7 | O76: 5878600 | P76: -3.54%
A77: 67 | B77: Oil_Gas | C77: GAIL | D77: 2021-12-30 | E77: 129.90 | F77: 131.15 | G77: 128.20 | H77: 126.50 | I77: 123.55 | J77: 132.85 | K77: 135.80 | L77: 137.50 | M77: 134.1 | N77: 129.45 | O77: 43816300 | P77: 1.76%
A78: 68 | B78: Pharma | C78: GLENMARK | D78: 2021-12-30 | E78: 524.80 | F78: 521.40 | G78: 511.25 | H78: 497.70 | I78: 487.55 | J78: 534.95 | K78: 545.10 | L78: 558.65 | M78: 531.55 | N78: 507.85 | O78: 9513950 | P78: -1.87%
A79: 69 | B79: Infrastructure | C79: GMRINFRA | D79: 2021-12-30 | E79: 37.70 | F79: 38.15 | G79: 37.05 | H79: 36.40 | I79: 35.30 | J79: 38.80 | K79: 39.90 | L79: 40.55 | M79: 39.25 | N79: 37.5 | O79: 120420000 | P79: 2.08%
A80: 70 | B80: FMCG | C80: GODREJCP | D80: 2021-12-30 | E80: 925.60 | F80: 926.65 | G80: 918.75 | H80: 911.90 | I80: 904.00 | J80: 933.50 | K80: 941.40 | L80: 948.25 | M80: 934.55 | N80: 919.8 | O80: 4842000 | P80: 0.41%
A81: 71 | B81: Realty | C81: GODREJPROP | D81: 2021-12-30 | E81: 2002.90 | F81: 2046.63 | G81: 1921.27 | H81: 1839.63 | I81: 1714.27 | J81: 2128.27 | K81: 2253.63 | L81: 2335.27 | M81: 2172 | N81: 1965 | O81: 3418350 | P81: 75.65%
A82: 72 | B82: Pharma | C82: GRANULES | D82: 2021-12-30 | E82: 300.70 | F82: 297.32 | G82: 291.63 | H82: 282.57 | I82: 276.88 | J82: 306.38 | K82: 312.07 | L82: 321.13 | M82: 303 | N82: 288.25 | O82: 14043000 | P82: -0.61%
A83: 73 | B83: Cement | C83: GRASIM | D83: 2021-12-30 | E83: 1668.80 | F83: 1679.93 | G83: 1645.92 | H83: 1623.03 | I83: 1589.02 | J83: 1702.82 | K83: 1736.83 | L83: 1759.72 | M83: 1713.95 | N83: 1657.05 | O83: 10994825 | P83: 3.31%
A84: 74 | B84: Oil_Gas | C84: GSPL | D84: 2021-12-30 | E84: 313.70 | F84: 312.78 | G84: 303.87 | H84: 294.03 | I84: 285.12 | J84: 322.62 | K84: 331.53 | L84: 341.37 | M84: 321.7 | N84: 302.95 | O84: 1062500 | P84: 14.68%
A85: 75 | B85: Oil_Gas | C85: GUJGASLTD | D85: 2021-12-30 | E85: 671.20 | F85: 668.82 | G85: 657.93 | H85: 644.67 | I85: 633.78 | J85: 682.08 | K85: 692.97 | L85: 706.23 | M85: 679.7 | N85: 655.55 | O85: 1995000 | P85: -0.75%
A86: 76 | B86: Others | C86: HAL | D86: 2021-12-30 | E86: 1278.15 | F86: 1288.33 | G86: 1262.82 | H86: 1247.48 | I86: 1221.97 | J86: 1303.67 | K86: 1329.18 | L86: 1344.52 | M86: 1313.85 | N86: 1273 | O86: 2738375 | P86: -1.52%
A87: 77 | B87: Capital_Goods | C87: HAVELLS | D87: 2021-12-30 | E87: 1364.70 | F87: 1368.10 | G87: 1324.95 | H87: 1285.20 | I87: 1242.05 | J87: 1407.85 | K87: 1451.00 | L87: 1490.75 | M87: 1411.25 | N87: 1328.35 | O87: 3672000 | P87: 23.22%
A88: 78 | B88: Technology | C88: HCLTECH | D88: 2021-12-30 | E88: 1142.85 | F88: 1147.13 | G88: 1134.77 | H88: 1126.68 | I88: 1114.32 | J88: 1155.22 | K88: 1167.58 | L88: 1175.67 | M88: 1159.5 | N88: 1139.05 | O88: 23835700 | P88: 0.46%
A89: 79 | B89: Finance | C89: HDFC | D89: 2021-12-30 | E89: 2683.95 | F89: 2707.82 | G89: 2642.83 | H89: 2601.72 | I89: 2536.73 | J89: 2748.93 | K89: 2813.92 | L89: 2855.03 | M89: 2772.8 | N89: 2666.7 | O89: 13121700 | P89: 1.20%
A90: 80 | B90: Finance | C90: HDFCAMC | D90: 2021-12-30 | E90: 2520.50 | F90: 2535.10 | G90: 2496.95 | H90: 2473.40 | I90: 2435.25 | J90: 2558.65 | K90: 2596.80 | L90: 2620.35 | M90: 2573.25 | N90: 2511.55 | O90: 3288600 | P90: 1.41%
A91: 81 | B91: Banking | C91: HDFCBANK | D91: 2021-12-30 | E91: 1494.60 | F91: 1504.62 | G91: 1479.23 | H91: 1463.87 | I91: 1438.48 | J91: 1519.98 | K91: 1545.37 | L91: 1560.73 | M91: 1530 | N91: 1489.25 | O91: 34821600 | P91: -4.67%
A92: 82 | B92: Finance | C92: HDFCLIFE | D92: 2021-12-30 | E92: 681.55 | F92: 682.60 | G92: 674.10 | H92: 666.65 | I92: 658.15 | J92: 690.05 | K92: 698.55 | L92: 706.00 | M92: 691.1 | N92: 675.15 | O92: 18390900 | P92: 12.34%
A93: 83 | B93: Automobile | C93: HEROMOTOCO | D93: 2021-12-30 | E93: 2451.90 | F93: 2467.40 | G93: 2413.90 | H93: 2375.90 | I93: 2322.40 | J93: 2505.40 | K93: 2558.90 | L93: 2596.90 | M93: 2520.9 | N93: 2429.4 | O93: 5051100 | P93: 4.76%
A94: 84 | B94: Metals | C94: HINDALCO | D94: 2021-12-30 | E94: 413.70 | F94: 418.90 | G94: 406.40 | H94: 399.10 | I94: 386.60 | J94: 426.20 | K94: 438.70 | L94: 446.00 | M94: 431.4 | N94: 411.6 | O94: 35214850 | P94: 4.76%
A95: 85 | B95: Oil_Gas | C95: HINDPETRO | D95: 2021-12-30 | E95: 295.75 | F95: 297.68 | G95: 292.37 | H95: 288.98 | I95: 283.67 | J95: 301.07 | K95: 306.38 | L95: 309.77 | M95: 303 | N95: 294.3 | O95: 13132800 | P95: -0.59%
A96: 86 | B96: FMCG | C96: HINDUNILVR | D96: 2021-12-30 | E96: 2326.05 | F96: 2336.02 | G96: 2306.03 | H96: 2286.02 | I96: 2256.03 | J96: 2356.03 | K96: 2386.02 | L96: 2406.03 | M96: 2366 | N96: 2316 | O96: 11731800 | P96: 6.58%
A97: 87 | B97: Finance | C97: IBULHSGFIN | D97: 2021-12-30 | E97: 229.10 | F97: 232.47 | G97: 223.58 | H97: 218.07 | I97: 209.18 | J97: 237.98 | K97: 246.87 | L97: 252.38 | M97: 241.35 | N97: 226.95 | O97: 51460000 | P97: -4.17%
A98: 88 | B98: Banking | C98: ICICIBANK | D98: 2021-12-30 | E98: 715.85 | F98: 720.93 | G98: 708.07 | H98: 700.28 | I98: 687.42 | J98: 728.72 | K98: 741.58 | L98: 749.37 | M98: 733.8 | N98: 713.15 | O98: 102704250 | P98: 3.29%
A99: 89 | B99: Finance | C99: ICICIGI | D99: 2021-12-30 | E99: 1441.15 | F99: 1442.53 | G99: 1428.67 | H99: 1416.18 | I99: 1402.32 | J99: 1455.02 | K99: 1468.88 | L99: 1481.37 | M99: 1456.4 | N99: 1430.05 | O99: 2811800 | P99: 1.36%
A100: 90 | B100: Finance | C100: ICICIPRULI | D100: 2021-12-30 | E100: 595.40 | F100: 595.40 | G100: 586.80 | H100: 578.20 | I100: 569.60 | J100: 604.00 | K100: 612.60 | L100: 621.20 | M100: 604 | N100: 586.8 | O100: 4674000 | P100: 2.06%
A101: 91 | B101: Telecom | C101: IDEA | D101: 2021-12-30 | E101: 11.05 | F101: 11.22 | G101: 10.78 | H101: 10.52 | I101: 10.08 | J101: 11.48 | K101: 11.92 | L101: 12.18 | M101: 11.65 | N101: 10.95 | O101: 954030000 | P101: 5.67%
A102: 92 | B102: Banking | C102: IDFCFIRSTB | D102: 2021-12-30 | E102: 44.70 | F102: 45.22 | G102: 43.98 | H102: 43.27 | I102: 42.03 | J102: 45.93 | K102: 47.17 | L102: 47.88 | M102: 46.45 | N102: 44.5 | O102: 162672000 | P102: 0.57%
A103: 93 | B103: Others | C103: IEX | D103: 2021-12-30 | E103: 744.35 | F103: 751.80 | G103: 727.60 | H103: 710.85 | I103: 686.65 | J103: 768.55 | K103: 792.75 | L103: 809.50 | M103: 776 | N103: 735.05 | O103: 12450000 | P103: 1.00%
A104: 94 | B104: Oil_Gas | C104: IGL | D104: 2021-12-30 | E104: 484.70 | F104: 485.85 | G104: 479.90 | H104: 475.10 | I104: 469.15 | J104: 490.65 | K104: 496.60 | L104: 501.40 | M104: 491.8 | N104: 481.05 | O104: 11259875 | P104: 0.06%
A105: 95 | B105: Infrastructure | C105: INDHOTEL | D105: 2021-12-30 | E105: 180.20 | F105: 180.18 | G105: 174.42 | H105: 168.63 | I105: 162.87 | J105: 185.97 | K105: 191.73 | L105: 197.52 | M105: 185.95 | N105: 174.4 | O105: 15251424 | P105: -15.62%
A106: 96 | B106: Cement | C106: INDIACEM | D106: 2021-12-30 | E106: 184.75 | F106: 186.50 | G106: 182.20 | H106: 179.65 | I106: 175.35 | J106: 189.05 | K106: 193.35 | L106: 195.90 | M106: 190.8 | N106: 183.95 | O106: 10721300 | P106: 1.73%
A107: 97 | B107: Others | C107: INDIAMART | D107: 2021-12-30 | E107: 7465.90 | F107: 7442.48 | G107: 7374.32 | H107: 7282.73 | I107: 7214.57 | J107: 7534.07 | K107: 7602.23 | L107: 7693.82 | M107: 7510.65 | N107: 7350.9 | O107: 171375 | P107: -0.39%
A108: 98 | B108: Others | C108: INDIGO | D108: 2021-12-30 | E108: 1907.90 | F108: 1924.82 | G108: 1877.68 | H108: 1847.47 | I108: 1800.33 | J108: 1955.03 | K108: 2002.17 | L108: 2032.38 | M108: 1971.95 | N108: 1894.6 | O108: 3913500 | P108: 0.23%
A109: 99 | B109: Banking | C109: INDUSINDBK | D109: 2021-12-30 | E109: 884.55 | F109: 898.33 | G109: 865.37 | H109: 846.18 | I109: 813.22 | J109: 917.52 | K109: 950.48 | L109: 969.67 | M109: 931.3 | N109: 879.15 | O109: 27253800 | P109: 0.54%
A110: 100 | B110: Telecom | C110: INDUSTOWER | D110: 2021-12-30 | E110: 284.50 | F110: 283.75 | G110: 280.15 | H110: 275.80 | I110: 272.20 | J110: 288.10 | K110: 291.70 | L110: 296.05 | M110: 287.35 | N110: 279.4 | O110: 13686400 | P110: 0.04%
A111: 101 | B111: Technology | C111: INFY | D111: 2021-12-30 | E111: 1718.00 | F111: 1717.77 | G111: 1703.13 | H111: 1688.27 | I111: 1673.63 | J111: 1732.63 | K111: 1747.27 | L111: 1762.13 | M111: 1732.4 | N111: 1702.9 | O111: 38197800 | P111: -1.14%
A112: 102 | B112: Oil_Gas | C112: IOC | D112: 2021-12-30 | E112: 119.25 | F112: 119.53 | G112: 117.72 | H112: 116.18 | I112: 114.37 | J112: 121.07 | K112: 122.88 | L112: 124.42 | M112: 121.35 | N112: 118 | O112: 34372000 | P112: 2.54%
A113: 103 | B113: Pharma | C113: IPCALAB | D113: 2021-12-30 | E113: 2105.00 | F113: 2094.98 | G113: 2028.02 | H113: 1951.03 | I113: 1884.07 | J113: 2171.97 | K113: 2238.93 | L113: 2315.92 | M113: 2161.95 | N113: 2018 | O113: 2769300 | P113: -30.50%
A114: 104 | B114: Others | C114: IRCTC | D114: 2021-12-30 | E114: 797.40 | F114: 802.98 | G114: 784.52 | H114: 771.63 | I114: 753.17 | J114: 815.87 | K114: 834.33 | L114: 847.22 | M114: 821.45 | N114: 790.1 | O114: 10913500 | P114: 10.81%
A115: 105 | B115: FMCG | C115: ITC | D115: 2021-12-30 | E115: 222.00 | F115: 222.75 | G115: 219.75 | H115: 217.50 | I115: 214.50 | J115: 225.00 | K115: 228.00 | L115: 230.25 | M115: 225.75 | N115: 220.5 | O115: 235961600 | P115: -0.26%
A116: 106 | B116: Metals | C116: JINDALSTEL | D116: 2021-12-30 | E116: 344.75 | F116: 349.38 | G116: 338.77 | H116: 332.78 | I116: 322.17 | J116: 355.37 | K116: 365.98 | L116: 371.97 | M116: 360 | N116: 343.4 | O116: 34720000 | P116: -0.21%
A117: 107 | B117: Cement | C117: JKCEMENT | D117: 2021-12-30 | E117: 3239.45 | F117: 3238.70 | G117: 3180.70 | H117: 3121.95 | I117: 3063.95 | J117: 3297.45 | K117: 3355.45 | L117: 3414.20 | M117: 3296.7 | N117: 3179.95 | O117: 152600 | P117: -0.23%
A118: 108 | B118: Metals | C118: JSWSTEEL | D118: 2021-12-30 | E118: 610.75 | F118: 617.58 | G118: 600.97 | H118: 591.18 | I118: 574.57 | J118: 627.37 | K118: 643.98 | L118: 653.77 | M118: 634.2 | N118: 607.8 | O118: 48213900 | P118: 2.53%
A119: 109 | B119: Others | C119: JUBLFOOD | D119: 2021-12-30 | E119: 3662.45 | F119: 3689.28 | G119: 3623.17 | H119: 3583.88 | I119: 3517.77 | J119: 3728.57 | K119: 3794.68 | L119: 3833.97 | M119: 3755.4 | N119: 3650 | O119: 1472250 | P119: 0.15%
A120: 110 | B120: Banking | C120: KOTAKBANK | D120: 2021-12-30 | E120: 1967.55 | F120: 1988.20 | G120: 1935.45 | H120: 1903.35 | I120: 1850.60 | J120: 2020.30 | K120: 2073.05 | L120: 2105.15 | M120: 2040.95 | N120: 1956.1 | O120: 12885200 | P120: -3.08%
A121: 111 | B121: Finance | C121: L&TFH | D121: 2021-12-30 | E121: 75.30 | F121: 75.53 | G121: 73.27 | H121: 71.23 | I121: 68.97 | J121: 77.57 | K121: 79.83 | L121: 81.87 | M121: 77.8 | N121: 73.5 | O121: 70008780 | P121: -1.20%
A122: 112 | B122: Others | C122: LALPATHLAB | D122: 2021-12-30 | E122: 3807.25 | F122: 3796.03 | G122: 3674.27 | H122: 3541.28 | I122: 3419.52 | J122: 3929.02 | K122: 4050.78 | L122: 4183.77 | M122: 3917.8 | N122: 3663.05 | O122: 478500 | P122: 2.30%
A123: 113 | B123: Pharma | C123: LAURUSLABS | D123: 2021-12-30 | E123: 510.05 | F123: 509.68 | G123: 497.37 | H123: 484.68 | I123: 472.37 | J123: 522.37 | K123: 534.68 | L123: 547.37 | M123: 522 | N123: 497 | O123: 3070800 | P123: 2.96%
A124: 114 | B124: Finance | C124: LICHSGFIN | D124: 2021-12-30 | E124: 372.40 | F124: 376.63 | G124: 366.42 | H124: 360.43 | I124: 350.22 | J124: 382.62 | K124: 392.83 | L124: 398.82 | M124: 386.85 | N124: 370.65 | O124: 13786000 | P124: 2.00%
A125: 115 | B125: Capital_Goods | C125: LT | D125: 2021-12-30 | E125: 1769.90 | F125: 1777.23 | G125: 1750.47 | H125: 1731.03 | I125: 1704.27 | J125: 1796.67 | K125: 1823.43 | L125: 1842.87 | M125: 1804 | N125: 1757.8 | O125: 11743800 | P125: 3.01%
A126: 116 | B126: Technology | C126: LTI | D126: 2021-12-30 | E126: 6832.25 | F126: 6857.43 | G126: 6754.87 | H126: 6677.48 | I126: 6574.92 | J126: 6934.82 | K126: 7037.38 | L126: 7114.77 | M126: 6960 | N126: 6780.05 | O126: 502800 | P126: 0.15%
A127: 117 | B127: Technology | C127: LTTS | D127: 2021-12-30 | E127: 5277.95 | F127: 5318.32 | G127: 5175.58 | H127: 5073.22 | I127: 4930.48 | J127: 5420.68 | K127: 5563.42 | L127: 5665.78 | M127: 5461.05 | N127: 5215.95 | O127: 489600 | P127: -2.04%
A128: 118 | B128: Pharma | C128: LUPIN | D128: 2021-12-30 | E128: 886.25 | F128: 889.82 | G128: 877.63 | H128: 869.02 | I128: 856.83 | J128: 898.43 | K128: 910.62 | L128: 919.23 | M128: 902 | N128: 881.2 | O128: 8999800 | P128: 4.71%
A129: 119 | B129: Automobile | C129: M&M | D129: 2021-12-30 | E129: 838.00 | F129: 844.98 | G129: 825.92 | H129: 813.83 | I129: 794.77 | J129: 857.07 | K129: 876.13 | L129: 888.22 | M129: 864.05 | N129: 832.9 | O129: 11200700 | P129: 4.51%
A130: 120 | B130: Finance | C130: M&MFIN | D130: 2021-12-30 | E130: 155.40 | F130: 157.07 | G130: 153.43 | H130: 151.47 | I130: 147.83 | J130: 159.03 | K130: 162.67 | L130: 164.63 | M130: 160.7 | N130: 155.1 | O130: 25452000 | P130: 0.87%
A131: 121 | B131: Finance | C131: MANAPPURAM | D131: 2021-12-30 | E131: 163.95 | F131: 165.63 | G131: 161.72 | H131: 159.48 | I131: 155.57 | J131: 167.87 | K131: 171.78 | L131: 174.02 | M131: 169.55 | N131: 163.4 | O131: 20229000 | P131: -2.30%
A132: 122 | B132: FMCG | C132: MARICO | D132: 2021-12-30 | E132: 540.00 | F132: 539.62 | G132: 534.38 | H132: 528.77 | I132: 523.53 | J132: 545.23 | K132: 550.47 | L132: 556.08 | M132: 544.85 | N132: 534 | O132: 7367000 | P132: 5.12%
A133: 123 | B133: Automobile | C133: MARUTI | D133: 2021-12-30 | E133: 7090.30 | F133: 7142.93 | G133: 7004.17 | H133: 6918.03 | I133: 6779.27 | J133: 7229.07 | K133: 7367.83 | L133: 7453.97 | M133: 7281.7 | N133: 7056.8 | O133: 3178400 | P133: 7.27%
A134: 124 | B134: FMCG | C134: MCDOWELL-N | D134: 2021-12-30 | E134: 886.60 | F134: 891.77 | G134: 875.53 | H134: 864.47 | I134: 848.23 | J134: 902.83 | K134: 919.07 | L134: 930.13 | M134: 908 | N134: 880.7 | O134: 17901250 | P134: 3.98%
A135: 125 | B135: Others | C135: MCX | D135: 2021-12-30 | E135: 1605.20 | F135: 1630.73 | G135: 1566.67 | H135: 1528.13 | I135: 1464.07 | J135: 1669.27 | K135: 1733.33 | L135: 1771.87 | M135: 1694.8 | N135: 1592.2 | O135: 1418900 | P135: 4.43%
A136: 126 | B136: Pharma | C136: METROPOLIS | D136: 2021-12-30 | E136: 3293.40 | F136: 3236.52 | G136: 3147.03 | H136: 3000.67 | I136: 2911.18 | J136: 3382.88 | K136: 3472.37 | L136: 3618.73 | M136: 3326 | N136: 3090.15 | O136: 610400 | P136: 0.39%
A137: 127 | B137: Finance | C137: MFSL | D137: 2021-12-30 | E137: 941.15 | F137: 944.08 | G137: 926.82 | H137: 912.48 | I137: 895.22 | J137: 958.42 | K137: 975.68 | L137: 990.02 | M137: 961.35 | N137: 929.75 | O137: 1767350 | P137: 6.13%
A138: 128 | B138: Oil_Gas | C138: MGL | D138: 2021-12-30 | E138: 918.50 | F138: 924.15 | G138: 910.30 | H138: 902.10 | I138: 888.25 | J138: 932.35 | K138: 946.20 | L138: 954.40 | M138: 938 | N138: 915.95 | O138: 3708000 | P138: -2.40%
A139: 129 | B139: Technology | C139: MINDTREE | D139: 2021-12-30 | E139: 4347.05 | F139: 4428.20 | G139: 4180.40 | H139: 4013.75 | I139: 3765.95 | J139: 4594.85 | K139: 4842.65 | L139: 5009.30 | M139: 4676 | N139: 4261.55 | O139: 2606800 | P139: 26.24%
A140: 130 | B140: Automobile | C140: MOTHERSUMI | D140: 2021-12-30 | E140: 210.30 | F140: 213.27 | G140: 206.03 | H140: 201.77 | I140: 194.53 | J140: 217.53 | K140: 224.77 | L140: 229.03 | M140: 220.5 | N140: 209 | O140: 28875000 | P140: 1.03%
A141: 131 | B141: Technology | C141: MPHASIS | D141: 2021-12-30 | E141: 2904.65 | F141: 2953.53 | G141: 2791.12 | H141: 2677.58 | I141: 2515.17 | J141: 3067.07 | K141: 3229.48 | L141: 3343.02 | M141: 3115.95 | N141: 2840 | O141: 2208450 | P141: 52.86%
A142: 132 | B142: Automobile | C142: MRF | D142: 2021-12-30 | E142: 74748.10 | F142: 74749.42 | G142: 73398.83 | H142: 72049.57 | I142: 70698.98 | J142: 76098.68 | K142: 77449.27 | L142: 78798.53 | M142: 76100 | N142: 73400.15 | O142: 66390 | P142: 2.25%
A143: 133 | B143: Finance | C143: MUTHOOTFIN | D143: 2021-12-30 | E143: 1431.65 | F143: 1439.62 | G143: 1417.83 | H143: 1404.02 | I143: 1382.23 | J143: 1453.43 | K143: 1475.22 | L143: 1489.03 | M143: 1461.4 | N143: 1425.8 | O143: 3753375 | P143: 3.85%
A144: 134 | B144: Others | C144: NAM-INDIA | D144: 2021-12-30 | E144: 367.90 | F144: 370.58 | G144: 363.22 | H144: 358.53 | I144: 351.17 | J144: 375.27 | K144: 382.63 | L144: 387.32 | M144: 377.95 | N144: 365.9 | O144: 2609600 | P144: 1.49%
A145: 135 | B145: Metals | C145: NATIONALUM | D145: 2021-12-30 | E145: 88.60 | F145: 89.42 | G145: 87.43 | H145: 86.27 | I145: 84.28 | J145: 90.58 | K145: 92.57 | L145: 93.73 | M145: 91.4 | N145: 88.25 | O145: 91358000 | P145: 1.21%
A146: 136 | B146: Others | C146: NAUKRI | D146: 2021-12-30 | E146: 5823.20 | F146: 5859.42 | G146: 5735.83 | H146: 5648.47 | I146: 5524.88 | J146: 5946.78 | K146: 6070.37 | L146: 6157.73 | M146: 5983 | N146: 5772.05 | O146: 944500 | P146: 5.22%
A147: 137 | B147: Chemical | C147: NAVINFLUOR | D147: 2021-12-30 | E147: 3747.50 | F147: 3687.10 | G147: 3587.05 | H147: 3426.60 | I147: 3326.55 | J147: 3847.55 | K147: 3947.60 | L147: 4108.05 | M147: 3787.15 | N147: 3526.65 | O147: 607725 | P147: 13.58%
A148: 138 | B148: FMCG | C148: NESTLEIND | D148: 2021-12-30 | E148: 19226.50 | F148: 19218.17 | G148: 18986.33 | H148: 18746.17 | I148: 18514.33 | J148: 19458.33 | K148: 19690.17 | L148: 19930.33 | M148: 19450 | N148: 18978 | O148: 264675 | P148: 0.30%
A149: 139 | B149: Metals | C149: NMDC | D149: 2021-12-30 | E149: 132.55 | F149: 134.03 | G149: 130.67 | H149: 128.78 | I149: 125.42 | J149: 135.92 | K149: 139.28 | L149: 141.17 | M149: 137.4 | N149: 132.15 | O149: 86778400 | P149: -0.24%
A150: 140 | B150: Power | C150: NTPC | D150: 2021-12-30 | E150: 127.45 | F150: 127.38 | G150: 125.32 | H150: 123.18 | I150: 121.12 | J150: 129.52 | K150: 131.58 | L150: 133.72 | M150: 129.45 | N150: 125.25 | O150: 59565000 | P150: 2.51%
A151: 141 | B151: Realty | C151: OBEROIRLTY | D151: 2021-12-30 | E151: 833.15 | F151: 838.60 | G151: 817.25 | H151: 801.35 | I151: 780.00 | J151: 854.50 | K151: 875.85 | L151: 891.75 | M151: 859.95 | N151: 822.7 | O151: 3145800 | P151: -1.45%
A152: 142 | B152: Technology | C152: OFSS | D152: 2021-12-30 | E152: 4238.05 | F152: 4233.98 | G152: 4195.07 | H152: 4152.08 | I152: 4113.17 | J152: 4276.97 | K152: 4315.88 | L152: 4358.87 | M152: 4272.9 | N152: 4191 | O152: 639375 | P152: -4.25%
A153: 143 | B153: Oil_Gas | C153: ONGC | D153: 2021-12-30 | E153: 142.50 | F153: 144.07 | G153: 140.28 | H153: 138.07 | I153: 134.28 | J153: 146.28 | K153: 150.07 | L153: 152.28 | M153: 147.85 | N153: 141.85 | O153: 40917800 | P153: 9.41%
A154: 144 | B154: Textile | C154: PAGEIND | D154: 2021-12-30 | E154: 38543.95 | F154: 38695.97 | G154: 38185.93 | H154: 37827.92 | I154: 37317.88 | J154: 39053.98 | K154: 39564.02 | L154: 39922.03 | M154: 39206 | N154: 38337.95 | O154: 90420 | P154: 2.34%
A155: 145 | B155: Pharma | C155: PEL | D155: 2021-12-30 | E155: 2422.30 | F155: 2442.80 | G155: 2367.60 | H155: 2312.90 | I155: 2237.70 | J155: 2497.50 | K155: 2572.70 | L155: 2627.40 | M155: 2518 | N155: 2388.1 | O155: 3730100 | P155: 1.43%
A156: 146 | B156: Technology | C156: PERSISTENT | D156: 2021-12-30 | E156: 4115.50 | F156: 4134.15 | G156: 4014.30 | H156: 3913.10 | I156: 3793.25 | J156: 4235.35 | K156: 4355.20 | L156: 4456.40 | M156: 4254 | N156: 4032.95 | O156: 239400 | P156: -8.64%
A157: 147 | B157: Oil_Gas | C157: PETRONET | D157: 2021-12-30 | E157: 219.90 | F157: 220.73 | G157: 218.12 | H157: 216.33 | I157: 213.72 | J157: 222.52 | K157: 225.13 | L157: 226.92 | M157: 223.35 | N157: 218.95 | O157: 20124000 | P157: 1.91%
A158: 148 | B158: Finance | C158: PFC | D158: 2021-12-30 | E158: 116.75 | F158: 117.58 | G158: 115.17 | H158: 113.58 | I158: 111.17 | J158: 119.17 | K158: 121.58 | L158: 123.17 | M158: 120 | N158: 116 | O158: 49190800 | P158: 4.63%
A159: 149 | B159: Pharma | C159: PFIZER | D159: 2021-12-30 | E159: 5202.55 | F159: 5198.22 | G159: 5114.43 | H159: 5026.32 | I159: 4942.53 | J159: 5286.33 | K159: 5370.12 | L159: 5458.23 | M159: 5282 | N159: 5110.1 | O159: 194875 | P159: -0.95%
A160: 150 | B160: FMCG | C160: PIDILITIND | D160: 2021-12-30 | E160: 2215.50 | F160: 2226.38 | G160: 2192.77 | H160: 2170.03 | I160: 2136.42 | J160: 2249.12 | K160: 2282.73 | L160: 2305.47 | M160: 2260 | N160: 2203.65 | O160: 2943250 | P160: 10.98%
A161: 151 | B161: Chemical | C161: PIIND | D161: 2021-12-30 | E161: 2881.85 | F161: 2924.90 | G161: 2814.75 | H161: 2747.65 | I161: 2637.50 | J161: 2992.00 | K161: 3102.15 | L161: 3169.25 | M161: 3035.05 | N161: 2857.8 | O161: 1698000 | P161: 4.24%
A162: 152 | B162: Banking | C162: PNB | D162: 2021-12-30 | E162: 37.30 | F162: 37.65 | G162: 36.70 | H162: 36.10 | I162: 35.15 | J162: 38.25 | K162: 39.20 | L162: 39.80 | M162: 38.6 | N162: 37.05 | O162: 284496000 | P162: 1.51%
A163: 153 | B163: Others | C163: POLYCAB | D163: 2021-12-30 | E163: 2299.80 | F163: 2281.28 | G163: 2248.57 | H163: 2197.33 | I163: 2164.62 | J163: 2332.52 | K163: 2365.23 | L163: 2416.47 | M163: 2314 | N163: 2230.05 | O163: 540300 | P163: -13.58%
A164: 154 | B164: Power | C164: POWERGRID | D164: 2021-12-30 | E164: 201.45 | F164: 200.35 | G164: 197.05 | H164: 192.65 | I164: 189.35 | J164: 204.75 | K164: 208.05 | L164: 212.45 | M164: 203.65 | N164: 195.95 | O164: 20260067 | P164: 10.92%
A165: 155 | B165: Media | C165: PVR | D165: 2021-12-30 | E165: 1369.95 | F165: 1392.98 | G165: 1338.97 | H165: 1307.98 | I165: 1253.97 | J165: 1423.97 | K165: 1477.98 | L165: 1508.97 | M165: 1447 | N165: 1362 | O165: 2877083 | P165: -5.13%
A166: 156 | B166: Cement | C166: RAMCOCEM | D166: 2021-12-30 | E166: 941.80 | F166: 941.93 | G166: 931.87 | H166: 921.93 | I166: 911.87 | J166: 951.87 | K166: 961.93 | L166: 971.87 | M166: 952 | N166: 932 | O166: 2148800 | P166: -3.29%
A167: 157 | B167: Banking | C167: RBLBANK | D167: 2021-12-30 | E167: 182.70 | F167: 186.28 | G167: 177.97 | H167: 173.23 | I167: 164.92 | J167: 191.02 | K167: 199.33 | L167: 204.07 | M167: 194.6 | N167: 181.55 | O167: 29843900 | P167: 6.27%
A168: 158 | B168: Power | C168: RECLTD | D168: 2021-12-30 | E168: 134.30 | F168: 132.83 | G168: 129.12 | H168: 123.93 | I168: 120.22 | J168: 138.02 | K168: 141.73 | L168: 146.92 | M168: 136.55 | N168: 127.65 | O168: 47826000 | P168: -13.38%
A169: 159 | B169: Oil_Gas | C169: RELIANCE | D169: 2021-12-30 | E169: 2412.55 | F169: 2430.85 | G169: 2382.70 | H169: 2352.85 | I169: 2304.70 | J169: 2460.70 | K169: 2508.85 | L169: 2538.70 | M169: 2479 | N169: 2401 | O169: 35010250 | P169: 0.96%
A170: 160 | B170: Metals | C170: SAIL | D170: 2021-12-30 | E170: 100.45 | F170: 101.93 | G170: 98.27 | H170: 96.08 | I170: 92.42 | J170: 104.12 | K170: 107.78 | L170: 109.97 | M170: 105.6 | N170: 99.75 | O170: 148518250 | P170: 2.05%
A171: 161 | B171: Banking | C171: SBICARD | D171: 2021-12-30 | E171: 952.25 | F171: 957.22 | G171: 937.53 | H171: 922.82 | I171: 903.13 | J171: 971.93 | K171: 991.62 | L171: 1006.33 | M171: 976.9 | N171: 942.5 | O171: 2865500 | P171: 7.08%
A172: 162 | B172: Finance | C172: SBILIFE | D172: 2021-12-30 | E172: 1162.10 | F172: 1157.12 | G172: 1145.23 | H172: 1128.37 | I172: 1116.48 | J172: 1173.98 | K172: 1185.87 | L172: 1202.73 | M172: 1169 | N172: 1140.25 | O172: 7983750 | P172: 0.91%
A173: 163 | B173: Banking | C173: SBIN | D173: 2021-12-30 | E173: 461.70 | F173: 466.73 | G173: 455.07 | H173: 448.43 | I173: 436.77 | J173: 473.37 | K173: 485.03 | L173: 491.67 | M173: 478.4 | N173: 460.1 | O173: 112162500 | P173: 1.15%
A174: 164 | B174: Cement | C174: SHREECEM | D174: 2021-12-30 | E174: 26167.20 | F174: 25963.57 | G174: 25577.13 | H174: 24987.07 | I174: 24600.63 | J174: 26553.63 | K174: 26940.07 | L174: 27530.13 | M174: 26350 | N174: 25373.5 | O174: 180425 | P174: 2.04%
A175: 165 | B175: Capital_Goods | C175: SIEMENS | D175: 2021-12-30 | E175: 2153.05 | F175: 2148.90 | G175: 2129.15 | H175: 2105.25 | I175: 2085.50 | J175: 2172.80 | K175: 2192.55 | L175: 2216.45 | M175: 2168.65 | N175: 2125 | O175: 1788325 | P175: -0.58%
A176: 166 | B176: Textile | C176: SRF | D176: 2021-12-30 | E176: 2013.50 | F176: 2057.70 | G176: 1942.35 | H176: 1871.20 | I176: 1755.85 | J176: 2128.85 | K176: 2244.20 | L176: 2315.35 | M176: 2173.05 | N176: 1986.55 | O176: 3883250 | P176: 36.35%
A177: 167 | B177: Finance | C177: SRTRANSFIN | D177: 2021-12-30 | E177: 1409.65 | F177: 1420.70 | G177: 1390.15 | H177: 1370.65 | I177: 1340.10 | J177: 1440.20 | K177: 1470.75 | L177: 1490.25 | M177: 1451.25 | N177: 1401.2 | O177: 3132000 | P177: -0.24%
A178: 168 | B178: Pharma | C178: STAR | D178: 2021-12-30 | E178: 488.30 | F178: 492.35 | G178: 480.80 | H178: 473.30 | I178: 461.75 | J178: 499.85 | K178: 511.40 | L178: 518.90 | M178: 503.9 | N178: 484.85 | O178: 3768975 | P178: 0.52%
A179: 169 | B179: Pharma | C179: SUNPHARMA | D179: 2021-12-30 | E179: 756.15 | F179: 756.38 | G179: 748.52 | H179: 740.88 | I179: 733.02 | J179: 764.02 | K179: 771.88 | L179: 779.52 | M179: 764.25 | N179: 748.75 | O179: 32589200 | P179: 1.40%
A180: 170 | B180: Media | C180: SUNTV | D180: 2021-12-30 | E180: 521.60 | F180: 525.97 | G180: 514.23 | H180: 506.87 | I180: 495.13 | J180: 533.33 | K180: 545.07 | L180: 552.43 | M180: 537.7 | N180: 518.6 | O180: 11187000 | P180: -1.64%
A181: 171 | B181: Pharma | C181: SYNGENE | D181: 2021-12-30 | E181: 597.55 | F181: 595.92 | G181: 589.33 | H181: 581.12 | I181: 574.53 | J181: 604.13 | K181: 610.72 | L181: 618.93 | M181: 602.5 | N181: 587.7 | O181: 1112650 | P181: -2.53%
A182: 172 | B182: Chemical | C182: TATACHEM | D182: 2021-12-30 | E182: 873.35 | F182: 879.53 | G182: 864.07 | H182: 854.78 | I182: 839.32 | J182: 888.82 | K182: 904.28 | L182: 913.57 | M182: 895 | N182: 870.25 | O182: 7945000 | P182: -0.92%
A183: 173 | B183: FMCG | C183: TATACONSUM | D183: 2021-12-30 | E183: 781.25 | F183: 780.25 | G183: 769.80 | H183: 758.35 | I183: 747.90 | J183: 791.70 | K183: 802.15 | L183: 813.60 | M183: 790.7 | N183: 768.8 | O183: 9321075 | P183: -2.03%
A184: 174 | B184: Automobile | C184: TATAMOTORS | D184: 2021-12-30 | E184: 460.30 | F184: 466.05 | G184: 452.25 | H184: 444.20 | I184: 430.40 | J184: 474.10 | K184: 487.90 | L184: 495.95 | M184: 479.85 | N184: 458 | O184: 93055350 | P184: 0.57%
A185: 175 | B185: Power | C185: TATAPOWER | D185: 2021-12-30 | E185: 217.45 | F185: 220.07 | G185: 211.48 | H185: 205.52 | I185: 196.93 | J185: 226.03 | K185: 234.62 | L185: 240.58 | M185: 228.65 | N185: 214.1 | O185: 115850250 | P185: 12.25%
A186: 176 | B186: Metals | C186: TATASTEEL | D186: 2021-12-30 | E186: 1075.10 | F186: 1091.88 | G186: 1051.82 | H186: 1028.53 | I186: 988.47 | J186: 1115.17 | K186: 1155.23 | L186: 1178.52 | M186: 1131.95 | N186: 1068.6 | O186: 52916750 | P186: 4.50%
A187: 177 | B187: Technology | C187: TCS | D187: 2021-12-30 | E187: 3541.55 | F187: 3536.90 | G187: 3505.35 | H187: 3469.15 | I187: 3437.60 | J187: 3573.10 | K187: 3604.65 | L187: 3640.85 | M187: 3568.45 | N187: 3500.7 | O187: 12727950 | P187: -1.19%
A188: 178 | B188: Technology | C188: TECHM | D188: 2021-12-30 | E188: 1547.80 | F188: 1559.83 | G188: 1520.67 | H188: 1493.53 | I188: 1454.37 | J188: 1586.97 | K188: 1626.13 | L188: 1653.27 | M188: 1599 | N188: 1532.7 | O188: 10179000 | P188: 6.44%
A189: 179 | B189: FMCG | C189: TITAN | D189: 2021-12-30 | E189: 2380.90 | F189: 2372.55 | G189: 2351.15 | H189: 2321.40 | I189: 2300.00 | J189: 2402.30 | K189: 2423.70 | L189: 2453.45 | M189: 2393.95 | N189: 2342.8 | O189: 4670625 | P189: 0.95%
A190: 180 | B190: Pharma | C190: TORNTPHARM | D190: 2021-12-30 | E190: 3050.60 | F190: 3054.87 | G190: 2990.73 | H190: 2930.87 | I190: 2866.73 | J190: 3114.73 | K190: 3178.87 | L190: 3238.73 | M190: 3119 | N190: 2995 | O190: 718750 | P190: -9.56%
A191: 181 | B191: Power | C191: TORNTPOWER | D191: 2021-12-30 | E191: 546.75 | F191: 543.02 | G191: 534.73 | H191: 522.72 | I191: 514.43 | J191: 555.03 | K191: 563.32 | L191: 575.33 | M191: 551.3 | N191: 531 | O191: 2988000 | P191: 7.97%
A192: 182 | B192: Others | C192: TRENT | D192: 2021-12-30 | E192: 1018.80 | F192: 1032.42 | G192: 995.88 | H192: 972.97 | I192: 936.43 | J192: 1055.33 | K192: 1091.87 | L192: 1114.78 | M192: 1068.95 | N192: 1009.5 | O192: 2275775 | P192: 8.73%
A193: 183 | B193: Automobile | C193: TVSMOTOR | D193: 2021-12-30 | E193: 683.60 | F193: 684.77 | G193: 675.43 | H193: 667.27 | I193: 657.93 | J193: 692.93 | K193: 702.27 | L193: 710.43 | M193: 694.1 | N193: 676.6 | O193: 6603800 | P193: 13.96%
A194: 184 | B194: FMCG | C194: UBL | D194: 2021-12-30 | E194: 1504.05 | F194: 1513.72 | G194: 1489.28 | H194: 1474.52 | I194: 1450.08 | J194: 1528.48 | K194: 1552.92 | L194: 1567.68 | M194: 1538.15 | N194: 1498.95 | O194: 1336300 | P194: -1.22%
A195: 185 | B195: Cement | C195: ULTRACEMCO | D195: 2021-12-30 | E195: 7449.75 | F195: 7444.20 | G195: 7358.60 | H195: 7267.45 | I195: 7181.85 | J195: 7535.35 | K195: 7620.95 | L195: 7712.10 | M195: 7529.8 | N195: 7353.05 | O195: 1787800 | P195: 0.52%
A196: 186 | B196: Chemical | C196: UPL | D196: 2021-12-30 | E196: 684.25 | F196: 690.28 | G196: 675.67 | H196: 667.08 | I196: 652.47 | J196: 698.87 | K196: 713.48 | L196: 722.07 | M196: 704.9 | N196: 681.7 | O196: 25551500 | P196: 0.45%
A197: 187 | B197: Metals | C197: VEDL | D197: 2021-12-30 | E197: 339.45 | F197: 343.80 | G197: 332.70 | H197: 325.95 | I197: 314.85 | J197: 350.55 | K197: 361.65 | L197: 368.40 | M197: 354.9 | N197: 337.05 | O197: 45793200 | P197: 3.49%
A198: 188 | B198: Capital_Goods | C198: VOLTAS | D198: 2021-12-30 | E198: 1199.45 | F198: 1204.13 | G198: 1170.27 | H198: 1141.08 | I198: 1107.22 | J198: 1233.32 | K198: 1267.18 | L198: 1296.37 | M198: 1238 | N198: 1174.95 | O198: 1673000 | P198: 3.11%
A199: 189 | B199: Capital_Goods | C199: WHIRLPOOL | D199: 2021-12-30 | E199: 2034.95 | F199: 2031.07 | G199: 1987.13 | H199: 1939.32 | I199: 1895.38 | J199: 2078.88 | K199: 2122.82 | L199: 2170.63 | M199: 2075 | N199: 1983.25 | O199: 387750 | P199: 0.26%
A200: 190 | B200: Technology | C200: WIPRO | D200: 2021-12-30 | E200: 638.95 | F200: 639.27 | G200: 631.78 | H200: 624.62 | I200: 617.13 | J200: 646.43 | K200: 653.92 | L200: 661.08 | M200: 646.75 | N200: 632.1 | O200: 29135200 | P200: -1.19%
A201: 191 | B201: Media | C201: ZEEL | D201: 2021-12-30 | E201: 324.95 | F201: 328.42 | G201: 319.18 | H201: 313.42 | I201: 304.18 | J201: 334.18 | K201: 343.42 | L201: 349.18 | M201: 337.65 | N201: 322.65 | O201: 81234000 | P201: -0.95%
A210: Pivot Point: This is trigger point for intra day buy/sell based on the price range of the previous day
A211: As per the tool,the trader should take BUY position just above Pivot and keep the stop loss of pivot point and the first target would be Resistance 1(R1)
A212: If R1 is crossed then R2 becomes the next target with stop loss of at R1
A213: Similarly if price goes below pivot point then the trader should sell and keep a stop loss of pivot point and the first target would be S1
A214: If S1 is crossed then S2 becomes the next target with stop loss of at S1
... 10 more rows

Sheet Cash Intra
M5: Back to Main Page
A6: FOR INTRA DAY TRADING | K6: =Main!B10 -> 2021-12-01
A8: Sr.no | C8: CLOSE RATE | D8: Pivot Point | E8: Supports | H8: Resistances
E9: S1 | F9: S2 | G9: S3 | H9: R1 | I9: R2 | J9: R3 | K9: HIGH | L9: LOW | M9: Total Trade Quanity in Lakhs
A10: 1 | B10: Nifty 50 | C10: 16983.2 | D10: 17079.75 | E10: 16834.85 | F10: 16686.50 | G10: 16441.60 | H10: 17228.10 | I10: 17473.00 | J10: 17621.35 | K10: 17324.65 | L10: 16931.4
A11: 2 | B11: Nifty Bank | C11: 35695.3 | D11: 35998.62 | E11: 35223.03 | F11: 34750.77 | G11: 33975.18 | H11: 36470.88 | I11: 37246.47 | J11: 37718.73 | K11: 36774.2 | L11: 35526.35
A12: 3 | B12: Nifty CPSE | C12: 2254.55 | D12: 2261.63 | E12: 2229.92 | F12: 2205.28 | G12: 2173.57 | H12: 2286.27 | I12: 2317.98 | J12: 2342.62 | K12: 2293.35 | L12: 2237
A13: 4 | B13: Nifty Infra | C13: 4959.35 | D13: 4983.63 | E13: 4912.57 | F13: 4865.78 | G13: 4794.72 | H13: 5030.42 | I13: 5101.48 | J13: 5148.27 | K13: 5054.7 | L13: 4936.85
A14: 5 | B14: Nifty IT | C14: 35043.75 | D14: 35205.52 | E14: 34756.83 | F14: 34469.92 | G14: 34021.23 | H14: 35492.43 | I14: 35941.12 | J14: 36228.03 | K14: 35654.2 | L14: 34918.6
A15: 6 | B15: Nifty PSE | C15: 3820.05 | D15: 3837.67 | E15: 3783.43 | F15: 3746.82 | G15: 3692.58 | H15: 3874.28 | I15: 3928.52 | J15: 3965.13 | K15: 3891.9 | L15: 3801.05
A16: 7 | B16: Nifty Midcap 50 | C16: 8186.3 | D16: 8247.43 | E16: 8095.92 | F16: 8005.53 | G16: 7854.02 | H16: 8337.82 | I16: 8489.33 | J16: 8579.72 | K16: 8398.95 | L16: 8157.05
A17: 8 | B17: ACC | C17: 2286.4 | D17: 2293.07 | E17: 2263.18 | F17: 2239.97 | G17: 2210.08 | H17: 2316.28 | I17: 2346.17 | J17: 2369.38 | K17: 2322.95 | L17: 2269.85 | M17: 4.15128
A18: 9 | B18: AUBANK | C18: 1096.1 | D18: 1105.38 | E18: 1074.77 | F18: 1053.43 | G18: 1022.82 | H18: 1126.72 | I18: 1157.33 | J18: 1178.67 | K18: 1136 | L18: 1084.05 | M18: 7.44583
A19: 10 | B19: AARTIIND | C19: 937.3 | D19: 941.08 | E19: 927.22 | F19: 917.13 | G19: 903.27 | H19: 951.17 | I19: 965.03 | J19: 975.12 | K19: 954.95 | L19: 931 | M19: 8.98079
A20: 11 | B20: ADANIENT | C20: 1662.85 | D20: 1676.55 | E20: 1634.45 | F20: 1606.05 | G20: 1563.95 | H20: 1704.95 | I20: 1747.05 | J20: 1775.45 | K20: 1718.65 | L20: 1648.15 | M20: 29.52368
A21: 12 | B21: ADANIGREEN | C21: 1295.4 | D21: 1331.52 | E21: 1249.03 | F21: 1202.67 | G21: 1120.18 | H21: 1377.88 | I21: 1460.37 | J21: 1506.73 | K21: 1414 | L21: 1285.15 | M21: 16.51907
A22: 13 | B22: ADANIPORTS | C22: 683.85 | D22: 692.07 | E22: 671.48 | F22: 659.12 | G22: 638.53 | H22: 704.43 | I22: 725.02 | J22: 737.38 | K22: 712.65 | L22: 679.7 | M22: 61.90734
A23: 14 | B23: ATGL | C23: 1599.85 | D23: 1604.28 | E23: 1551.57 | F23: 1503.28 | G23: 1450.57 | H23: 1652.57 | I23: 1705.28 | J23: 1753.57 | K23: 1657 | L23: 1556 | M23: 13.93526
A24: 15 | B24: ADANITRANS | C24: 1799.5 | D24: 1821.50 | E24: 1777.50 | F24: 1755.50 | G24: 1711.50 | H24: 1843.50 | I24: 1887.50 | J24: 1909.50 | K24: 1865.5 | L24: 1799.5 | M24: 9.66317
A25: 16 | B25: ABCAPITAL | C25: 109.1 | D25: 108.60 | E25: 105.85 | F25: 102.60 | G25: 99.85 | H25: 111.85 | I25: 114.60 | J25: 117.85 | K25: 111.35 | L25: 105.35 | M25: 63.30797
A26: 17 | B26: ABFRL | C26: 255.1 | D26: 256.70 | E26: 249.40 | F26: 243.70 | G26: 236.40 | H26: 262.40 | I26: 269.70 | J26: 275.40 | K26: 264 | L26: 251 | M26: 24.64402
A27: 18 | B27: AJANTPHARM | C27: 2080.25 | D27: 2081.67 | E27: 2053.88 | F27: 2027.52 | G27: 1999.73 | H27: 2108.03 | I27: 2135.82 | J27: 2162.18 | K27: 2109.45 | L27: 2055.3 | M27: 0.54166
A28: 19 | B28: APLLTD | C28: 806.7 | D28: 804.65 | E28: 796.35 | F28: 786.00 | G28: 777.70 | H28: 815.00 | I28: 823.30 | J28: 833.65 | K28: 812.95 | L28: 794.3 | M28: 3.89441
A29: 20 | B29: ALKEM | C29: 3593.45 | D29: 3559.85 | E29: 3514.70 | F29: 3435.95 | G29: 3390.80 | H29: 3638.60 | I29: 3683.75 | J29: 3762.50 | K29: 3605 | L29: 3481.1 | M29: 2.22262
A30: 21 | B30: AMARAJABAT | C30: 617.9 | D30: 618.00 | E30: 612.30 | F30: 606.70 | G30: 601.00 | H30: 623.60 | I30: 629.30 | J30: 634.90 | K30: 623.7 | L30: 612.4 | M30: 7.7392
A31: 22 | B31: AMBUJACEM | C31: 374.6 | D31: 373.23 | E31: 368.37 | F31: 362.13 | G31: 357.27 | H31: 379.47 | I31: 384.33 | J31: 390.57 | K31: 378.1 | L31: 367 | M31: 48.09537
A32: 23 | B32: APOLLOHOSP | C32: 5687.75 | D32: 5715.77 | E32: 5601.58 | F32: 5515.42 | G32: 5401.23 | H32: 5801.93 | I32: 5916.12 | J32: 6002.28 | K32: 5829.95 | L32: 5629.6 | M32: 13.52746
A33: 24 | B33: APOLLOTYRE | C33: 204.55 | D33: 206.47 | E33: 201.58 | F33: 198.62 | G33: 193.73 | H33: 209.43 | I33: 214.32 | J33: 217.28 | K33: 211.35 | L33: 203.5 | M33: 22.92067
A34: 25 | B34: ASHOKLEY | C34: 119.7 | D34: 120.98 | E34: 117.77 | F34: 115.83 | G34: 112.62 | H34: 122.92 | I34: 126.13 | J34: 128.07 | K34: 124.2 | L34: 119.05 | M34: 148.79949
A35: 26 | B35: ASIANPAINT | C35: 3143.65 | D35: 3149.60 | E35: 3110.20 | F35: 3076.75 | G35: 3037.35 | H35: 3183.05 | I35: 3222.45 | J35: 3255.90 | K35: 3189 | L35: 3116.15 | M35: 23.40489
A36: 27 | B36: ASTRAL | C36: 2197.7 | D36: 2174.93 | E36: 2142.77 | F36: 2087.83 | G36: 2055.67 | H36: 2229.87 | I36: 2262.03 | J36: 2316.97 | K36: 2207.1 | L36: 2120 | M36: 3.89254
A37: 28 | B37: AUROPHARMA | C37: 660.25 | D37: 660.37 | E37: 648.48 | F37: 636.72 | G37: 624.83 | H37: 672.13 | I37: 684.02 | J37: 695.78 | K37: 672.25 | L37: 648.6 | M37: 27.93791
A38: 29 | B38: DMART | C38: 4710.9 | D38: 4723.97 | E38: 4647.93 | F38: 4584.97 | G38: 4508.93 | H38: 4786.93 | I38: 4862.97 | J38: 4925.93 | K38: 4800 | L38: 4661 | M38: 7.90479
A39: 30 | B39: AXISBANK | C39: 655.65 | D39: 660.37 | E39: 643.28 | F39: 630.92 | G39: 613.83 | H39: 672.73 | I39: 689.82 | J39: 702.18 | K39: 677.45 | L39: 648 | M39: 246.99809
A40: 31 | B40: BAJAJ-AUTO | C40: 3240.3 | D40: 3262.10 | E40: 3201.25 | F40: 3162.20 | G40: 3101.35 | H40: 3301.15 | I40: 3362.00 | J40: 3401.05 | K40: 3322.95 | L40: 3223.05 | M40: 6.82518
A41: 32 | B41: BAJFINANCE | C41: 6997.25 | D41: 7015.43 | E41: 6831.07 | F41: 6664.88 | G41: 6480.52 | H41: 7181.62 | I41: 7365.98 | J41: 7532.17 | K41: 7199.8 | L41: 6849.25 | M41: 21.95539
A42: 33 | B42: BAJAJFINSV | C42: 17237.35 | D42: 17205.78 | E42: 16911.57 | F42: 16585.78 | G42: 16291.57 | H42: 17531.57 | I42: 17825.78 | J42: 18151.57 | K42: 17500 | L42: 16880 | M42: 4.58642
A43: 34 | B43: BAJAJHLDNG | C43: 5037.8 | D43: 5028.07 | E43: 4976.13 | F43: 4914.47 | G43: 4862.53 | H43: 5089.73 | I43: 5141.67 | J43: 5203.33 | K43: 5080 | L43: 4966.4 | M43: 0.26991
A44: 35 | B44: BALKRISIND | C44: 2174.75 | D44: 2192.25 | E44: 2144.50 | F44: 2114.25 | G44: 2066.50 | H44: 2222.50 | I44: 2270.25 | J44: 2300.50 | K44: 2240 | L44: 2162 | M44: 5.54262
A45: 36 | B45: BANDHANBNK | C45: 272.45 | D45: 274.92 | E45: 266.53 | F45: 260.62 | G45: 252.23 | H45: 280.83 | I45: 289.22 | J45: 295.13 | K45: 283.3 | L45: 269 | M45: 161.81268
A46: 37 | B46: BANKBARODA | C46: 85.75 | D46: 86.57 | E46: 84.38 | F46: 83.02 | G46: 80.83 | H46: 87.93 | I46: 90.12 | J46: 91.48 | K46: 88.75 | L46: 85.2 | M46: 301.42735
A47: 38 | B47: BANKINDIA | C47: 54.3 | D47: 54.92 | E47: 53.48 | F47: 52.67 | G47: 51.23 | H47: 55.73 | I47: 57.17 | J47: 57.98 | K47: 56.35 | L47: 54.1 | M47: 49.18548
A48: 39 | B48: BATAINDIA | C48: 1878.2 | D48: 1897.28 | E48: 1849.57 | F48: 1820.93 | G48: 1773.22 | H48: 1925.92 | I48: 1973.63 | J48: 2002.27 | K48: 1945 | L48: 1868.65 | M48: 2.63424
A49: 40 | B49: BERGEPAINT | C49: 751.75 | D49: 753.30 | E49: 737.65 | F49: 723.55 | G49: 707.90 | H49: 767.40 | I49: 783.05 | J49: 797.15 | K49: 768.95 | L49: 739.2 | M49: 31.06916
A50: 41 | B50: BEL | C50: 203.75 | D50: 202.08 | E50: 198.87 | F50: 193.98 | G50: 190.77 | H50: 206.97 | I50: 210.18 | J50: 215.07 | K50: 205.3 | L50: 197.2 | M50: 107.58021
A51: 42 | B51: BHARATFORG | C51: 693.65 | D51: 700.15 | E51: 682.65 | F51: 671.65 | G51: 654.15 | H51: 711.15 | I51: 728.65 | J51: 739.65 | K51: 717.65 | L51: 689.15 | M51: 25.84353
A52: 43 | B52: BHEL | C52: 58.9 | D52: 59.07 | E52: 57.43 | F52: 55.97 | G52: 54.33 | H52: 60.53 | I52: 62.17 | J52: 63.63 | K52: 60.7 | L52: 57.6 | M52: 392.89768
A53: 44 | B53: BPCL | C53: 370 | D53: 372.50 | E53: 365.50 | F53: 361.00 | G53: 354.00 | H53: 377.00 | I53: 384.00 | J53: 388.50 | K53: 379.5 | L53: 368 | M53: 91.96735
A54: 45 | B54: BHARTIARTL | C54: 728.25 | D54: 733.70 | E54: 717.20 | F54: 706.15 | G54: 689.65 | H54: 744.75 | I54: 761.25 | J54: 772.30 | K54: 750.2 | L54: 722.65 | M54: 142.72616
A55: 46 | B55: BIOCON | C55: 360.4 | D55: 362.97 | E55: 354.98 | F55: 349.57 | G55: 341.58 | H55: 368.38 | I55: 376.37 | J55: 381.78 | K55: 370.95 | L55: 357.55 | M55: 41.31254
A56: 47 | B56: BOSCHLTD | C56: 16168.5 | D56: 16301.47 | E56: 15937.98 | F56: 15707.47 | G56: 15343.98 | H56: 16531.98 | I56: 16895.47 | J56: 17125.98 | K56: 16664.95 | L56: 16070.95 | M56: 0.33552
A57: 48 | B57: BRITANNIA | C57: 3545.5 | D57: 3537.20 | E57: 3509.40 | F57: 3473.30 | G57: 3445.50 | H57: 3573.30 | I57: 3601.10 | J57: 3637.20 | K57: 3565 | L57: 3501.1 | M57: 6.33377
A58: 49 | B58: CADILAHC | C58: 465.25 | D58: 463.05 | E58: 453.20 | F58: 441.15 | G58: 431.30 | H58: 475.10 | I58: 484.95 | J58: 497.00 | K58: 472.9 | L58: 451 | M58: 39.45304
A59: 50 | B59: CANBK | C59: 199.15 | D59: 201.05 | E59: 195.60 | F59: 192.05 | G59: 186.60 | H59: 204.60 | I59: 210.05 | J59: 213.60 | K59: 206.5 | L59: 197.5 | M59: 136.02139
A60: 51 | B60: CASTROLIND | C60: 129.25 | D60: 128.07 | E60: 125.18 | F60: 121.12 | G60: 118.23 | H60: 132.13 | I60: 135.02 | J60: 139.08 | K60: 130.95 | L60: 124 | M60: 15.25053
A61: 52 | B61: CHOLAFIN | C61: 550.5 | D61: 551.85 | E61: 538.65 | F61: 526.80 | G61: 513.60 | H61: 563.70 | I61: 576.90 | J61: 588.75 | K61: 565.05 | L61: 540 | M61: 35.25992
A62: 53 | B62: CIPLA | C62: 971.3 | D62: 971.30 | E62: 958.60 | F62: 945.90 | G62: 933.20 | H62: 984.00 | I62: 996.70 | J62: 1009.40 | K62: 984 | L62: 958.6 | M62: 47.71579
A63: 54 | B63: CUB | C63: 144.7 | D63: 145.58 | E63: 143.17 | F63: 141.63 | G63: 139.22 | H63: 147.12 | I63: 149.53 | J63: 151.07 | K63: 148 | L63: 144.05 | M63: 20.91998
A64: 55 | B64: COALINDIA | C64: 152 | D64: 153.95 | E64: 149.40 | F64: 146.80 | G64: 142.25 | H64: 156.55 | I64: 161.10 | J64: 163.70 | K64: 158.5 | L64: 151.35 | M64: 566.43275
A65: 56 | B65: COFORGE | C65: 5431.6 | D65: 5395.90 | E65: 5321.80 | F65: 5212.00 | G65: 5137.90 | H65: 5505.70 | I65: 5579.80 | J65: 5689.60 | K65: 5470 | L65: 5286.1 | M65: 3.73233
A66: 57 | B66: COLPAL | C66: 1434.35 | D66: 1441.53 | E66: 1413.82 | F66: 1393.28 | G66: 1365.57 | H66: 1462.07 | I66: 1489.78 | J66: 1510.32 | K66: 1469.25 | L66: 1421 | M66: 15.59824
A67: 58 | B67: CONCOR | C67: 620 | D67: 615.57 | E67: 603.78 | F67: 587.57 | G67: 575.78 | H67: 631.78 | I67: 643.57 | J67: 659.78 | K67: 627.35 | L67: 599.35 | M67: 40.36435
A68: 59 | B68: COROMANDEL | C68: 740.2 | D68: 738.03 | E68: 732.22 | F68: 724.23 | G68: 718.42 | H68: 746.02 | I68: 751.83 | J68: 759.82 | K68: 743.85 | L68: 730.05 | M68: 3.31663
A69: 60 | B69: CROMPTON | C69: 448.25 | D69: 450.13 | E69: 438.12 | F69: 427.98 | G69: 415.97 | H69: 460.27 | I69: 472.28 | J69: 482.42 | K69: 462.15 | L69: 440 | M69: 18.29211
A70: 61 | B70: CUMMINSIND | C70: 878.5 | D70: 883.42 | E70: 868.08 | F70: 857.67 | G70: 842.33 | H70: 893.83 | I70: 909.17 | J70: 919.58 | K70: 898.75 | L70: 873 | M70: 4.07386
A71: 62 | B71: DLF | C71: 374.8 | D71: 379.18 | E71: 367.62 | F71: 360.43 | G71: 348.87 | H71: 386.37 | I71: 397.93 | J71: 405.12 | K71: 390.75 | L71: 372 | M71: 99.84396
A72: 63 | B72: DABUR | C72: 594.95 | D72: 596.50 | E72: 590.50 | F72: 586.05 | G72: 580.05 | H72: 600.95 | I72: 606.95 | J72: 611.40 | K72: 602.5 | L72: 592.05 | M72: 52.19689
A73: 64 | B73: DALBHARAT | C73: 1873.4 | D73: 1875.63 | E73: 1840.27 | F73: 1807.13 | G73: 1771.77 | H73: 1908.77 | I73: 1944.13 | J73: 1977.27 | K73: 1911 | L73: 1842.5 | M73: 1.35212
A74: 65 | B74: DEEPAKNTR | C74: 2119.4 | D74: 2119.58 | E74: 2081.87 | F74: 2044.33 | G74: 2006.62 | H74: 2157.12 | I74: 2194.83 | J74: 2232.37 | K74: 2157.3 | L74: 2082.05 | M74: 7.47103
A75: 66 | B75: DHANI | C75: 165.4 | D75: 165.37 | E75: 161.73 | F75: 158.07 | G75: 154.43 | H75: 169.03 | I75: 172.67 | J75: 176.33 | K75: 169 | L75: 161.7 | M75: 22.88199
A76: 67 | B76: DIVISLAB | C76: 4878.8 | D76: 4889.55 | E76: 4829.40 | F76: 4780.00 | G76: 4719.85 | H76: 4938.95 | I76: 4999.10 | J76: 5048.50 | K76: 4949.7 | L76: 4840.15 | M76: 8.64073
A77: 68 | B77: DIXON | C77: 5100.7 | D77: 5093.90 | E77: 5012.80 | F77: 4924.90 | G77: 4843.80 | H77: 5181.80 | I77: 5262.90 | J77: 5350.80 | K77: 5175 | L77: 5006 | M77: 4.31979
A78: 69 | B78: LALPATHLAB | C78: 3789.45 | D78: 3789.73 | E78: 3656.07 | F78: 3522.68 | G78: 3389.02 | H78: 3923.12 | I78: 4056.78 | J78: 4190.17 | K78: 3923.4 | L78: 3656.35 | M78: 8.21457
A79: 70 | B79: DRREDDY | C79: 4675.85 | D79: 4691.37 | E79: 4634.48 | F79: 4593.12 | G79: 4536.23 | H79: 4732.73 | I79: 4789.62 | J79: 4830.98 | K79: 4748.25 | L79: 4650 | M79: 7.17823
A80: 71 | B80: EICHERMOT | C80: 2370.45 | D80: 2392.48 | E80: 2337.97 | F80: 2305.48 | G80: 2250.97 | H80: 2424.97 | I80: 2479.48 | J80: 2511.97 | K80: 2447 | L80: 2360 | M80: 11.01715
A81: 72 | B81: EMAMILTD | C81: 527.05 | D81: 521.77 | E81: 511.53 | F81: 496.02 | G81: 485.78 | H81: 537.28 | I81: 547.52 | J81: 563.03 | K81: 532 | L81: 506.25 | M81: 3.6974
A82: 73 | B82: ENDURANCE | C82: 1667.8 | D82: 1696.73 | E82: 1602.07 | F82: 1536.33 | G82: 1441.67 | H82: 1762.47 | I82: 1857.13 | J82: 1922.87 | K82: 1791.4 | L82: 1631 | M82: 2.42278
A83: 74 | B83: ESCORTS | C83: 1846.3 | D83: 1854.38 | E83: 1828.77 | F83: 1811.23 | G83: 1785.62 | H83: 1871.92 | I83: 1897.53 | J83: 1915.07 | K83: 1880 | L83: 1836.85 | M83: 12.80247
A84: 75 | B84: EXIDEIND | C84: 162.8 | D84: 163.90 | E84: 160.90 | F84: 159.00 | G84: 156.00 | H84: 165.80 | I84: 168.80 | J84: 170.70 | K84: 166.9 | L84: 162 | M84: 20.39097
A85: 76 | B85: FEDERALBNK | C85: 86.8 | D85: 87.75 | E85: 85.30 | F85: 83.80 | G85: 81.35 | H85: 89.25 | I85: 91.70 | J85: 93.20 | K85: 90.2 | L85: 86.25 | M85: 202.66746
A86: 77 | B86: FORTIS | C86: 280.8 | D86: 284.23 | E86: 275.57 | F86: 270.33 | G86: 261.67 | H86: 289.47 | I86: 298.13 | J86: 303.37 | K86: 292.9 | L86: 279 | M86: 26.35994
A87: 78 | B87: GAIL | C87: 129.8 | D87: 131.15 | E87: 127.60 | F87: 125.40 | G87: 121.85 | H87: 133.35 | I87: 136.90 | J87: 139.10 | K87: 134.7 | L87: 128.95 | M87: 125.61833
A88: 79 | B88: GMRINFRA | C88: 37.6 | D88: 38.12 | E88: 36.83 | F88: 36.07 | G88: 34.78 | H88: 38.88 | I88: 40.17 | J88: 40.93 | K88: 39.4 | L88: 37.35 | M88: 237.93738
A89: 80 | B89: GLAND | C89: 3585.35 | D89: 3601.40 | E89: 3517.80 | F89: 3450.25 | G89: 3366.65 | H89: 3668.95 | I89: 3752.55 | J89: 3820.10 | K89: 3685 | L89: 3533.85 | M89: 2.31762
A90: 81 | B90: GLENMARK | C90: 523.8 | D90: 521.18 | E90: 512.37 | F90: 500.93 | G90: 492.12 | H90: 532.62 | I90: 541.43 | J90: 552.87 | K90: 530 | L90: 509.75 | M90: 15.97879
A91: 82 | B91: GODREJCP | C91: 923.1 | D91: 922.68 | E91: 914.02 | F91: 904.93 | G91: 896.27 | H91: 931.77 | I91: 940.43 | J91: 949.52 | K91: 931.35 | L91: 913.6 | M91: 22.53997
A92: 83 | B92: GODREJIND | C92: 569.3 | D92: 576.13 | E92: 553.27 | F92: 537.23 | G92: 514.37 | H92: 592.17 | I92: 615.03 | J92: 631.07 | K92: 599 | L92: 560.1 | M92: 1.78301
A93: 84 | B93: GODREJPROP | C93: 1996.7 | D93: 2043.22 | E93: 1913.48 | F93: 1830.27 | G93: 1700.53 | H93: 2126.43 | I93: 2256.17 | J93: 2339.38 | K93: 2172.95 | L93: 1960 | M93: 150.91293
A94: 85 | B94: GRASIM | C94: 1662.45 | D94: 1674.13 | E94: 1638.62 | F94: 1614.78 | G94: 1579.27 | H94: 1697.97 | I94: 1733.48 | J94: 1757.32 | K94: 1709.65 | L94: 1650.3 | M94: 16.43449
A95: 86 | B95: GUJGASLTD | C95: 669.95 | D95: 668.15 | E95: 657.95 | F95: 645.95 | G95: 635.75 | H95: 680.15 | I95: 690.35 | J95: 702.35 | K95: 678.35 | L95: 656.15 | M95: 10.41053
A96: 87 | B96: GSPL | C96: 313.3 | D96: 311.62 | E96: 302.43 | F96: 291.57 | G96: 282.38 | H96: 322.48 | I96: 331.67 | J96: 342.53 | K96: 320.8 | L96: 300.75 | M96: 24.66802
A97: 88 | B97: HCLTECH | C97: 1138.65 | D97: 1143.18 | E97: 1128.47 | F97: 1118.28 | G97: 1103.57 | H97: 1153.37 | I97: 1168.08 | J97: 1178.27 | K97: 1157.9 | L97: 1133 | M97: 74.21904
A98: 89 | B98: HDFCAMC | C98: 2511.3 | D98: 2527.98 | E98: 2483.32 | F98: 2455.33 | G98: 2410.67 | H98: 2555.97 | I98: 2600.63 | J98: 2628.62 | K98: 2572.65 | L98: 2500 | M98: 5.53802
A99: 90 | B99: HDFCBANK | C99: 1493.55 | D99: 1503.03 | E99: 1477.07 | F99: 1460.58 | G99: 1434.62 | H99: 1519.52 | I99: 1545.48 | J99: 1561.97 | K99: 1529 | L99: 1486.55 | M99: 126.10771
A100: 91 | B100: HDFCLIFE | C100: 680.8 | D100: 681.07 | E100: 672.38 | F100: 663.97 | G100: 655.28 | H100: 689.48 | I100: 698.17 | J100: 706.58 | K100: 689.75 | L100: 672.65 | M100: 115.35239
A101: 92 | B101: HAVELLS | C101: 1360.35 | D101: 1364.77 | E101: 1319.58 | F101: 1278.82 | G101: 1233.63 | H101: 1405.53 | I101: 1450.72 | J101: 1491.48 | K101: 1409.95 | L101: 1324 | M101: 66.045
A102: 93 | B102: HEROMOTOCO | C102: 2449.3 | D102: 2462.00 | E102: 2411.35 | F102: 2373.40 | G102: 2322.75 | H102: 2499.95 | I102: 2550.60 | J102: 2588.55 | K102: 2512.65 | L102: 2424.05 | M102: 15.27406
A103: 94 | B103: HINDALCO | C103: 412.75 | D103: 417.58 | E103: 405.17 | F103: 397.58 | G103: 385.17 | H103: 425.17 | I103: 437.58 | J103: 445.17 | K103: 430 | L103: 410 | M103: 148.50682
A104: 95 | B104: HAL | C104: 1276.9 | D104: 1286.00 | E104: 1261.00 | F104: 1245.10 | G104: 1220.10 | H104: 1301.90 | I104: 1326.90 | J104: 1342.80 | K104: 1311 | L104: 1270.1 | M104: 4.19921
A105: 96 | B105: HINDCOPPER | C105: 111.35 | D105: 112.12 | E105: 109.58 | F105: 107.82 | G105: 105.28 | H105: 113.88 | I105: 116.42 | J105: 118.18 | K105: 114.65 | L105: 110.35 | M105: 21.59854
A106: 97 | B106: HINDPETRO | C106: 295.1 | D106: 301.53 | E106: 286.67 | F106: 278.23 | G106: 263.37 | H106: 309.97 | I106: 324.83 | J106: 333.27 | K106: 316.4 | L106: 293.1 | M106: 60.09043
A107: 98 | B107: HINDUNILVR | C107: 2317.55 | D107: 2326.85 | E107: 2292.70 | F107: 2267.85 | G107: 2233.70 | H107: 2351.70 | I107: 2385.85 | J107: 2410.70 | K107: 2361 | L107: 2302 | M107: 39.31035
A108: 99 | B108: HINDZINC | C108: 333.05 | D108: 330.97 | E108: 328.03 | F108: 323.02 | G108: 320.08 | H108: 335.98 | I108: 338.92 | J108: 343.93 | K108: 333.9 | L108: 325.95 | M108: 12.91897
A109: 100 | B109: HDFC | C109: 2673.1 | D109: 2698.00 | E109: 2631.10 | F109: 2589.10 | G109: 2522.20 | H109: 2740.00 | I109: 2806.90 | J109: 2848.90 | K109: 2764.9 | L109: 2656 | M109: 76.28539
A110: 101 | B110: ICICIBANK | C110: 714.35 | D110: 719.25 | E110: 706.20 | F110: 698.05 | G110: 685.00 | H110: 727.40 | I110: 740.45 | J110: 748.60 | K110: 732.3 | L110: 711.1 | M110: 239.65914
A111: 102 | B111: ICICIGI | C111: 1437.35 | D111: 1438.93 | E111: 1423.57 | F111: 1409.78 | G111: 1394.42 | H111: 1452.72 | I111: 1468.08 | J111: 1481.87 | K111: 1454.3 | L111: 1425.15 | M111: 14.28578
A112: 103 | B112: ICICIPRULI | C112: 593.05 | D112: 593.67 | E112: 584.38 | F112: 575.72 | G112: 566.43 | H112: 602.33 | I112: 611.62 | J112: 620.28 | K112: 602.95 | L112: 585 | M112: 22.8271
A113: 104 | B113: ISEC | C113: 732 | D113: 736.45 | E113: 710.60 | F113: 689.20 | G113: 663.35 | H113: 757.85 | I113: 783.70 | J113: 805.10 | K113: 762.3 | L113: 715.05 | M113: 5.64121
A114: 105 | B114: IDFCFIRSTB | C114: 44.6 | D114: 45.12 | E114: 43.93 | F114: 43.27 | G114: 42.08 | H114: 45.78 | I114: 46.97 | J114: 47.63 | K114: 46.3 | L114: 44.45 | M114: 284.92638
A115: 106 | B115: ITC | C115: 221.15 | D115: 222.12 | E115: 219.03 | F115: 216.92 | G115: 213.83 | H115: 224.23 | I115: 227.32 | J115: 229.43 | K115: 225.2 | L115: 220 | M115: 235.03453
A116: 107 | B116: INDIAMART | C116: 7459.9 | D116: 7433.30 | E116: 7366.60 | F116: 7273.30 | G116: 7206.60 | H116: 7526.60 | I116: 7593.30 | J116: 7686.60 | K116: 7500 | L116: 7340 | M116: 0.996
A117: 108 | B117: INDIANB | C117: 142.8 | D117: 144.22 | E117: 139.58 | F117: 136.37 | G117: 131.73 | H117: 147.43 | I117: 152.07 | J117: 155.28 | K117: 148.85 | L117: 141 | M117: 25.78728
A118: 109 | B118: INDHOTEL | C118: 180.3 | D118: 179.75 | E118: 173.70 | F118: 167.10 | G118: 161.05 | H118: 186.35 | I118: 192.40 | J118: 199.00 | K118: 185.8 | L118: 173.15 | M118: 258.48702
A119: 110 | B119: IOC | C119: 118.95 | D119: 119.23 | E119: 117.57 | F119: 116.18 | G119: 114.52 | H119: 120.62 | I119: 122.28 | J119: 123.67 | K119: 120.9 | L119: 117.85 | M119: 183.75929
A120: 111 | B120: IRCTC | C120: 795.15 | D120: 800.88 | E120: 781.87 | F120: 768.58 | G120: 749.57 | H120: 814.17 | I120: 833.18 | J120: 846.47 | K120: 819.9 | L120: 787.6 | M120: 371.76726
A121: 112 | B121: IRFC | C121: 23.25 | D121: 23.33 | E121: 23.07 | F121: 22.88 | G121: 22.62 | H121: 23.52 | I121: 23.78 | J121: 23.97 | K121: 23.6 | L121: 23.15 | M121: 42.71236
A122: 113 | B122: IGL | C122: 484.25 | D122: 484.63 | E122: 479.37 | F122: 474.48 | G122: 469.22 | H122: 489.52 | I122: 494.78 | J122: 499.67 | K122: 489.9 | L122: 479.75 | M122: 26.00828
A123: 114 | B123: INDUSTOWER | C123: 284.45 | D123: 283.08 | E123: 279.97 | F123: 275.48 | G123: 272.37 | H123: 287.57 | I123: 290.68 | J123: 295.17 | K123: 286.2 | L123: 278.6 | M123: 62.3626
A124: 115 | B124: INDUSINDBK | C124: 883 | D124: 895.40 | E124: 863.30 | F124: 843.60 | G124: 811.50 | H124: 915.10 | I124: 947.20 | J124: 966.90 | K124: 927.5 | L124: 875.7 | M124: 69.64145
A125: 116 | B125: NAUKRI | C125: 5805.05 | D125: 5835.42 | E125: 5709.63 | F125: 5614.22 | G125: 5488.43 | H125: 5930.83 | I125: 6056.62 | J125: 6152.03 | K125: 5961.2 | L125: 5740 | M125: 5.77615
A126: 117 | B126: INFY | C126: 1712.65 | D126: 1714.20 | E126: 1698.50 | F126: 1684.35 | G126: 1668.65 | H126: 1728.35 | I126: 1744.05 | J126: 1758.20 | K126: 1729.9 | L126: 1700.05 | M126: 148.08963
A127: 118 | B127: INDIGO | C127: 1905.05 | D127: 1921.40 | E127: 1874.80 | F127: 1844.55 | G127: 1797.95 | H127: 1951.65 | I127: 1998.25 | J127: 2028.50 | K127: 1968 | L127: 1891.15 | M127: 24.30528
A128: 119 | B128: IPCALAB | C128: 2100.2 | D128: 2096.07 | E128: 2035.13 | F128: 1970.07 | G128: 1909.13 | H128: 2161.13 | I128: 2222.07 | J128: 2287.13 | K128: 2157 | L128: 2031 | M128: 104.31844
A129: 120 | B129: JSWENERGY | C129: 287.3 | D129: 291.02 | E129: 277.28 | F129: 267.27 | G129: 253.53 | H129: 301.03 | I129: 314.77 | J129: 324.78 | K129: 304.75 | L129: 281 | M129: 59.70436
A130: 121 | B130: JSWSTEEL | C130: 608.4 | D130: 615.10 | E130: 597.60 | F130: 586.80 | G130: 569.30 | H130: 625.90 | I130: 643.40 | J130: 654.20 | K130: 632.6 | L130: 604.3 | M130: 66.06473
A131: 122 | B131: JINDALSTEL | C131: 343.55 | D131: 347.98 | E131: 337.07 | F131: 330.58 | G131: 319.67 | H131: 354.47 | I131: 365.38 | J131: 371.87 | K131: 358.9 | L131: 341.5 | M131: 74.86278
A132: 123 | B132: JUBLFOOD | C132: 3651 | D132: 3675.58 | E132: 3606.42 | F132: 3561.83 | G132: 3492.67 | H132: 3720.17 | I132: 3789.33 | J132: 3833.92 | K132: 3744.75 | L132: 3631 | M132: 4.7882
A133: 124 | B133: KOTAKBANK | C133: 1961.9 | D133: 1982.80 | E133: 1926.00 | F133: 1890.10 | G133: 1833.30 | H133: 2018.70 | I133: 2075.50 | J133: 2111.40 | K133: 2039.6 | L133: 1946.9 | M133: 42.65816
A134: 125 | B134: L&TFH | C134: 75.25 | D134: 75.48 | E134: 73.27 | F134: 71.28 | G134: 69.07 | H134: 77.47 | I134: 79.68 | J134: 81.67 | K134: 77.7 | L134: 73.5 | M134: 120.86521
A135: 126 | B135: LTTS | C135: 5279.4 | D135: 5310.32 | E135: 5169.63 | F135: 5059.87 | G135: 4919.18 | H135: 5420.08 | I135: 5560.77 | J135: 5670.53 | K135: 5451 | L135: 5200.55 | M135: 4.35424
A136: 127 | B136: LICHSGFIN | C136: 372.1 | D136: 376.12 | E136: 366.98 | F136: 361.87 | G136: 352.73 | H136: 381.23 | I136: 390.37 | J136: 395.48 | K136: 385.25 | L136: 371 | M136: 24.02727
A137: 128 | B137: LTI | C137: 6809.7 | D137: 6838.30 | E137: 6726.65 | F137: 6643.60 | G137: 6531.95 | H137: 6921.35 | I137: 7033.00 | J137: 7116.05 | K137: 6949.95 | L137: 6755.25 | M137: 2.99419
A138: 129 | B138: LT | C138: 1764.75 | D138: 1771.65 | E138: 1744.40 | F138: 1724.05 | G138: 1696.80 | H138: 1792.00 | I138: 1819.25 | J138: 1839.60 | K138: 1798.9 | L138: 1751.3 | M138: 33.85628
A139: 130 | B139: LAURUSLABS | C139: 508.65 | D139: 508.83 | E139: 496.02 | F139: 483.38 | G139: 470.57 | H139: 521.47 | I139: 534.28 | J139: 546.92 | K139: 521.65 | L139: 496.2 | M139: 35.38635
A140: 131 | B140: LUPIN | C140: 884.4 | D140: 886.77 | E140: 874.78 | F140: 865.17 | G140: 853.18 | H140: 896.38 | I140: 908.37 | J140: 917.98 | K140: 898.75 | L140: 877.15 | M140: 18.86499
A141: 132 | B141: MRF | C141: 74630.8 | D141: 74722.60 | E141: 73449.20 | F141: 72267.60 | G141: 70994.20 | H141: 75904.20 | I141: 77177.60 | J141: 78359.20 | K141: 75996 | L141: 73541 | M141: 0.25947
A142: 133 | B142: MGL | C142: 917.3 | D142: 923.10 | E142: 909.25 | F142: 901.20 | G142: 887.35 | H142: 931.15 | I142: 945.00 | J142: 953.05 | K142: 936.95 | L142: 915.05 | M142: 2.7829
A143: 134 | B143: M&MFIN | C143: 155.2 | D143: 156.68 | E143: 153.37 | F143: 151.53 | G143: 148.22 | H143: 158.52 | I143: 161.83 | J143: 163.67 | K143: 160 | L143: 154.85 | M143: 39.91298
A144: 135 | B144: M&M | C144: 835.5 | D144: 841.62 | E144: 822.43 | F144: 809.37 | G144: 790.18 | H144: 854.68 | I144: 873.87 | J144: 886.93 | K144: 860.8 | L144: 828.55 | M144: 60.67618
A145: 136 | B145: MANAPPURAM | C145: 163.45 | D145: 165.20 | E145: 160.75 | F145: 158.05 | G145: 153.60 | H145: 167.90 | I145: 172.35 | J145: 175.05 | K145: 169.65 | L145: 162.5 | M145: 48.27594
A146: 137 | B146: MARICO | C146: 538.35 | D146: 537.50 | E146: 530.90 | F146: 523.45 | G146: 516.85 | H146: 544.95 | I146: 551.55 | J146: 559.00 | K146: 544.1 | L146: 530.05 | M146: 47.60651
A147: 138 | B147: MARUTI | C147: 7067.8 | D147: 7111.12 | E147: 6972.23 | F147: 6876.67 | G147: 6737.78 | H147: 7206.68 | I147: 7345.57 | J147: 7441.13 | K147: 7250 | L147: 7015.55 | M147: 12.87938
A148: 139 | B148: MFSL | C148: 940.25 | D148: 941.75 | E148: 924.75 | F148: 909.25 | G148: 892.25 | H148: 957.25 | I148: 974.25 | J148: 989.75 | K148: 958.75 | L148: 926.25 | M148: 4.62327
A149: 140 | B149: MINDTREE | C149: 4328.55 | D149: 4412.25 | E149: 4155.75 | F149: 3982.95 | G149: 3726.45 | H149: 4585.05 | I149: 4841.55 | J149: 5014.35 | K149: 4668.75 | L149: 4239.45 | M149: 89.17462
A150: 141 | B150: MPHASIS | C150: 2895.15 | D150: 2942.13 | E150: 2778.02 | F150: 2660.88 | G150: 2496.77 | H150: 3059.27 | I150: 3223.38 | J150: 3340.52 | K150: 3106.25 | L150: 2825 | M150: 112.6291
A151: 142 | B151: MUTHOOTFIN | C151: 1426.2 | D151: 1434.15 | E151: 1409.30 | F151: 1392.40 | G151: 1367.55 | H151: 1451.05 | I151: 1475.90 | J151: 1492.80 | K151: 1459 | L151: 1417.25 | M151: 15.29711
A152: 143 | B152: NATCOPHARM | C152: 837.6 | D152: 830.57 | E152: 817.18 | F152: 796.77 | G152: 783.38 | H152: 850.98 | I152: 864.37 | J152: 884.78 | K152: 843.95 | L152: 810.15 | M152: 1.61205
A153: 144 | B153: NMDC | C153: 132.85 | D153: 134.32 | E153: 130.93 | F153: 129.02 | G153: 125.63 | H153: 136.23 | I153: 139.62 | J153: 141.53 | K153: 137.7 | L153: 132.4 | M153: 75.21233
A154: 145 | B154: NTPC | C154: 127.25 | D154: 127.13 | E154: 124.82 | F154: 122.38 | G154: 120.07 | H154: 129.57 | I154: 131.88 | J154: 134.32 | K154: 129.45 | L154: 124.7 | M154: 228.83512
A155: 146 | B155: NATIONALUM | C155: 88.35 | D155: 89.17 | E155: 87.18 | F155: 86.02 | G155: 84.03 | H155: 90.33 | I155: 92.32 | J155: 93.48 | K155: 91.15 | L155: 88 | M155: 288.99483
A156: 147 | B156: NAVINFLUOR | C156: 3741 | D156: 3680.00 | E156: 3581.00 | F156: 3421.00 | G156: 3322.00 | H156: 3840.00 | I156: 3939.00 | J156: 4099.00 | K156: 3779 | L156: 3520 | M156: 6.638
A157: 148 | B157: NESTLEIND | C157: 19152.55 | D157: 19170.97 | E157: 18917.03 | F157: 18681.52 | G157: 18427.58 | H157: 19406.48 | I157: 19660.42 | J157: 19895.93 | K157: 19424.9 | L157: 18935.45 | M157: 1.6978
A158: 149 | B158: NAM-INDIA | C158: 366.3 | D158: 368.88 | E158: 361.77 | F158: 357.23 | G158: 350.12 | H158: 373.42 | I158: 380.53 | J158: 385.07 | K158: 376 | L158: 364.35 | M158: 3.48497
A159: 150 | B159: OBEROIRLTY | C159: 832.75 | D159: 836.00 | E159: 816.30 | F159: 799.85 | G159: 780.15 | H159: 852.45 | I159: 872.15 | J159: 888.60 | K159: 855.7 | L159: 819.55 | M159: 19.02499
A160: 151 | B160: ONGC | C160: 142.1 | D160: 143.65 | E160: 139.55 | F160: 137.00 | G160: 132.90 | H160: 146.20 | I160: 150.30 | J160: 152.85 | K160: 147.75 | L160: 141.1 | M160: 229.80651
A161: 152 | B161: OIL | C161: 211.65 | D161: 209.63 | E161: 205.17 | F161: 198.68 | G161: 194.22 | H161: 216.12 | I161: 220.58 | J161: 227.07 | K161: 214.1 | L161: 203.15 | M161: 18.9197
A162: 153 | B162: PIIND | C162: 2869.5 | D162: 2914.40 | E162: 2797.80 | F162: 2726.10 | G162: 2609.50 | H162: 2986.10 | I162: 3102.70 | J162: 3174.40 | K162: 3031 | L162: 2842.7 | M162: 7.89349
A163: 154 | B163: PAGEIND | C163: 38390.9 | D163: 38496.98 | E163: 37993.97 | F163: 37597.03 | G163: 37094.02 | H163: 38893.92 | I163: 39396.93 | J163: 39793.87 | K163: 39000 | L163: 38100.05 | M163: 0.55074
A164: 155 | B164: PETRONET | C164: 219.85 | D164: 220.23 | E164: 217.62 | F164: 215.38 | G164: 212.77 | H164: 222.47 | I164: 225.08 | J164: 227.32 | K164: 222.85 | L164: 218 | M164: 48.15172
A165: 156 | B165: PFIZER | C165: 5196.45 | D165: 5197.48 | E165: 5103.97 | F165: 5011.48 | G165: 4917.97 | H165: 5289.97 | I165: 5383.48 | J165: 5475.97 | K165: 5291 | L165: 5105 | M165: 0.74188
A166: 157 | B166: PIDILITIND | C166: 2205.85 | D166: 2216.40 | E166: 2182.85 | F166: 2159.85 | G166: 2126.30 | H166: 2239.40 | I166: 2272.95 | J166: 2295.95 | K166: 2249.95 | L166: 2193.4 | M166: 15.64828
A167: 158 | B167: PEL | C167: 2418.35 | D167: 2435.77 | E167: 2363.33 | F167: 2308.32 | G167: 2235.88 | H167: 2490.78 | I167: 2563.22 | J167: 2618.23 | K167: 2508.2 | L167: 2380.75 | M167: 13.4087
A168: 159 | B168: POLYCAB | C168: 2305.95 | D168: 2287.37 | E168: 2244.88 | F168: 2183.82 | G168: 2141.33 | H168: 2348.43 | I168: 2390.92 | J168: 2451.98 | K168: 2329.85 | L168: 2226.3 | M168: 4.85919
A169: 160 | B169: PFC | C169: 116.3 | D169: 117.32 | E169: 114.78 | F169: 113.27 | G169: 110.73 | H169: 118.83 | I169: 121.37 | J169: 122.88 | K169: 119.85 | L169: 115.8 | M169: 52.31194
A170: 161 | B170: POWERGRID | C170: 206.75 | D170: 205.52 | E170: 201.53 | F170: 196.32 | G170: 192.33 | H170: 210.73 | I170: 214.72 | J170: 219.93 | K170: 209.5 | L170: 200.3 | M170: 283.04736
A171: 162 | B171: PRESTIGE | C171: 421.75 | D171: 424.18 | E171: 411.57 | F171: 401.38 | G171: 388.77 | H171: 434.37 | I171: 446.98 | J171: 457.17 | K171: 436.8 | L171: 414 | M171: 11.38369
A172: 163 | B172: PGHH | C172: 15040.1 | D172: 14981.78 | E172: 14774.62 | F172: 14509.13 | G172: 14301.97 | H172: 15247.27 | I172: 15454.43 | J172: 15719.92 | K172: 15188.95 | L172: 14716.3 | M172: 0.11467
A173: 164 | B173: PNB | C173: 37.3 | D173: 37.62 | E173: 36.73 | F173: 36.17 | G173: 35.28 | H173: 38.18 | I173: 39.07 | J173: 39.63 | K173: 38.5 | L173: 37.05 | M173: 523.15588
A174: 165 | B174: RBLBANK | C174: 182.65 | D174: 185.93 | E174: 177.87 | F174: 173.08 | G174: 165.02 | H174: 190.72 | I174: 198.78 | J174: 203.57 | K174: 194 | L174: 181.15 | M174: 137.43325
A175: 166 | B175: RECLTD | C175: 134.55 | D175: 134.60 | E175: 127.80 | F175: 121.05 | G175: 114.25 | H175: 141.35 | I175: 148.15 | J175: 154.90 | K175: 141.4 | L175: 127.85 | M175: 1115.7505
A176: 167 | B176: RELIANCE | C176: 2405.4 | D176: 2423.38 | E176: 2370.87 | F176: 2336.33 | G176: 2283.82 | H176: 2457.92 | I176: 2510.43 | J176: 2544.97 | K176: 2475.9 | L176: 2388.85 | M176: 148.47511
A177: 168 | B177: SBICARD | C177: 950.5 | D177: 955.13 | E177: 935.37 | F177: 920.23 | G177: 900.47 | H177: 970.27 | I177: 990.03 | J177: 1005.17 | K177: 974.9 | L177: 940 | M177: 30.12653
A178: 169 | B178: SBILIFE | C178: 1160.55 | D178: 1154.20 | E178: 1140.50 | F178: 1120.45 | G178: 1106.75 | H178: 1174.25 | I178: 1187.95 | J178: 1208.00 | K178: 1167.9 | L178: 1134.15 | M178: 22.53521
A179: 170 | B179: SRF | C179: 2005.85 | D179: 2051.92 | E179: 1931.38 | F179: 1856.92 | G179: 1736.38 | H179: 2126.38 | I179: 2246.92 | J179: 2321.38 | K179: 2172.45 | L179: 1977.45 | M179: 190.73002
A180: 171 | B180: SANOFI | C180: 7941.4 | D180: 7997.10 | E180: 7844.30 | F180: 7747.20 | G180: 7594.40 | H180: 8094.20 | I180: 8247.00 | J180: 8344.10 | K180: 8149.9 | L180: 7900 | M180: 0.27537
A181: 172 | B181: SHREECEM | C181: 26102.25 | D181: 25927.73 | E181: 25505.47 | F181: 24908.68 | G181: 24486.42 | H181: 26524.52 | I181: 26946.78 | J181: 27543.57 | K181: 26350 | L181: 25330.95 | M181: 0.97672
A182: 173 | B182: SRTRANSFIN | C182: 1406.7 | D182: 1416.18 | E182: 1385.92 | F182: 1365.13 | G182: 1334.87 | H182: 1436.97 | I182: 1467.23 | J182: 1488.02 | K182: 1446.45 | L182: 1395.4 | M182: 17.68166
A183: 174 | B183: SIEMENS | C183: 2151.9 | D183: 2145.40 | E183: 2122.65 | F183: 2093.40 | G183: 2070.65 | H183: 2174.65 | I183: 2197.40 | J183: 2226.65 | K183: 2168.15 | L183: 2116.15 | M183: 5.15379
A184: 175 | B184: SBIN | C184: 460.55 | D184: 465.27 | E184: 453.28 | F184: 446.02 | G184: 434.03 | H184: 472.53 | I184: 484.52 | J184: 491.78 | K184: 477.25 | L184: 458 | M184: 230.26652
A185: 176 | B185: SAIL | C185: 100.05 | D185: 101.53 | E185: 97.77 | F185: 95.48 | G185: 91.72 | H185: 103.82 | I185: 107.58 | J185: 109.87 | K185: 105.3 | L185: 99.25 | M185: 503.48334
A186: 177 | B186: SUNPHARMA | C186: 753.6 | D186: 753.77 | E186: 745.88 | F186: 738.17 | G186: 730.28 | H186: 761.48 | I186: 769.37 | J186: 777.08 | K186: 761.65 | L186: 746.05 | M186: 55.05266
A187: 178 | B187: SUNTV | C187: 520.95 | D187: 524.75 | E187: 514.00 | F187: 507.05 | G187: 496.30 | H187: 531.70 | I187: 542.45 | J187: 549.40 | K187: 535.5 | L187: 517.8 | M187: 8.7595
A188: 179 | B188: SYNGENE | C188: 596.15 | D188: 593.05 | E188: 585.10 | F188: 574.05 | G188: 566.10 | H188: 604.10 | I188: 612.05 | J188: 623.10 | K188: 601 | L188: 582 | M188: 4.36542
A189: 180 | B189: TVSMOTOR | C189: 686.5 | D189: 685.13 | E189: 675.52 | F189: 664.53 | G189: 654.92 | H189: 696.12 | I189: 705.73 | J189: 716.72 | K189: 694.75 | L189: 674.15 | M189: 65.21283
A190: 181 | B190: TATACHEM | C190: 872.25 | D190: 877.80 | E190: 863.10 | F190: 853.95 | G190: 839.25 | H190: 886.95 | I190: 901.65 | J190: 910.80 | K190: 892.5 | L190: 868.65 | M190: 17.70628
A191: 182 | B191: TATACOMM | C191: 1299.25 | D191: 1298.82 | E191: 1283.78 | F191: 1268.32 | G191: 1253.28 | H191: 1314.28 | I191: 1329.32 | J191: 1344.78 | K191: 1313.85 | L191: 1283.35 | M191: 4.59543
A192: 183 | B192: TCS | C192: 3529.15 | D192: 3527.97 | E192: 3492.18 | F192: 3455.22 | G192: 3419.43 | H192: 3564.93 | I192: 3600.72 | J192: 3637.68 | K192: 3563.75 | L192: 3491 | M192: 55.88446
A193: 184 | B193: TATACONSUM | C193: 778.6 | D193: 777.48 | E193: 765.32 | F193: 752.03 | G193: 739.87 | H193: 790.77 | I193: 802.93 | J193: 816.22 | K193: 789.65 | L193: 764.2 | M193: 35.29356
A194: 185 | B194: TATAELXSI | C194: 5781.65 | D194: 5805.15 | E194: 5662.30 | F194: 5542.95 | G194: 5400.10 | H194: 5924.50 | I194: 6067.35 | J194: 6186.70 | K194: 5948 | L194: 5685.8 | M194: 2.4878
A195: 186 | B195: TATAMOTORS | C195: 458.6 | D195: 464.08 | E195: 450.17 | F195: 441.73 | G195: 427.82 | H195: 472.52 | I195: 486.43 | J195: 494.87 | K195: 478 | L195: 455.65 | M195: 354.718
A196: 187 | B196: TATAPOWER | C196: 216.8 | D196: 219.38 | E196: 210.52 | F196: 204.23 | G196: 195.37 | H196: 225.67 | I196: 234.53 | J196: 240.82 | K196: 228.25 | L196: 213.1 | M196: 2225.71262
A197: 188 | B197: TATASTEEL | C197: 1071.2 | D197: 1087.37 | E197: 1046.83 | F197: 1022.47 | G197: 981.93 | H197: 1111.73 | I197: 1152.27 | J197: 1176.63 | K197: 1127.9 | L197: 1063 | M197: 133.55984
A198: 189 | B198: TECHM | C198: 1541.45 | D198: 1554.13 | E198: 1513.82 | F198: 1486.18 | G198: 1445.87 | H198: 1581.77 | I198: 1622.08 | J198: 1649.72 | K198: 1594.45 | L198: 1526.5 | M198: 56.629
A199: 190 | B199: RAMCOCEM | C199: 941.05 | D199: 940.38 | E199: 925.77 | F199: 910.48 | G199: 895.87 | H199: 955.67 | I199: 970.28 | J199: 985.57 | K199: 955 | L199: 925.1 | M199: 4.09462
A200: 191 | B200: TITAN | C200: 2375.5 | D200: 2367.30 | E200: 2344.60 | F200: 2313.70 | G200: 2291.00 | H200: 2398.20 | I200: 2420.90 | J200: 2451.80 | K200: 2390 | L200: 2336.4 | M200: 26.75375
A201: 192 | B201: TORNTPHARM | C201: 3042.05 | D201: 3047.38 | E201: 2984.77 | F201: 2927.48 | G201: 2864.87 | H201: 3104.67 | I201: 3167.28 | J201: 3224.57 | K201: 3110 | L201: 2990.1 | M201: 4.74966
A202: 193 | B202: TORNTPOWER | C202: 551.2 | D202: 545.45 | E202: 535.80 | F202: 520.40 | G202: 510.75 | H202: 560.85 | I202: 570.50 | J202: 585.90 | K202: 555.1 | L202: 530.05 | M202: 16.20463
A203: 194 | B203: TRENT | C203: 1014.4 | D203: 1028.33 | E203: 988.87 | F203: 963.33 | G203: 923.87 | H203: 1053.87 | I203: 1093.33 | J203: 1118.87 | K203: 1067.8 | L203: 1002.8 | M203: 10.75312
A204: 195 | B204: UPL | C204: 681.7 | D204: 687.67 | E204: 672.58 | F204: 663.47 | G204: 648.38 | H204: 696.78 | I204: 711.87 | J204: 720.98 | K204: 702.75 | L204: 678.55 | M204: 25.24084
A205: 196 | B205: ULTRACEMCO | C205: 7433.75 | D205: 7433.43 | E205: 7347.87 | F205: 7261.98 | G205: 7176.42 | H205: 7519.32 | I205: 7604.88 | J205: 7690.77 | K205: 7519 | L205: 7347.55 | M205: 5.47664
... 29 more rows

Sheet MidCap Intra
L5: Back To Main Page
A6: FOR INTRA DAY TRADING | K6: =Main!B10 -> 2021-12-01
A9: Sr.no | B9: Scrip | C9: CLOSE RATE | D9: Pivot Point | E9: Supports | H9: Resistances
E10: S1 | F10: S2 | G10: S3 | H10: R1 | I10: R2 | J10: R3 | K10: HIGH | L10: LOW | M10: Total Trade Quanity in Lakhs
A11: 1 | B11: 3MINDIA | C11: 25034.4 | D11: 24959.83 | E11: 24674.67 | F11: 24314.93 | G11: 24029.77 | H11: 25319.57 | I11: 25604.73 | J11: 25964.47 | K11: 25245 | L11: 24600.1 | M11: 0.02581
A12: 2 | B12: AARTIDRUGS | C12: 506.75 | D12: 511.10 | E12: 495.65 | F12: 484.55 | G12: 469.10 | H12: 522.20 | I12: 537.65 | J12: 548.75 | K12: 526.55 | L12: 500 | M12: 2.57278
A13: 3 | B13: AARTIIND | C13: 937.3 | D13: 941.08 | E13: 927.22 | F13: 917.13 | G13: 903.27 | H13: 951.17 | I13: 965.03 | J13: 975.12 | K13: 954.95 | L13: 931 | M13: 8.98079
A14: 4 | B14: AAVAS | C14: 2816.05 | D14: 2811.35 | E14: 2724.70 | F14: 2633.35 | G14: 2546.70 | H14: 2902.70 | I14: 2989.35 | J14: 3080.70 | K14: 2898 | L14: 2720 | M14: 0.84664
A15: 5 | B15: ABB | C15: 2061.85 | D15: 2082.78 | E15: 2001.07 | F15: 1940.28 | G15: 1858.57 | H15: 2143.57 | I15: 2225.28 | J15: 2286.07 | K15: 2164.5 | L15: 2022 | M15: 2.39856
A16: 6 | B16: ABBOTINDIA | C16: 19087.25 | D16: 19157.42 | E16: 18939.93 | F16: 18792.62 | G16: 18575.13 | H16: 19304.73 | I16: 19522.22 | J16: 19669.53 | K16: 19374.9 | L16: 19010.1 | M16: 0.10597
A17: 7 | B17: ABCAPITAL | C17: 109.1 | D17: 108.60 | E17: 105.85 | F17: 102.60 | G17: 99.85 | H17: 111.85 | I17: 114.60 | J17: 117.85 | K17: 111.35 | L17: 105.35 | M17: 63.30797
A18: 8 | B18: ABFRL | C18: 255.1 | D18: 256.70 | E18: 249.40 | F18: 243.70 | G18: 236.40 | H18: 262.40 | I18: 269.70 | J18: 275.40 | K18: 264 | L18: 251 | M18: 24.64402
A19: 9 | B19: ACC | C19: 2286.4 | D19: 2293.07 | E19: 2263.18 | F19: 2239.97 | G19: 2210.08 | H19: 2316.28 | I19: 2346.17 | J19: 2369.38 | K19: 2322.95 | L19: 2269.85 | M19: 4.15128
A20: 10 | B20: ADANIENT | C20: 1662.85 | D20: 1676.55 | E20: 1634.45 | F20: 1606.05 | G20: 1563.95 | H20: 1704.95 | I20: 1747.05 | J20: 1775.45 | K20: 1718.65 | L20: 1648.15 | M20: 29.52368
A21: 11 | B21: ADANIGREEN | C21: 1295.4 | D21: 1331.52 | E21: 1249.03 | F21: 1202.67 | G21: 1120.18 | H21: 1377.88 | I21: 1460.37 | J21: 1506.73 | K21: 1414 | L21: 1285.15 | M21: 16.51907
A22: 12 | B22: ADANIPORTS | C22: 683.85 | D22: 692.07 | E22: 671.48 | F22: 659.12 | G22: 638.53 | H22: 704.43 | I22: 725.02 | J22: 737.38 | K22: 712.65 | L22: 679.7 | M22: 61.90734
A23: 13 | B23: ADANITRANS | C23: 1799.5 | D23: 1821.50 | E23: 1777.50 | F23: 1755.50 | G23: 1711.50 | H23: 1843.50 | I23: 1887.50 | J23: 1909.50 | K23: 1865.5 | L23: 1799.5 | M23: 9.66317
A24: 14 | B24: ADVENZYMES | C24: 327.45 | D24: 326.85 | E24: 320.60 | F24: 313.75 | G24: 307.50 | H24: 333.70 | I24: 339.95 | J24: 346.80 | K24: 333.1 | L24: 320 | M24: 1.38583
A25: 15 | B25: AEGISCHEM | C25: 229.3 | D25: 230.07 | E25: 223.13 | F25: 216.97 | G25: 210.03 | H25: 236.23 | I25: 243.17 | J25: 249.33 | K25: 237 | L25: 223.9 | M25: 15.00112
A26: 16 | B26: AFFLE | C26: 1148.9 | D26: 1144.30 | E26: 1124.60 | F26: 1100.30 | G26: 1080.60 | H26: 1168.60 | I26: 1188.30 | J26: 1212.60 | K26: 1164 | L26: 1120 | M26: 2.96991
A27: 17 | B27: AIAENG | C27: 1897.65 | D27: 1884.03 | E27: 1856.07 | F27: 1814.48 | G27: 1786.52 | H27: 1925.62 | I27: 1953.58 | J27: 1995.17 | K27: 1912 | L27: 1842.45 | M27: 1.08849
A28: 18 | B28: AJANTPHARM | C28: 2080.25 | D28: 2081.67 | E28: 2053.88 | F28: 2027.52 | G28: 1999.73 | H28: 2108.03 | I28: 2135.82 | J28: 2162.18 | K28: 2109.45 | L28: 2055.3 | M28: 0.54166
A29: 19 | B29: ALEMBICLTD | C29: 101.05 | D29: 100.62 | E29: 99.43 | F29: 97.82 | G29: 96.63 | H29: 102.23 | I29: 103.42 | J29: 105.03 | K29: 101.8 | L29: 99 | M29: 1.66788
A30: 20 | B30: ALKEM | C30: 3593.45 | D30: 3559.85 | E30: 3514.70 | F30: 3435.95 | G30: 3390.80 | H30: 3638.60 | I30: 3683.75 | J30: 3762.50 | K30: 3605 | L30: 3481.1 | M30: 2.22262
A31: 21 | B31: ALKYLAMINE | C31: 3187.3 | D31: 3176.35 | E31: 3102.70 | F31: 3018.10 | G31: 2944.45 | H31: 3260.95 | I31: 3334.60 | J31: 3419.20 | K31: 3250 | L31: 3091.75 | M31: 0.46237
A32: 22 | B32: ALOKINDS | C32: 21.35 | D32: 21.50 | E32: 21.10 | F32: 20.85 | G32: 20.45 | H32: 21.75 | I32: 22.15 | J32: 22.40 | K32: 21.9 | L32: 21.25 | M32: 60.56841
A33: 23 | B33: AMARAJABAT | C33: 617.9 | D33: 618.00 | E33: 612.30 | F33: 606.70 | G33: 601.00 | H33: 623.60 | I33: 629.30 | J33: 634.90 | K33: 623.7 | L33: 612.4 | M33: 7.7392
A34: 24 | B34: AMBER | C34: 3029.45 | D34: 3080.40 | E34: 2924.05 | F34: 2818.65 | G34: 2662.30 | H34: 3185.80 | I34: 3342.15 | J34: 3447.55 | K34: 3236.75 | L34: 2975 | M34: 0.5504
A35: 25 | B35: AMBUJACEM | C35: 374.6 | D35: 373.23 | E35: 368.37 | F35: 362.13 | G35: 357.27 | H35: 379.47 | I35: 384.33 | J35: 390.57 | K35: 378.1 | L35: 367 | M35: 48.09537
A36: 26 | B36: ANGELONE | C36: 1014.25 | D36: 1030.92 | E36: 973.83 | F36: 933.42 | G36: 876.33 | H36: 1071.33 | I36: 1128.42 | J36: 1168.83 | K36: 1088 | L36: 990.5 | M36: 10.9437
A37: 27 | B37: ANURAS | C37: 789.15 | D37: 792.25 | E37: 778.50 | F37: 767.85 | G37: 754.10 | H37: 802.90 | I37: 816.65 | J37: 827.30 | K37: 806 | L37: 781.6 | M37: 0.42737
A38: 28 | B38: APLAPOLLO | C38: 924 | D38: 915.00 | E38: 904.00 | F38: 884.00 | G38: 873.00 | H38: 935.00 | I38: 946.00 | J38: 966.00 | K38: 926 | L38: 895 | M38: 6.65384
A39: 29 | B39: APLLTD | C39: 806.7 | D39: 804.65 | E39: 796.35 | F39: 786.00 | G39: 777.70 | H39: 815.00 | I39: 823.30 | J39: 833.65 | K39: 812.95 | L39: 794.3 | M39: 3.89441
A40: 30 | B40: APOLLOHOSP | C40: 5687.75 | D40: 5715.77 | E40: 5601.58 | F40: 5515.42 | G40: 5401.23 | H40: 5801.93 | I40: 5916.12 | J40: 6002.28 | K40: 5829.95 | L40: 5629.6 | M40: 13.52746
A41: 31 | B41: APOLLOTYRE | C41: 204.55 | D41: 206.47 | E41: 201.58 | F41: 198.62 | G41: 193.73 | H41: 209.43 | I41: 214.32 | J41: 217.28 | K41: 211.35 | L41: 203.5 | M41: 22.92067
A42: 32 | B42: ASAHIINDIA | C42: 481.75 | D42: 483.68 | E42: 445.37 | F42: 408.98 | G42: 370.67 | H42: 520.07 | I42: 558.38 | J42: 594.77 | K42: 522 | L42: 447.3 | M42: 21.41803
A43: 33 | B43: ASHOKA | C43: 96.2 | D43: 96.27 | E43: 95.03 | F43: 93.87 | G43: 92.63 | H43: 97.43 | I43: 98.67 | J43: 99.83 | K43: 97.5 | L43: 95.1 | M43: 11.15262
A44: 34 | B44: ASHOKLEY | C44: 119.7 | D44: 120.98 | E44: 117.77 | F44: 115.83 | G44: 112.62 | H44: 122.92 | I44: 126.13 | J44: 128.07 | K44: 124.2 | L44: 119.05 | M44: 148.79949
A45: 35 | B45: ASIANPAINT | C45: 3143.65 | D45: 3149.60 | E45: 3110.20 | F45: 3076.75 | G45: 3037.35 | H45: 3183.05 | I45: 3222.45 | J45: 3255.90 | K45: 3189 | L45: 3116.15 | M45: 23.40489
A46: 36 | B46: ASTERDM | C46: 192 | D46: 193.10 | E46: 189.00 | F46: 186.00 | G46: 181.90 | H46: 196.10 | I46: 200.20 | J46: 203.20 | K46: 197.2 | L46: 190.1 | M46: 5.51854
A47: 37 | B47: ASTRAL | C47: 2197.7 | D47: 2174.93 | E47: 2142.77 | F47: 2087.83 | G47: 2055.67 | H47: 2229.87 | I47: 2262.03 | J47: 2316.97 | K47: 2207.1 | L47: 2120 | M47: 3.89254
A48: 38 | B48: ASTRAZEN | C48: 3137.15 | D48: 3171.17 | E48: 3092.33 | F48: 3047.52 | G48: 2968.68 | H48: 3215.98 | I48: 3294.82 | J48: 3339.63 | K48: 3250 | L48: 3126.35 | M48: 0.33861
A49: 39 | B49: ATGL | C49: 1599.85 | D49: 1604.28 | E49: 1551.57 | F49: 1503.28 | G49: 1450.57 | H49: 1652.57 | I49: 1705.28 | J49: 1753.57 | K49: 1657 | L49: 1556 | M49: 13.93526
A50: 40 | B50: ATUL | C50: 8705.8 | D50: 8583.93 | E50: 8422.87 | F50: 8139.93 | G50: 7978.87 | H50: 8866.87 | I50: 9027.93 | J50: 9310.87 | K50: 8745 | L50: 8301 | M50: 0.43618
A51: 41 | B51: AUBANK | C51: 1096.1 | D51: 1105.38 | E51: 1074.77 | F51: 1053.43 | G51: 1022.82 | H51: 1126.72 | I51: 1157.33 | J51: 1178.67 | K51: 1136 | L51: 1084.05 | M51: 7.44583
A52: 42 | B52: AUROPHARMA | C52: 660.25 | D52: 660.37 | E52: 648.48 | F52: 636.72 | G52: 624.83 | H52: 672.13 | I52: 684.02 | J52: 695.78 | K52: 672.25 | L52: 648.6 | M52: 27.93791
A53: 43 | B53: AVANTIFEED | C53: 524.9 | D53: 525.30 | E53: 510.60 | F53: 496.30 | G53: 481.60 | H53: 539.60 | I53: 554.30 | J53: 568.60 | K53: 540 | L53: 511 | M53: 2.16289
A54: 44 | B54: AXISBANK | C54: 655.65 | D54: 660.37 | E54: 643.28 | F54: 630.92 | G54: 613.83 | H54: 672.73 | I54: 689.82 | J54: 702.18 | K54: 677.45 | L54: 648 | M54: 246.99809
A55: 45 | B55: BAJAJ-AUTO | C55: 3240.3 | D55: 3262.10 | E55: 3201.25 | F55: 3162.20 | G55: 3101.35 | H55: 3301.15 | I55: 3362.00 | J55: 3401.05 | K55: 3322.95 | L55: 3223.05 | M55: 6.82518
A56: 46 | B56: BAJAJCON | C56: 183 | D56: 184.20 | E56: 180.30 | F56: 177.60 | G56: 173.70 | H56: 186.90 | I56: 190.80 | J56: 193.50 | K56: 188.1 | L56: 181.5 | M56: 6.22039
A57: 47 | B57: BAJAJELEC | C57: 1074.25 | D57: 1056.63 | E57: 1027.62 | F57: 980.98 | G57: 951.97 | H57: 1103.27 | I57: 1132.28 | J57: 1178.92 | K57: 1085.65 | L57: 1010 | M57: 3.32652
A58: 48 | B58: BAJAJFINSV | C58: 17237.35 | D58: 17205.78 | E58: 16911.57 | F58: 16585.78 | G58: 16291.57 | H58: 17531.57 | I58: 17825.78 | J58: 18151.57 | K58: 17500 | L58: 16880 | M58: 4.58642
A59: 49 | B59: BAJAJHLDNG | C59: 5037.8 | D59: 5028.07 | E59: 4976.13 | F59: 4914.47 | G59: 4862.53 | H59: 5089.73 | I59: 5141.67 | J59: 5203.33 | K59: 5080 | L59: 4966.4 | M59: 0.26991
A60: 50 | B60: BAJFINANCE | C60: 6997.25 | D60: 7015.43 | E60: 6831.07 | F60: 6664.88 | G60: 6480.52 | H60: 7181.62 | I60: 7365.98 | J60: 7532.17 | K60: 7199.8 | L60: 6849.25 | M60: 21.95539
A61: 51 | B61: BALAMINES | C61: 2997.25 | D61: 2999.17 | E61: 2950.33 | F61: 2903.42 | G61: 2854.58 | H61: 3046.08 | I61: 3094.92 | J61: 3141.83 | K61: 3048 | L61: 2952.25 | M61: 0.50228
A62: 52 | B62: BALKRISIND | C62: 2174.75 | D62: 2192.25 | E62: 2144.50 | F62: 2114.25 | G62: 2066.50 | H62: 2222.50 | I62: 2270.25 | J62: 2300.50 | K62: 2240 | L62: 2162 | M62: 5.54262
A63: 53 | B63: BALRAMCHIN | C63: 311.65 | D63: 313.58 | E63: 306.22 | F63: 300.78 | G63: 293.42 | H63: 319.02 | I63: 326.38 | J63: 331.82 | K63: 320.95 | L63: 308.15 | M63: 4.69057
A64: 54 | B64: BANDHANBNK | C64: 272.45 | D64: 274.92 | E64: 266.53 | F64: 260.62 | G64: 252.23 | H64: 280.83 | I64: 289.22 | J64: 295.13 | K64: 283.3 | L64: 269 | M64: 161.81268
A65: 55 | B65: BANKBARODA | C65: 85.75 | D65: 86.57 | E65: 84.38 | F65: 83.02 | G65: 80.83 | H65: 87.93 | I65: 90.12 | J65: 91.48 | K65: 88.75 | L65: 85.2 | M65: 301.42735
A66: 56 | B66: BANKINDIA | C66: 54.3 | D66: 54.92 | E66: 53.48 | F66: 52.67 | G66: 51.23 | H66: 55.73 | I66: 57.17 | J66: 57.98 | K66: 56.35 | L66: 54.1 | M66: 49.18548
A67: 57 | B67: BASF | C67: 2713.05 | D67: 2700.07 | E67: 2665.03 | F67: 2617.02 | G67: 2581.98 | H67: 2748.08 | I67: 2783.12 | J67: 2831.13 | K67: 2735.1 | L67: 2652.05 | M67: 0.49683
A68: 58 | B68: BATAINDIA | C68: 1878.2 | D68: 1897.28 | E68: 1849.57 | F68: 1820.93 | G68: 1773.22 | H68: 1925.92 | I68: 1973.63 | J68: 2002.27 | K68: 1945 | L68: 1868.65 | M68: 2.63424
A69: 59 | B69: BAYERCROP | C69: 4604.05 | D69: 4641.68 | E69: 4562.37 | F69: 4520.68 | G69: 4441.37 | H69: 4683.37 | I69: 4762.68 | J69: 4804.37 | K69: 4721 | L69: 4600 | M69: 0.40761
A70: 60 | B70: BBTC | C70: 993.75 | D70: 1002.45 | E70: 971.80 | F70: 949.85 | G70: 919.20 | H70: 1024.40 | I70: 1055.05 | J70: 1077.00 | K70: 1033.1 | L70: 980.5 | M70: 0.51544
A71: 61 | B71: BDL | C71: 414.45 | D71: 413.87 | E71: 407.18 | F71: 399.92 | G71: 393.23 | H71: 421.13 | I71: 427.82 | J71: 435.08 | K71: 420.55 | L71: 406.6 | M71: 3.03119
A72: 62 | B72: BEL | C72: 203.75 | D72: 202.08 | E72: 198.87 | F72: 193.98 | G72: 190.77 | H72: 206.97 | I72: 210.18 | J72: 215.07 | K72: 205.3 | L72: 197.2 | M72: 107.58021
A73: 63 | B73: BEML | C73: 1847.7 | D73: 1855.90 | E73: 1791.80 | F73: 1735.90 | G73: 1671.80 | H73: 1911.80 | I73: 1975.90 | J73: 2031.80 | K73: 1920 | L73: 1800 | M73: 11.00486
A74: 64 | B74: BERGEPAINT | C74: 751.75 | D74: 753.30 | E74: 737.65 | F74: 723.55 | G74: 707.90 | H74: 767.40 | I74: 783.05 | J74: 797.15 | K74: 768.95 | L74: 739.2 | M74: 31.06916
A75: 65 | B75: BHARATFORG | C75: 693.65 | D75: 700.15 | E75: 682.65 | F75: 671.65 | G75: 654.15 | H75: 711.15 | I75: 728.65 | J75: 739.65 | K75: 717.65 | L75: 689.15 | M75: 25.84353
A76: 66 | B76: BHARATRAS | C76: 9923.6 | D76: 9839.30 | E76: 9722.60 | F76: 9521.60 | G76: 9404.90 | H76: 10040.30 | I76: 10157.00 | J76: 10358.00 | K76: 9956 | L76: 9638.3 | M76: 0.04063
A77: 67 | B77: BHARTIARTL | C77: 728.25 | D77: 733.70 | E77: 717.20 | F77: 706.15 | G77: 689.65 | H77: 744.75 | I77: 761.25 | J77: 772.30 | K77: 750.2 | L77: 722.65 | M77: 142.72616
A78: 68 | B78: BHEL | C78: 58.9 | D78: 59.07 | E78: 57.43 | F78: 55.97 | G78: 54.33 | H78: 60.53 | I78: 62.17 | J78: 63.63 | K78: 60.7 | L78: 57.6 | M78: 392.89768
A79: 69 | B79: BIOCON | C79: 360.4 | D79: 362.97 | E79: 354.98 | F79: 349.57 | G79: 341.58 | H79: 368.38 | I79: 376.37 | J79: 381.78 | K79: 370.95 | L79: 357.55 | M79: 41.31254
A80: 70 | B80: BIRLACORPN | C80: 1349.1 | D80: 1345.22 | E80: 1280.43 | F80: 1211.77 | G80: 1146.98 | H80: 1413.88 | I80: 1478.67 | J80: 1547.33 | K80: 1410 | L80: 1276.55 | M80: 1.88678
A81: 71 | B81: BLUEDART | C81: 6551.35 | D81: 6647.10 | E81: 6384.25 | F81: 6217.15 | G81: 5954.30 | H81: 6814.20 | I81: 7077.05 | J81: 7244.15 | K81: 6909.95 | L81: 6480 | M81: 0.19731
A82: 72 | B82: BLUESTARCO | C82: 948.8 | D82: 950.27 | E82: 916.53 | F82: 884.27 | G82: 850.53 | H82: 982.53 | I82: 1016.27 | J82: 1048.53 | K82: 984 | L82: 918 | M82: 2.04093
A83: 73 | B83: BOSCHLTD | C83: 16168.5 | D83: 16301.47 | E83: 15937.98 | F83: 15707.47 | G83: 15343.98 | H83: 16531.98 | I83: 16895.47 | J83: 17125.98 | K83: 16664.95 | L83: 16070.95 | M83: 0.33552
A84: 74 | B84: BPCL | C84: 370 | D84: 372.50 | E84: 365.50 | F84: 361.00 | G84: 354.00 | H84: 377.00 | I84: 384.00 | J84: 388.50 | K84: 379.5 | L84: 368 | M84: 91.96735
A85: 75 | B85: BRIGADE | C85: 502.45 | D85: 488.78 | E85: 453.67 | F85: 404.88 | G85: 369.77 | H85: 537.57 | I85: 572.68 | J85: 621.47 | K85: 523.9 | L85: 440 | M85: 19.01891
A86: 76 | B86: BRITANNIA | C86: 3545.5 | D86: 3537.20 | E86: 3509.40 | F86: 3473.30 | G86: 3445.50 | H86: 3573.30 | I86: 3601.10 | J86: 3637.20 | K86: 3565 | L86: 3501.1 | M86: 6.33377
A87: 77 | B87: BSE | C87: 1559.85 | D87: 1564.42 | E87: 1531.83 | F87: 1503.82 | G87: 1471.23 | H87: 1592.43 | I87: 1625.02 | J87: 1653.03 | K87: 1597 | L87: 1536.4 | M87: 13.29459
A88: 78 | B88: BSOFT | C88: 474.95 | D88: 479.68 | E88: 464.47 | F88: 453.98 | G88: 438.77 | H88: 490.17 | I88: 505.38 | J88: 515.87 | K88: 494.9 | L88: 469.2 | M88: 48.54946
A89: 79 | B89: BURGERKING | C89: 148.45 | D89: 147.82 | E89: 145.63 | F89: 142.82 | G89: 140.63 | H89: 150.63 | I89: 152.82 | J89: 155.63 | K89: 150 | L89: 145 | M89: 11.0991
A90: 80 | B90: CADILAHC | C90: 465.25 | D90: 463.05 | E90: 453.20 | F90: 441.15 | G90: 431.30 | H90: 475.10 | I90: 484.95 | J90: 497.00 | K90: 472.9 | L90: 451 | M90: 39.45304
A91: 81 | B91: CAMS | C91: 3077.5 | D91: 3059.17 | E91: 3018.33 | F91: 2959.17 | G91: 2918.33 | H91: 3118.33 | I91: 3159.17 | J91: 3218.33 | K91: 3100 | L91: 3000 | M91: 2.43415
A92: 82 | B92: CANBK | C92: 199.15 | D92: 201.05 | E92: 195.60 | F92: 192.05 | G92: 186.60 | H92: 204.60 | I92: 210.05 | J92: 213.60 | K92: 206.5 | L92: 197.5 | M92: 136.02139
A93: 83 | B93: CANFINHOME | C93: 590.1 | D93: 586.85 | E93: 577.55 | F93: 565.00 | G93: 555.70 | H93: 599.40 | I93: 608.70 | J93: 621.25 | K93: 596.15 | L93: 574.3 | M93: 14.74487
A94: 84 | B94: CAPLIPOINT | C94: 748.55 | D94: 751.57 | E94: 719.23 | F94: 689.92 | G94: 657.58 | H94: 780.88 | I94: 813.22 | J94: 842.53 | K94: 783.9 | L94: 722.25 | M94: 4.7085
A95: 85 | B95: CARBORUNIV | C95: 917.7 | D95: 910.93 | E95: 888.57 | F95: 859.43 | G95: 837.07 | H95: 940.07 | I95: 962.43 | J95: 991.57 | K95: 933.3 | L95: 881.8 | M95: 10.5442
A96: 86 | B96: CASTROLIND | C96: 129.25 | D96: 128.07 | E96: 125.18 | F96: 121.12 | G96: 118.23 | H96: 132.13 | I96: 135.02 | J96: 139.08 | K96: 130.95 | L96: 124 | M96: 15.25053
A97: 87 | B97: CCL | C97: 403.85 | D97: 396.45 | E97: 382.90 | F97: 361.95 | G97: 348.40 | H97: 417.40 | I97: 430.95 | J97: 451.90 | K97: 410 | L97: 375.5 | M97: 5.61162
A98: 88 | B98: CDSL | C98: 1451.05 | D98: 1433.33 | E98: 1389.72 | F98: 1328.38 | G98: 1284.77 | H98: 1494.67 | I98: 1538.28 | J98: 1599.62 | K98: 1476.95 | L98: 1372 | M98: 9.69825
A99: 89 | B99: CEATLTD | C99: 1174.25 | D99: 1168.97 | E99: 1151.33 | F99: 1128.42 | G99: 1110.78 | H99: 1191.88 | I99: 1209.52 | J99: 1232.43 | K99: 1186.6 | L99: 1146.05 | M99: 0.97912
A100: 90 | B100: CENTRALBK | C100: 21.35 | D100: 21.42 | E100: 20.93 | F100: 20.52 | G100: 20.03 | H100: 21.83 | I100: 22.32 | J100: 22.73 | K100: 21.9 | L100: 21 | M100: 32.17029
A101: 91 | B101: CENTURYPLY | C101: 601.6 | D101: 592.47 | E101: 570.93 | F101: 540.27 | G101: 518.73 | H101: 623.13 | I101: 644.67 | J101: 675.33 | K101: 614 | L101: 561.8 | M101: 6.47716
A102: 92 | B102: CENTURYTEX | C102: 766.3 | D102: 778.93 | E102: 747.37 | F102: 728.43 | G102: 696.87 | H102: 797.87 | I102: 829.43 | J102: 848.37 | K102: 810.5 | L102: 760 | M102: 5.0017
A103: 93 | B103: CERA | C103: 5001.7 | D103: 4966.35 | E103: 4887.70 | F103: 4773.70 | G103: 4695.05 | H103: 5080.35 | I103: 5159.00 | J103: 5273.00 | K103: 5045 | L103: 4852.35 | M103: 0.19852
A104: 94 | B104: CESC | C104: 87.5 | D104: 87.80 | E104: 85.80 | F104: 84.10 | G104: 82.10 | H104: 89.50 | I104: 91.50 | J104: 93.20 | K104: 89.8 | L104: 86.1 | M104: 31.07249
A105: 95 | B105: CGCL | C105: 500.35 | D105: 502.67 | E105: 487.78 | F105: 475.22 | G105: 460.33 | H105: 515.23 | I105: 530.12 | J105: 542.68 | K105: 517.55 | L105: 490.1 | M105: 0.26922
A106: 96 | B106: CGPOWER | C106: 149.15 | D106: 149.22 | E106: 145.93 | F106: 142.72 | G106: 139.43 | H106: 152.43 | I106: 155.72 | J106: 158.93 | K106: 152.5 | L106: 146 | M106: 7.98672
A107: 97 | B107: CHALET | C107: 237.85 | D107: 238.00 | E107: 226.00 | F107: 214.15 | G107: 202.15 | H107: 249.85 | I107: 261.85 | J107: 273.70 | K107: 250 | L107: 226.15 | M107: 16.201
A108: 98 | B108: CHAMBLFERT | C108: 364 | D108: 367.83 | E108: 358.67 | F108: 353.33 | G108: 344.17 | H108: 373.17 | I108: 382.33 | J108: 387.67 | K108: 377 | L108: 362.5 | M108: 21.76711
A109: 99 | B109: CHOLAFIN | C109: 550.5 | D109: 551.85 | E109: 538.65 | F109: 526.80 | G109: 513.60 | H109: 563.70 | I109: 576.90 | J109: 588.75 | K109: 565.05 | L109: 540 | M109: 35.25992
A110: 100 | B110: CHOLAHLDNG | C110: 698.65 | D110: 706.17 | E110: 687.38 | F110: 676.12 | G110: 657.33 | H110: 717.43 | I110: 736.22 | J110: 747.48 | K110: 724.95 | L110: 694.9 | M110: 1.48237
A111: 101 | B111: CIPLA | C111: 971.3 | D111: 971.30 | E111: 958.60 | F111: 945.90 | G111: 933.20 | H111: 984.00 | I111: 996.70 | J111: 1009.40 | K111: 984 | L111: 958.6 | M111: 47.71579
A112: 102 | B112: COALINDIA | C112: 152 | D112: 153.95 | E112: 149.40 | F112: 146.80 | G112: 142.25 | H112: 156.55 | I112: 161.10 | J112: 163.70 | K112: 158.5 | L112: 151.35 | M112: 566.43275
A113: 103 | B113: COCHINSHIP | C113: 339.55 | D113: 341.52 | E113: 335.03 | F113: 330.52 | G113: 324.03 | H113: 346.03 | I113: 352.52 | J113: 357.03 | K113: 348 | L113: 337 | M113: 1.65745
A114: 104 | B114: COFORGE | C114: 5431.6 | D114: 5395.90 | E114: 5321.80 | F114: 5212.00 | G114: 5137.90 | H114: 5505.70 | I114: 5579.80 | J114: 5689.60 | K114: 5470 | L114: 5286.1 | M114: 3.73233
A115: 105 | B115: COLPAL | C115: 1434.35 | D115: 1441.53 | E115: 1413.82 | F115: 1393.28 | G115: 1365.57 | H115: 1462.07 | I115: 1489.78 | J115: 1510.32 | K115: 1469.25 | L115: 1421 | M115: 15.59824
A116: 106 | B116: CONCOR | C116: 620 | D116: 615.57 | E116: 603.78 | F116: 587.57 | G116: 575.78 | H116: 631.78 | I116: 643.57 | J116: 659.78 | K116: 627.35 | L116: 599.35 | M116: 40.36435
A117: 107 | B117: COROMANDEL | C117: 740.2 | D117: 738.03 | E117: 732.22 | F117: 724.23 | G117: 718.42 | H117: 746.02 | I117: 751.83 | J117: 759.82 | K117: 743.85 | L117: 730.05 | M117: 3.31663
A118: 108 | B118: CREDITACC | C118: 503.35 | D118: 518.15 | E118: 486.20 | F118: 469.05 | G118: 437.10 | H118: 535.30 | I118: 567.25 | J118: 584.40 | K118: 550.1 | L118: 501 | M118: 4.66139
A119: 109 | B119: CRISIL | C119: 3115.85 | D119: 3127.95 | E119: 3037.90 | F119: 2959.95 | G119: 2869.90 | H119: 3205.90 | I119: 3295.95 | J119: 3373.90 | K119: 3218 | L119: 3050 | M119: 0.98023
A120: 110 | B120: CROMPTON | C120: 448.25 | D120: 450.13 | E120: 438.12 | F120: 427.98 | G120: 415.97 | H120: 460.27 | I120: 472.28 | J120: 482.42 | K120: 462.15 | L120: 440 | M120: 18.29211
A121: 111 | B121: CSBBANK | C121: 276.65 | D121: 276.22 | E121: 272.43 | F121: 268.22 | G121: 264.43 | H121: 280.43 | I121: 284.22 | J121: 288.43 | K121: 280 | L121: 272 | M121: 1.01779
A122: 112 | B122: CUB | C122: 144.7 | D122: 145.58 | E122: 143.17 | F122: 141.63 | G122: 139.22 | H122: 147.12 | I122: 149.53 | J122: 151.07 | K122: 148 | L122: 144.05 | M122: 20.91998
A123: 113 | B123: CUMMINSIND | C123: 878.5 | D123: 883.42 | E123: 868.08 | F123: 857.67 | G123: 842.33 | H123: 893.83 | I123: 909.17 | J123: 919.58 | K123: 898.75 | L123: 873 | M123: 4.07386
A124: 114 | B124: CYIENT | C124: 1012.45 | D124: 1030.03 | E124: 990.42 | F124: 968.38 | G124: 928.77 | H124: 1052.07 | I124: 1091.68 | J124: 1113.72 | K124: 1069.65 | L124: 1008 | M124: 5.95043
A125: 115 | B125: DABUR | C125: 594.95 | D125: 596.50 | E125: 590.50 | F125: 586.05 | G125: 580.05 | H125: 600.95 | I125: 606.95 | J125: 611.40 | K125: 602.5 | L125: 592.05 | M125: 52.19689
A126: 116 | B126: DALBHARAT | C126: 1873.4 | D126: 1875.63 | E126: 1840.27 | F126: 1807.13 | G126: 1771.77 | H126: 1908.77 | I126: 1944.13 | J126: 1977.27 | K126: 1911 | L126: 1842.5 | M126: 1.35212
A127: 117 | B127: DBL | C127: 528.35 | D127: 518.33 | E127: 502.02 | F127: 475.68 | G127: 459.37 | H127: 544.67 | I127: 560.98 | J127: 587.32 | K127: 534.65 | L127: 492 | M127: 6.49024
A128: 118 | B128: DCBBANK | C128: 82.05 | D128: 84.47 | E128: 77.13 | F128: 72.22 | G128: 64.88 | H128: 89.38 | I128: 96.72 | J128: 101.63 | K128: 91.8 | L128: 79.55 | M128: 72.98755
A129: 119 | B129: DCMSHRIRAM | C129: 958.65 | D129: 958.22 | E129: 936.43 | F129: 914.22 | G129: 892.43 | H129: 980.43 | I129: 1002.22 | J129: 1024.43 | K129: 980 | L129: 936 | M129: 0.31366
A130: 120 | B130: DEEPAKNTR | C130: 2119.4 | D130: 2119.58 | E130: 2081.87 | F130: 2044.33 | G130: 2006.62 | H130: 2157.12 | I130: 2194.83 | J130: 2232.37 | K130: 2157.3 | L130: 2082.05 | M130: 7.47103
A131: 121 | B131: DELTACORP | C131: 246.65 | D131: 251.07 | E131: 240.68 | F131: 234.72 | G131: 224.33 | H131: 257.03 | I131: 267.42 | J131: 273.38 | K131: 261.45 | L131: 245.1 | M131: 82.48679
A132: 122 | B132: DHANI | C132: 165.4 | D132: 165.37 | E132: 161.73 | F132: 158.07 | G132: 154.43 | H132: 169.03 | I132: 172.67 | J132: 176.33 | K132: 169 | L132: 161.7 | M132: 22.88199
A133: 123 | B133: DHANUKA | C133: 739 | D133: 739.00 | E133: 729.95 | F133: 720.90 | G133: 711.85 | H133: 748.05 | I133: 757.10 | J133: 766.15 | K133: 748.05 | L133: 729.95 | M133: 0.22471
A134: 124 | B134: DIVISLAB | C134: 4878.8 | D134: 4889.55 | E134: 4829.40 | F134: 4780.00 | G134: 4719.85 | H134: 4938.95 | I134: 4999.10 | J134: 5048.50 | K134: 4949.7 | L134: 4840.15 | M134: 8.64073
A135: 125 | B135: DIXON | C135: 5100.7 | D135: 5093.90 | E135: 5012.80 | F135: 4924.90 | G135: 4843.80 | H135: 5181.80 | I135: 5262.90 | J135: 5350.80 | K135: 5175 | L135: 5006 | M135: 4.31979
A136: 126 | B136: DLF | C136: 374.8 | D136: 379.18 | E136: 367.62 | F136: 360.43 | G136: 348.87 | H136: 386.37 | I136: 397.93 | J136: 405.12 | K136: 390.75 | L136: 372 | M136: 99.84396
A137: 127 | B137: DMART | C137: 4710.9 | D137: 4723.97 | E137: 4647.93 | F137: 4584.97 | G137: 4508.93 | H137: 4786.93 | I137: 4862.97 | J137: 4925.93 | K137: 4800 | L137: 4661 | M137: 7.90479
A138: 128 | B138: DRREDDY | C138: 4675.85 | D138: 4691.37 | E138: 4634.48 | F138: 4593.12 | G138: 4536.23 | H138: 4732.73 | I138: 4789.62 | J138: 4830.98 | K138: 4748.25 | L138: 4650 | M138: 7.17823
A139: 129 | B139: ECLERX | C139: 2188.3 | D139: 2183.78 | E139: 2032.57 | F139: 1876.83 | G139: 1725.62 | H139: 2339.52 | I139: 2490.73 | J139: 2646.47 | K139: 2335 | L139: 2028.05 | M139: 3.88459
A140: 130 | B140: EDELWEISS | C140: 67.1 | D140: 68.33 | E140: 64.97 | F140: 62.83 | G140: 59.47 | H140: 70.47 | I140: 73.83 | J140: 75.97 | K140: 71.7 | L140: 66.2 | M140: 17.31054
A141: 131 | B141: EICHERMOT | C141: 2370.45 | D141: 2392.48 | E141: 2337.97 | F141: 2305.48 | G141: 2250.97 | H141: 2424.97 | I141: 2479.48 | J141: 2511.97 | K141: 2447 | L141: 2360 | M141: 11.01715
A142: 132 | B142: EIDPARRY | C142: 466.45 | D142: 461.80 | E142: 444.60 | F142: 422.75 | G142: 405.55 | H142: 483.65 | I142: 500.85 | J142: 522.70 | K142: 479 | L142: 439.95 | M142: 5.9067
A143: 133 | B143: EIHOTEL | C143: 120.4 | D143: 122.98 | E143: 115.97 | F143: 111.53 | G143: 104.52 | H143: 127.42 | I143: 134.43 | J143: 138.87 | K143: 130 | L143: 118.55 | M143: 7.49705
A144: 134 | B144: ELGIEQUIP | C144: 275.25 | D144: 279.45 | E144: 266.80 | F144: 258.35 | G144: 245.70 | H144: 287.90 | I144: 300.55 | J144: 309.00 | K144: 292.1 | L144: 271 | M144: 12.33287
A145: 135 | B145: EMAMILTD | C145: 527.05 | D145: 521.77 | E145: 511.53 | F145: 496.02 | G145: 485.78 | H145: 537.28 | I145: 547.52 | J145: 563.03 | K145: 532 | L145: 506.25 | M145: 3.6974
A146: 136 | B146: ENDURANCE | C146: 1667.8 | D146: 1696.73 | E146: 1602.07 | F146: 1536.33 | G146: 1441.67 | H146: 1762.47 | I146: 1857.13 | J146: 1922.87 | K146: 1791.4 | L146: 1631 | M146: 2.42278
A147: 137 | B147: ENGINERSIN | C147: 71.7 | D147: 72.03 | E147: 70.57 | F147: 69.43 | G147: 67.97 | H147: 73.17 | I147: 74.63 | J147: 75.77 | K147: 73.5 | L147: 70.9 | M147: 22.93395
A148: 138 | B148: EPL | C148: 197.95 | D148: 198.70 | E148: 194.25 | F148: 190.55 | G148: 186.10 | H148: 202.40 | I148: 206.85 | J148: 210.55 | K148: 203.15 | L148: 195 | M148: 6.40132
A149: 139 | B149: EQUITAS | C149: 121.25 | D149: 121.37 | E149: 118.88 | F149: 116.52 | G149: 114.03 | H149: 123.73 | I149: 126.22 | J149: 128.58 | K149: 123.85 | L149: 119 | M149: 5.17163
A150: 140 | B150: EQUITASBNK | C150: 60.3 | D150: 60.70 | E150: 57.90 | F150: 55.50 | G150: 52.70 | H150: 63.10 | I150: 65.90 | J150: 68.30 | K150: 63.5 | L150: 58.3 | M150: 31.5525
A151: 141 | B151: ERIS | C151: 719.6 | D151: 722.23 | E151: 705.07 | F151: 690.53 | G151: 673.37 | H151: 736.77 | I151: 753.93 | J151: 768.47 | K151: 739.4 | L151: 707.7 | M151: 0.47896
A152: 142 | B152: ESCORTS | C152: 1846.3 | D152: 1854.38 | E152: 1828.77 | F152: 1811.23 | G152: 1785.62 | H152: 1871.92 | I152: 1897.53 | J152: 1915.07 | K152: 1880 | L152: 1836.85 | M152: 12.80247
A153: 143 | B153: EXIDEIND | C153: 162.8 | D153: 163.90 | E153: 160.90 | F153: 159.00 | G153: 156.00 | H153: 165.80 | I153: 168.80 | J153: 170.70 | K153: 166.9 | L153: 162 | M153: 20.39097
A154: 144 | B154: FACT | C154: 109.9 | D154: 111.33 | E154: 105.67 | F154: 101.43 | G154: 95.77 | H154: 115.57 | I154: 121.23 | J154: 125.47 | K154: 117 | L154: 107.1 | M154: 3.79227
A155: 145 | B155: FDC | C155: 285.1 | D155: 284.80 | E155: 278.85 | F155: 272.60 | G155: 266.65 | H155: 291.05 | I155: 297.00 | J155: 303.25 | K155: 290.75 | L155: 278.55 | M155: 1.73623
A156: 146 | B156: FEDERALBNK | C156: 86.8 | D156: 87.75 | E156: 85.30 | F156: 83.80 | G156: 81.35 | H156: 89.25 | I156: 91.70 | J156: 93.20 | K156: 90.2 | L156: 86.25 | M156: 202.66746
A157: 147 | B157: FINCABLES | C157: 567.05 | D157: 567.88 | E157: 554.17 | F157: 541.28 | G157: 527.57 | H157: 580.77 | I157: 594.48 | J157: 607.37 | K157: 581.6 | L157: 555 | M157: 4.17137
A158: 148 | B158: FINEORG | C158: 3590.1 | D158: 3591.70 | E158: 3488.40 | F158: 3386.70 | G158: 3283.40 | H158: 3693.40 | I158: 3796.70 | J158: 3898.40 | K158: 3695 | L158: 3490 | M158: 0.36083
A159: 149 | B159: FINPIPE | C159: 211.85 | D159: 206.95 | E159: 199.40 | F159: 186.95 | G159: 179.40 | H159: 219.40 | I159: 226.95 | J159: 239.40 | K159: 214.5 | L159: 194.5 | M159: 34.74538
A160: 150 | B160: FLUOROCHEM | C160: 1966.85 | D160: 1988.62 | E160: 1923.23 | F160: 1879.62 | G160: 1814.23 | H160: 2032.23 | I160: 2097.62 | J160: 2141.23 | K160: 2054 | L160: 1945 | M160: 0.64752
A161: 151 | B161: FORTIS | C161: 280.8 | D161: 284.23 | E161: 275.57 | F161: 270.33 | G161: 261.67 | H161: 289.47 | I161: 298.13 | J161: 303.37 | K161: 292.9 | L161: 279 | M161: 26.35994
A162: 152 | B162: FRETAIL | C162: 49.6 | D162: 50.33 | E162: 48.27 | F162: 46.93 | G162: 44.87 | H162: 51.67 | I162: 53.73 | J162: 55.07 | K162: 52.4 | L162: 49 | M162: 22.28402
A163: 153 | B163: FSL | C163: 169.6 | D163: 168.08 | E163: 164.62 | F163: 159.63 | G163: 156.17 | H163: 173.07 | I163: 176.53 | J163: 181.52 | K163: 171.55 | L163: 163.1 | M163: 57.92281
A164: 154 | B164: GAEL | C164: 158.5 | D164: 159.47 | E164: 156.23 | F164: 153.97 | G164: 150.73 | H164: 161.73 | I164: 164.97 | J164: 167.23 | K164: 162.7 | L164: 157.2 | M164: 1.20075
A165: 155 | B165: GAIL | C165: 129.8 | D165: 131.15 | E165: 127.60 | F165: 125.40 | G165: 121.85 | H165: 133.35 | I165: 136.90 | J165: 139.10 | K165: 134.7 | L165: 128.95 | M165: 125.61833
A166: 156 | B166: GALAXYSURF | C166: 2776.95 | D166: 2810.92 | E166: 2721.53 | F166: 2666.12 | G166: 2576.73 | H166: 2866.33 | I166: 2955.72 | J166: 3011.13 | K166: 2900.3 | L166: 2755.5 | M166: 0.29325
A167: 157 | B167: GARFIBRES | C167: 3199.55 | D167: 3229.52 | E167: 3145.03 | F167: 3090.52 | G167: 3006.03 | H167: 3284.03 | I167: 3368.52 | J167: 3423.03 | K167: 3314 | L167: 3175 | M167: 0.22601
A168: 158 | B168: GESHIP | C168: 293.65 | D168: 299.12 | E168: 285.83 | F168: 278.02 | G168: 264.73 | H168: 306.93 | I168: 320.22 | J168: 328.03 | K168: 312.4 | L168: 291.3 | M168: 2.09673
A169: 159 | B169: GICRE | C169: 141.75 | D169: 141.83 | E169: 139.47 | F169: 137.18 | G169: 134.82 | H169: 144.12 | I169: 146.48 | J169: 148.77 | K169: 144.2 | L169: 139.55 | M169: 5.98798
A170: 160 | B170: GILLETTE | C170: 5429.15 | D170: 5436.40 | E170: 5392.75 | F170: 5356.35 | G170: 5312.70 | H170: 5472.80 | I170: 5516.45 | J170: 5552.85 | K170: 5480.05 | L170: 5400 | M170: 0.0386
A171: 161 | B171: GLAND | C171: 3585.35 | D171: 3601.40 | E171: 3517.80 | F171: 3450.25 | G171: 3366.65 | H171: 3668.95 | I171: 3752.55 | J171: 3820.10 | K171: 3685 | L171: 3533.85 | M171: 2.31762
A172: 162 | B172: GLAXO | C172: 1678.95 | D172: 1680.85 | E172: 1636.70 | F172: 1594.45 | G172: 1550.30 | H172: 1723.10 | I172: 1767.25 | J172: 1809.50 | K172: 1725 | L172: 1638.6 | M172: 6.86523
A173: 163 | B173: GLENMARK | C173: 523.8 | D173: 521.18 | E173: 512.37 | F173: 500.93 | G173: 492.12 | H173: 532.62 | I173: 541.43 | J173: 552.87 | K173: 530 | L173: 509.75 | M173: 15.97879
A174: 164 | B174: GMMPFAUDLR | C174: 4476.65 | D174: 4475.97 | E174: 4411.93 | F174: 4347.22 | G174: 4283.18 | H174: 4540.68 | I174: 4604.72 | J174: 4669.43 | K174: 4540 | L174: 4411.25 | M174: 0.61967
A175: 165 | B175: GMRINFRA | C175: 37.6 | D175: 38.12 | E175: 36.83 | F175: 36.07 | G175: 34.78 | H175: 38.88 | I175: 40.17 | J175: 40.93 | K175: 39.4 | L175: 37.35 | M175: 237.93738
A176: 166 | B176: GNFC | C176: 424.75 | D176: 423.55 | E176: 415.20 | F176: 405.65 | G176: 397.30 | H176: 433.10 | I176: 441.45 | J176: 451.00 | K176: 431.9 | L176: 414 | M176: 7.46422
A177: 167 | B177: GODFRYPHLP | C177: 1213.4 | D177: 1208.12 | E177: 1185.38 | F177: 1157.37 | G177: 1134.63 | H177: 1236.13 | I177: 1258.87 | J177: 1286.88 | K177: 1230.85 | L177: 1180.1 | M177: 0.66537
A178: 168 | B178: GODREJAGRO | C178: 527.25 | D178: 532.40 | E178: 519.85 | F178: 512.45 | G178: 499.90 | H178: 539.80 | I178: 552.35 | J178: 559.75 | K178: 544.95 | L178: 525 | M178: 1.141
A179: 169 | B179: GODREJCP | C179: 923.1 | D179: 922.68 | E179: 914.02 | F179: 904.93 | G179: 896.27 | H179: 931.77 | I179: 940.43 | J179: 949.52 | K179: 931.35 | L179: 913.6 | M179: 22.53997
A180: 170 | B180: GODREJIND | C180: 569.3 | D180: 576.13 | E180: 553.27 | F180: 537.23 | G180: 514.37 | H180: 592.17 | I180: 615.03 | J180: 631.07 | K180: 599 | L180: 560.1 | M180: 1.78301
A181: 171 | B181: GODREJPROP | C181: 1996.7 | D181: 2043.22 | E181: 1913.48 | F181: 1830.27 | G181: 1700.53 | H181: 2126.43 | I181: 2256.17 | J181: 2339.38 | K181: 2172.95 | L181: 1960 | M181: 150.91293
A182: 172 | B182: GPPL | C182: 98.5 | D182: 99.67 | E182: 95.33 | F182: 92.17 | G182: 87.83 | H182: 102.83 | I182: 107.17 | J182: 110.33 | K182: 104 | L182: 96.5 | M182: 10.50275
A183: 173 | B183: GRANULES | C183: 300.6 | D183: 296.73 | E183: 290.57 | F183: 280.53 | G183: 274.37 | H183: 306.77 | I183: 312.93 | J183: 322.97 | K183: 302.9 | L183: 286.7 | M183: 43.33689
A184: 174 | B184: GRAPHITE | C184: 408.8 | D184: 415.93 | E184: 397.87 | F184: 386.93 | G184: 368.87 | H184: 426.87 | I184: 444.93 | J184: 455.87 | K184: 434 | L184: 405 | M184: 5.68127
A185: 175 | B185: GRASIM | C185: 1662.45 | D185: 1674.13 | E185: 1638.62 | F185: 1614.78 | G185: 1579.27 | H185: 1697.97 | I185: 1733.48 | J185: 1757.32 | K185: 1709.65 | L185: 1650.3 | M185: 16.43449
A186: 176 | B186: GREAVESCOT | C186: 137.3 | D186: 139.67 | E186: 133.78 | F186: 130.27 | G186: 124.38 | H186: 143.18 | I186: 149.07 | J186: 152.58 | K186: 145.55 | L186: 136.15 | M186: 32.02459
A187: 177 | B187: GRINDWELL | C187: 1613.25 | D187: 1646.12 | E187: 1517.23 | F187: 1421.22 | G187: 1292.33 | H187: 1742.13 | I187: 1871.02 | J187: 1967.03 | K187: 1775 | L187: 1550.1 | M187: 8.66545
A188: 178 | B188: GSFC | C188: 111.55 | D188: 110.50 | E188: 106.05 | F188: 100.55 | G188: 96.10 | H188: 116.00 | I188: 120.45 | J188: 125.95 | K188: 114.95 | L188: 105 | M188: 59.47245
A189: 179 | B189: GSPL | C189: 313.3 | D189: 311.62 | E189: 302.43 | F189: 291.57 | G189: 282.38 | H189: 322.48 | I189: 331.67 | J189: 342.53 | K189: 320.8 | L189: 300.75 | M189: 24.66802
A190: 180 | B190: GUJALKALI | C190: 607.55 | D190: 607.53 | E190: 596.07 | F190: 584.58 | G190: 573.12 | H190: 619.02 | I190: 630.48 | J190: 641.97 | K190: 619 | L190: 596.05 | M190: 2.27747
A191: 181 | B191: GUJGASLTD | C191: 669.95 | D191: 668.15 | E191: 657.95 | F191: 645.95 | G191: 635.75 | H191: 680.15 | I191: 690.35 | J191: 702.35 | K191: 678.35 | L191: 656.15 | M191: 10.41053
A192: 182 | B192: HAL | C192: 1276.9 | D192: 1286.00 | E192: 1261.00 | F192: 1245.10 | G192: 1220.10 | H192: 1301.90 | I192: 1326.90 | J192: 1342.80 | K192: 1311 | L192: 1270.1 | M192: 4.19921
A193: 183 | B193: HAPPSTMNDS | C193: 1205.55 | D193: 1211.83 | E193: 1173.72 | F193: 1141.88 | G193: 1103.77 | H193: 1243.67 | I193: 1281.78 | J193: 1313.62 | K193: 1249.95 | L193: 1180 | M193: 1.36442
A194: 184 | B194: HATHWAY | C194: 20 | D194: 20.07 | E194: 19.63 | F194: 19.27 | G194: 18.83 | H194: 20.43 | I194: 20.87 | J194: 21.23 | K194: 20.5 | L194: 19.7 | M194: 23.57609
A195: 185 | B195: HATSUN | C195: 1332.05 | D195: 1322.80 | E195: 1301.60 | F195: 1271.15 | G195: 1249.95 | H195: 1353.25 | I195: 1374.45 | J195: 1404.90 | K195: 1344 | L195: 1292.35 | M195: 0.40123
A196: 186 | B196: HAVELLS | C196: 1360.35 | D196: 1364.77 | E196: 1319.58 | F196: 1278.82 | G196: 1233.63 | H196: 1405.53 | I196: 1450.72 | J196: 1491.48 | K196: 1409.95 | L196: 1324 | M196: 66.045
A197: 187 | B197: HCLTECH | C197: 1138.65 | D197: 1143.18 | E197: 1128.47 | F197: 1118.28 | G197: 1103.57 | H197: 1153.37 | I197: 1168.08 | J197: 1178.27 | K197: 1157.9 | L197: 1133 | M197: 74.21904
A198: 188 | B198: HDFC | C198: 2673.1 | D198: 2698.00 | E198: 2631.10 | F198: 2589.10 | G198: 2522.20 | H198: 2740.00 | I198: 2806.90 | J198: 2848.90 | K198: 2764.9 | L198: 2656 | M198: 76.28539
A199: 189 | B199: HDFCAMC | C199: 2511.3 | D199: 2527.98 | E199: 2483.32 | F199: 2455.33 | G199: 2410.67 | H199: 2555.97 | I199: 2600.63 | J199: 2628.62 | K199: 2572.65 | L199: 2500 | M199: 5.53802
A200: 190 | B200: HDFCBANK | C200: 1493.55 | D200: 1503.03 | E200: 1477.07 | F200: 1460.58 | G200: 1434.62 | H200: 1519.52 | I200: 1545.48 | J200: 1561.97 | K200: 1529 | L200: 1486.55 | M200: 126.10771
A201: 191 | B201: HDFCLIFE | C201: 680.8 | D201: 681.07 | E201: 672.38 | F201: 663.97 | G201: 655.28 | H201: 689.48 | I201: 698.17 | J201: 706.58 | K201: 689.75 | L201: 672.65 | M201: 115.35239
A202: 192 | B202: HEG | C202: 1806.5 | D202: 1830.75 | E202: 1776.70 | F202: 1746.90 | G202: 1692.85 | H202: 1860.55 | I202: 1914.60 | J202: 1944.40 | K202: 1884.8 | L202: 1800.95 | M202: 0.78749
A203: 193 | B203: HEIDELBERG | C203: 220.7 | D203: 222.53 | E203: 218.17 | F203: 215.63 | G203: 211.27 | H203: 225.07 | I203: 229.43 | J203: 231.97 | K203: 226.9 | L203: 220 | M203: 1.09393
A204: 194 | B204: HEMIPROP | C204: 130.85 | D204: 132.03 | E204: 129.32 | F204: 127.78 | G204: 125.07 | H204: 133.57 | I204: 136.28 | J204: 137.82 | K204: 134.75 | L204: 130.5 | M204: 4.86296
A205: 195 | B205: HEROMOTOCO | C205: 2449.3 | D205: 2462.00 | E205: 2411.35 | F205: 2373.40 | G205: 2322.75 | H205: 2499.95 | I205: 2550.60 | J205: 2588.55 | K205: 2512.65 | L205: 2424.05 | M205: 15.27406
A206: 196 | B206: HFCL | C206: 71.8 | D206: 71.63 | E206: 69.67 | F206: 67.53 | G206: 65.57 | H206: 73.77 | I206: 75.73 | J206: 77.87 | K206: 73.6 | L206: 69.5 | M206: 209.19768
... 320 more rows

Sheet Bulk Deals
E6: Back To Main Page
A7: Subject : | B7: BULK DEAL | D7: =Main!B10 -> 2021-12-01
A9: Date | B9: Scrip code | C9: Scrip Name | D9: Client Name | E9: Buy / Sell | F9: Quantity Traded | G9: Trade Price / Wt.Avg.trade price | H9: Exchange
A10: 2021-11-30 | B10: 531991 | C10: AMRAAGRI | D10: ALPHA LEON ENTERPRISES LLP | E10: BUY | F10: 5 | G10: 0.62 | H10: BSE
A11: 2021-11-30 | B11: 531991 | C11: AMRAAGRI | D11: ALPHA LEON ENTERPRISES LLP | E11: SELL | F11: 1,300,005 | G11: 0.62 | H11: BSE
A12: 2021-11-30 | B12: 542865 | C12: ANUROOP | D12: MANOHARRAMCHANDRAWAGLEHUF | E12: SELL | F12: 40,000 | G12: 14.8 | H12: BSE
A13: 2021-11-30 | B13: 542865 | C13: ANUROOP | D13: NEETA BIPIN SHAH | E13: BUY | F13: 50,000 | G13: 14.84 | H13: BSE
A14: 2021-11-30 | B14: 539288 | C14: AVI | D14: KAPIL KUMAR SHARMA | E14: SELL | F14: 25,856 | G14: 59.5 | H14: BSE
A15: 2021-11-30 | B15: 539288 | C15: AVI | D15: ANCHAL KUMAR TIWARI | E15: SELL | F15: 30,917 | G15: 59.5 | H15: BSE
A16: 2021-11-30 | B16: 539288 | C16: AVI | D16: DAHYABHAI PATEL | E16: SELL | F16: 27,200 | G16: 59.32 | H16: BSE
A17: 2021-11-30 | B17: 539288 | C17: AVI | D17: BHAVIN JAYESHKUMAR BHIMANI | E17: SELL | F17: 23,625 | G17: 59.33 | H17: BSE
A18: 2021-11-30 | B18: 539621 | C18: BCLENTERPR | D18: ABHINAY MAULIK JOSHI | E18: SELL | F18: 36,000 | G18: 10.11 | H18: BSE
A19: 2021-11-30 | B19: 539621 | C19: BCLENTERPR | D19: JAYASEELAN SINGARAVELU | E19: BUY | F19: 37,394 | G19: 10.1 | H19: BSE
A20: 2021-11-30 | B20: 539304 | C20: CANOPYFIN | D20: SHIV PARVATI LEASING LIMITED | E20: SELL | F20: 236,983 | G20: 14.25 | H20: BSE
A21: 2021-11-30 | B21: 539304 | C21: CANOPYFIN | D21: MWF LOGISTICS LIMITED | E21: BUY | F21: 92,000 | G21: 14.25 | H21: BSE
A22: 2021-11-30 | B22: 539304 | C22: CANOPYFIN | D22: INTELLECT STOCK BROKING LIMITED | E22: BUY | F22: 100,000 | G22: 14.25 | H22: BSE
A23: 2021-11-30 | B23: 539304 | C23: CANOPYFIN | D23: PRANESH DEALMARK PRIVATE LIMITED | E23: SELL | F23: 135,000 | G23: 14.25 | H23: BSE
A24: 2021-11-30 | B24: 539559 | C24: DDIL | D24: OLGA TRADING PRIVATE LIMITED | E24: BUY | F24: 99,926 | G24: 14 | H24: BSE
A25: 2021-11-30 | B25: 539559 | C25: DDIL | D25: ARCHANA CHIMANLAL PARETA | E25: SELL | F25: 28,730 | G25: 14 | H25: BSE
A26: 2021-11-30 | B26: 539559 | C26: DDIL | D26: JINAL NEERAJ RAMNANI | E26: SELL | F26: 32,000 | G26: 14 | H26: BSE
A27: 2021-11-30 | B27: 539559 | C27: DDIL | D27: NARAYANSWAMY VENKITKRISHNAN | E27: SELL | F27: 39,270 | G27: 14 | H27: BSE
A28: 2021-11-30 | B28: 540811 | C28: DML | D28: KINGSMAN WEALTH MANAGEMENT PRIVATE LIMITED | E28: BUY | F28: 60,000 | G28: 11.68 | H28: BSE
A29: 2021-11-30 | B29: 542724 | C29: EARUM | D29: VANRAJ DADBHAI KAHOR | E29: BUY | F29: 102,314 | G29: 70.05 | H29: BSE
A30: 2021-11-30 | B30: 542724 | C30: EARUM | D30: VANRAJ DADBHAI KAHOR | E30: SELL | F30: 114,356 | G30: 70.35 | H30: BSE
A31: 2021-11-30 | B31: 542724 | C31: EARUM | D31: AKSHAY RAJENDRABHAI OSWAL | E31: SELL | F31: 75,829 | G31: 70.05 | H31: BSE
A32: 2021-11-30 | B32: 540936 | C32: GGL | D32: NAVEEN GUPTA | E32: BUY | F32: 51,739 | G32: 13.98 | H32: BSE
A33: 2021-11-30 | B33: 540936 | C33: GGL | D33: NAVEEN GUPTA | E33: SELL | F33: 51,739 | G33: 14.35 | H33: BSE
A34: 2021-11-30 | B34: 540936 | C34: GGL | D34: YACOOBALI AIYUB MOHAMMED | E34: BUY | F34: 92,101 | G34: 14.24 | H34: BSE
A35: 2021-11-30 | B35: 540936 | C35: GGL | D35: YACOOBALI AIYUB MOHAMMED | E35: SELL | F35: 90,737 | G35: 14.17 | H35: BSE
A36: 2021-11-30 | B36: 513723 | C36: HGIND | D36: SANJEEV KRISHNA BHALOTIA | E36: SELL | F36: 31,760 | G36: 46.53 | H36: BSE
A37: 2021-11-30 | B37: 539814 | C37: LELAVOIR | D37: NAVEEN GUPTA | E37: BUY | F37: 1,250 | G37: 35.53 | H37: BSE
A38: 2021-11-30 | B38: 539814 | C38: LELAVOIR | D38: NAVEEN GUPTA | E38: SELL | F38: 16,656 | G38: 35.92 | H38: BSE
A39: 2021-11-30 | B39: 539814 | C39: LELAVOIR | D39: AANCHAL VINOD BHANDARI | E39: BUY | F39: 19,000 | G39: 35.95 | H39: BSE
A40: 2021-11-30 | B40: 540401 | C40: MAXIMUS | D40: HARSHA RAJESHBHAI JHAVERI | E40: BUY | F40: 68,003 | G40: 94.95 | H40: BSE
A41: 2021-11-30 | B41: 540401 | C41: MAXIMUS | D41: MUKESH MANUBHAI SHAH | E41: SELL | F41: 68,000 | G41: 94.95 | H41: BSE
A42: 2021-11-30 | B42: 526622 | C42: MFLINDIA | D42: KAMLESH NAVINCHANDRA SHAH | E42: BUY | F42: 1,700,000 | G42: 0.48 | H42: BSE
A43: 2021-11-30 | B43: 526622 | C43: MFLINDIA | D43: KAMLESH NAVINCHANDRA SHAH | E43: SELL | F43: 2,301,429 | G43: 0.51 | H43: BSE
A44: 2021-11-30 | B44: 543207 | C44: NATURAL | D44: RAJESHKUMAR RAMESHCHANDRA GUPTA | E44: BUY | F44: 102,001 | G44: 15.4 | H44: BSE
A45: 2021-11-30 | B45: 543207 | C45: NATURAL | D45: RAJESHKUMAR RAMESHCHANDRA GUPTA | E45: SELL | F45: 89,800 | G45: 15.85 | H45: BSE
A46: 2021-11-30 | B46: 540243 | C46: NEWLIGHT | D46: ANKUSH PATEL | E46: BUY | F46: 12,200 | G46: 45.86 | H46: BSE
A47: 2021-11-30 | B47: 540243 | C47: NEWLIGHT | D47: KAUSHIK MAHESH WAGHELA | E47: BUY | F47: 3,330 | G47: 43.87 | H47: BSE
A48: 2021-11-30 | B48: 540243 | C48: NEWLIGHT | D48: MONIKA RAJPUT | E48: BUY | F48: 15,208 | G48: 47.07 | H48: BSE
A49: 2021-11-30 | B49: 540243 | C49: NEWLIGHT | D49: KAUSHIK MAHESH WAGHELA | E49: SELL | F49: 19,180 | G49: 46.03 | H49: BSE
A50: 2021-11-30 | B50: 540243 | C50: NEWLIGHT | D50: MANISH NITIN THAKUR | E50: BUY | F50: 36 | G50: 47.44 | H50: BSE
A51: 2021-11-30 | B51: 540243 | C51: NEWLIGHT | D51: MANISH NITIN THAKUR | E51: SELL | F51: 20,321 | G51: 47.16 | H51: BSE
A52: 2021-11-30 | B52: 543400 | C52: OMNIPOTENT | D52: SERNET FINANCIAL SERVICES PRIVATE LIMITED | E52: SELL | F52: 152,000 | G52: 89.35 | H52: BSE
A53: 2021-11-30 | B53: 543400 | C53: OMNIPOTENT | D53: DEEPTHI BALAGIRI | E53: BUY | F53: 150,000 | G53: 89.35 | H53: BSE
A54: 2021-11-30 | B54: 540198 | C54: OSIAJEE | D54: TURBOT MARKETING PRIVATE LIMITED . | E54: SELL | F54: 60,000 | G54: 41.21 | H54: BSE
A55: 2021-11-30 | B55: 540198 | C55: OSIAJEE | D55: GAMINI DINESH GARG | E55: BUY | F55: 47,430 | G55: 41.27 | H55: BSE
A56: 2021-11-30 | B56: 540198 | C56: OSIAJEE | D56: REEMA SAROYA | E56: BUY | F56: 47,450 | G56: 41.29 | H56: BSE
A57: 2021-11-30 | B57: 538860 | C57: PANAFIC | D57: PARESH DHIRAJLAL SHAH | E57: SELL | F57: 670,000 | G57: 0.93 | H57: BSE
A58: 2021-11-30 | B58: 538860 | C58: PANAFIC | D58: FRANCISASSISI KATTIKATT ANTONY | E58: SELL | F58: 500,000 | G58: 0.93 | H58: BSE
A59: 2021-11-30 | B59: 538860 | C59: PANAFIC | D59: ALPHA LEON ENTERPRISES LLP | E59: BUY | F59: 2,388,234 | G59: 0.88 | H59: BSE
A60: 2021-11-30 | B60: 538860 | C60: PANAFIC | D60: ALPHA LEON ENTERPRISES LLP | E60: SELL | F60: 1,538,234 | G60: 0.93 | H60: BSE
A61: 2021-11-30 | B61: 540159 | C61: PURPLE | D61: SHAIKH ASRAFALI NURULHUDA | E61: SELL | F61: 104,974 | G61: 10.36 | H61: BSE
A62: 2021-11-30 | B62: 540159 | C62: PURPLE | D62: RAHUL DEEPAK PARIKH | E62: SELL | F62: 50,881 | G62: 10.36 | H62: BSE
A63: 2021-11-30 | B63: 540159 | C63: PURPLE | D63: WONDERLAND SUPPLIERS PRIVATE LIMITED | E63: BUY | F63: 215,000 | G63: 10.36 | H63: BSE
A64: 2021-11-30 | B64: 519191 | C64: RGRL | D64: AMARJEET SINGH TOOR | E64: BUY | F64: 40,659 | G64: 24.6 | H64: BSE
A65: 2021-11-30 | B65: 539526 | C65: SCTL | D65: ALPHA LEON ENTERPRISES LLP | E65: SELL | F65: 2,481,527 | G65: 1.11 | H65: BSE
A66: 2021-11-30 | B66: 538875 | C66: SELLWIN | D66: RESPONCE INVESTMENTS LTD | E66: SELL | F66: 91,250 | G66: 15.37 | H66: BSE
A67: 2021-11-30 | B67: 542146 | C67: SKIFL | D67: BEELINE BROKING LIMITED | E67: SELL | F67: 30,000 | G67: 6.37 | H67: BSE
A68: 2021-11-30 | B68: 542146 | C68: SKIFL | D68: MOHAMEDAMIN MOHAMMAD NATHANI | E68: BUY | F68: 20,000 | G68: 6.15 | H68: BSE
A69: 2021-11-30 | B69: 500402 | C69: SPMLINFRA | D69: ALPHA LEON ENTERPRISES LLP | E69: BUY | F69: 200,039 | G69: 18.93 | H69: BSE
A70: 2021-11-30 | B70: 500402 | C70: SPMLINFRA | D70: ALPHA LEON ENTERPRISES LLP | E70: SELL | F70: 200,039 | G70: 20.77 | H70: BSE
A71: 2021-11-30 | B71: 539026 | C71: SSPNFIN | D71: ESPS FINSERVE PRIVATE LIMITED. | E71: SELL | F71: 24,000 | G71: 8.4 | H71: BSE
A72: 2021-11-30 | B72: 539026 | C72: SSPNFIN | D72: SAROJ GUPTA | E72: BUY | F72: 36,000 | G72: 8.4 | H72: BSE
A73: 2021-11-30 | B73: 538607 | C73: TOYAMIND | D73: NISHCHAYA TRADINGS PRIVATE LIMITED | E73: SELL | F73: 1,100,000 | G73: 3.49 | H73: BSE
A74: 2021-11-30 | B74: 538607 | C74: TOYAMIND | D74: ECOTEK GENERAL TRADING LLC | E74: BUY | F74: 1,100,000 | G74: 3.49 | H74: BSE

Sheet Call Tracker (Equity & F&O)
M5: Back To Main Page
A6: Retail Research Technical Calls & Fundamental Performance Report for the month of Nov-2021
M7: =Main!B10 -> 2021-12-01
B8: Positional Call
A9: Sr.no | B9: Date | D9: Company | E9: Rec | F9: Rec Price | G9: Stop Loss*** | H9: Call Closed At | I9: Target | J9: Remark | K9: Profit / Loss per Share | L9: All charges | M9: Net Gain / Loss % | N9: Status | O9: Closed Date | P9: Market Closing Price
A10: 1 | B10: 2021-09-15 | D10: AKZOINDIA | E10: Buy | F10: 2195 | G10: 2080 | H10: 2,295.00 | I10: 2400-2500 | J10: Profit of Rs.50/- | K10: 50 | L10: =(F10*-0.7)/100 -> -15.37 | M10: =(K10+L10)/F10 -> 1.58% | N10: Successful | O10: 2021-11-22 | R10: H
A11: 2 | B11: 2021-09-21 | D11: GLAXO | E11: Buy | F11: 1510 | G11: 1395 | H11: 1,585.00 | I11: 1680-1720 | J11: Profit of Rs.75/- | K11: =H11-F11 -> 75 | L11: -10.57 | M11: 4.27% | N11: Successful | O11: 2021-11-01 | R11: H
A12: 3 | B12: 2021-10-05 | D12: HDFCLIFE | E12: Buy | F12: 715-725 | G12: 660 | I12: 820-850 | J12: Open | P12: =VLOOKUP(D12,'MidCap Intra'!B22:C524,2,0) -> 680.8 | R12: H
A13: 4 | B13: 2021-10-08 | D13: BRITANNIA | E13: Buy | F13: 3870 | G13: 3670 | H13: 3,670.00 | I13: 4200-4300 | J13: Loss of Rs.200/- | K13: =H13-F13 -> -200 | L13: =(F13*-0.7)/100 -> -27.09 | M13: =(K13+L13)/F13 -> -5.87% | N13: Unsuccessful | O13: 2021-11-03 | R13: H
A14: 5 | B14: 2021-10-11 | D14: ULTRACEMCO | E14: Buy | F14: 7330 | G14: 6980 | H14: 7,760.00 | I14: 7700-8000 | J14: Profit of Rs.430/- | K14: =H14-F14 -> 430 | L14: =(F14*-0.7)/100 -> -51.31 | M14: =(K14+L14)/F14 -> 5.17% | N14: Successful | O14: 2021-11-01 | R14: H
A15: 6 | B15: 2021-10-26 | D15: ICICIGI | E15: Buy | F15: 1480-1500 | G15: 1395 | I15: 1600-1700 | J15: Open | P15: =VLOOKUP(D15,'MidCap Intra'!B29:C522,2,0) -> 1437.35 | R15: H
A16: 7 | B16: 2021-10-27 | D16: WHIRLPOOL | E16: Buy | F16: 2245 | G16: 2080 | H16: 2,080.00 | I16: 2400-2500 | J16: Loss of Rs.165/- | K16: =H16-F16 -> -165 | L16: =(F16*-0.7)/100 -> -15.72 | M16: =(K16+L16)/F16 -> -8.05% | N16: Unsuccessful | O16: 2021-11-03 | R16: H
A17: 8 | B17: 2021-11-01 | D17: IGL | E17: Buy | F17: 474 | G17: 447 | H17: 501.00 | I17: 500-520 | J17: Profit of Rs.27/- | K17: 27 | L17: -3.32 | M17: 5.00% | N17: Successful | O17: 2021-11-11 | R17: H
A18: 9 | B18: 2021-11-01 | D18: MGL | E18: Buy | F18: 1010 | G18: 955 | H18: 955.00 | I18: 1070-1120 | J18: Loss of Rs.55/- | K18: =H18-F18 -> -55 | L18: =(F18*-0.7)/100 -> -7.07 | M18: =(K18+L18)/F18 -> -6.15% | N18: Unsuccessful | O18: 2021-11-22 | R18: N
A19: 10 | B19: 2021-11-02 | D19: BEL | E19: Buy | F19: 201 | G19: 188 | H19: 214.50 | I19: 215-225 | J19: Profit of Rs.13.5/- | K19: =H19-F19 -> 13.5 | L19: =(F19*-0.7)/100 -> -1.41 | M19: =(K19+L19)/F19 -> 6.02% | N19: Successful | O19: 2021-11-09 | R19: H
A20: 11 | B20: 2021-11-09 | D20: JBCHEPHARM | E20: Buy | F20: 1660 | G20: 1578 | H20: 1,745.00 | I20: 1740-1800 | J20: Profit of Rs.85/- | K20: =H20-F20 -> 85 | L20: =(F20*-0.7)/100 -> -11.62 | M20: =(K20+L20)/F20 -> 4.42% | N20: Successful | O20: 2021-11-10 | R20: H
A21: 12 | B21: 2021-11-11 | D21: VTL | E21: Buy | F21: 2030 | G21: 1940 | H21: 1,940.00 | I21: 2150-2200 | J21: Loss of Rs.90/- | K21: -90 | L21: -14.21 | M21: -5.13% | N21: Unsuccessful | O21: 2021-11-22 | R21: H
A22: 13 | B22: 2021-11-25 | D22: IEX | E22: Buy | F22: 770-775 | G22: 730 | I22: 820-860 | J22: Open | P22: =VLOOKUP(D22,'MidCap Intra'!B36:C529,2,0) -> 744.5 | R22: H
A23: 14 | B23: 2021-11-25 | D23: MAXHEALTH | E23: Buy | F23: 356 | G23: 334 | H23: 381.00 | I23: 375-395 | J23: Profit of Rs.25/- | K23: =H23-F23 -> 25 | L23: =(F23*-0.35)/100 -> -1.25 | M23: =(K23+L23)/F23 -> 6.67% | N23: Successful | O23: 2021-11-29 | R23: N
A24: 15 | B24: 2021-11-25 | D24: IPCALAB | E24: Buy | F24: 2065 | G24: 1950 | H24: 2,155.00 | I24: 2200-2250 | J24: Profit of Rs.90/- | K24: 90 | L24: =(F24*-0.7)/100 -> -14.46 | M24: 3.66% | N24: Successful | O24: 2021-11-30 | R24: H
A25: 16 | B25: 2021-11-26 | D25: SUPREMEIND | E25: Buy | F25: 2150-2170 | G25: 2030 | I25: 2400-2500 | J25: Open | P25: =VLOOKUP(D25,'MidCap Intra'!B39:C532,2,0) -> 2168.45 | R25: H
A26: 17 | B26: 2021-11-26 | D26: BEL | E26: Buy | F26: 200-202 | G26: 189 | I26: 214-224 | J26: Open | P26: =VLOOKUP(D26,'MidCap Intra'!B40:C533,2,0) -> 203.75 | R26: H
A27: 18 | B27: 2021-11-29 | D27: HIKAL | E27: Buy | F27: 492.5 | G27: 460 | H27: 520.00 | I27: 530-560 | J27: Profit of Rs.27.5/- | K27: =H27-F27 -> 27.5 | L27: =(F27*-0.7)/100 -> -3.45 | M27: =(K27+L27)/F27 -> 4.88% | N27: Successful | O27: 2021-11-30 | R27: H
A33: CLBS = Closing Basis ***
A34: Dividend adjusted <> | F34: Reinitiated $
A35: Part book {} | F35: Revised stoploss #
B37: Momentum Call
A38: Sr.no | B38: Date | D38: Company | E38: Rec | F38: Rec Price | G38: Stop Loss | H38: Call Closed At | I38: Target | J38: Remark | K38: Profit / Loss per Share/Lot | L38: All charges | M38: Net Gain / Loss % | N38: Status | O38: Closed Date
A39: 1 | B39: 2021-10-22 | D39: HDFC | E39: Buy | F39: 2925 | G39: 2850 | H39: 2940 | I39: 3020-3050 | J39: Profit of Rs.15/- | K39: =H39-F39 -> 15 | L39: =(F39*-0.7)/100 -> -20.48 | M39: =(K39+L39)/F39 -> -0.19% | N39: Neutral | O39: 2021-11-01 | R39: H
A40: 2 | B40: 2021-10-26 | D40: TCS | E40: Buy | F40: 3487.5 | G40: 3390 | H40: 3565 | I40: 3600-3650 | J40: Profit of Rs.77.5/- | K40: 77.5 | L40: -24.41 | M40: 1.52% | N40: Successful | O40: 2021-11-15 | R40: H
A41: 3 | B41: 2021-10-28 | D41: BSOFT | E41: Buy | F41: 416 | G41: 403 | H41: 424 | I41: 432-445 | J41: Profit of Rs.8/- | K41: =H41-F41 -> 8 | L41: =(F41*-0.7)/100 -> -2.91 | M41: =(K41+L41)/F41 -> 1.22% | N41: Successful | O41: 2021-11-09 | R41: N
A42: 4 | B42: 2021-11-01 | D42: SBIN | E42: Buy | F42: 502 | G42: 487 | H42: 511 | I42: 520-530 | J42: Profit of Rs.9/- | K42: =H42-F42 -> 9 | L42: =(F42*-0.07)/100 -> -0.35 | M42: =(K42+L42)/F42 -> 1.72% | N42: Successful | O42: 2021-11-01 | R42: H
A43: 5 | B43: 2021-11-09 | D43: CAMS | E43: Buy | F43: 2995 | G43: 2900 | H43: 3120 | I43: 3100-3200 | J43: Profit of Rs.125/- | K43: 125 | L43: =(F43*-0.7)/100 -> -20.97 | M43: 3.47% | N43: Successful | O43: 2021-11-16 | R43: H
A44: 6 | B44: 2021-11-09 | D44: DEEPAKNTR | E44: Buy | F44: 2355 | G44: 2290 | H44: 2280 | I44: 2420-2480 | J44: Loss of Rs.75/- | K44: -75 | L44: -16.49 | M44: -3.88% | N44: Unsuccessful | O44: 2021-11-18 | R44: H
A45: 7 | B45: 2021-11-16 | D45: SBIN | E45: Buy | F45: 498.5 | G45: 484 | H45: 484 | I45: 515-530 | J45: Loss of Rs.14.5/- | K45: =H45-F45 -> -14.5 | L45: =(F45*-0.7)/100 -> -3.49 | M45: =(K45+L45)/F45 -> -3.61% | N45: Unsuccessful | O45: 2021-11-18 | R45: H
A46: 8 | B46: 2021-11-17 | D46: AXISBANK | E46: Buy | F46: 714.5 | G46: 696 | H46: 696 | I46: 740-750 | J46: Loss of Rs.18.5/- | K46: -18.5 | L46: -5.00 | M46: -3.29% | N46: Unsuccessful | O46: 2021-11-18 | R46: H
A47: 9 | B47: 2021-11-17 | D47: GREAVESCOT | E47: Buy | F47: 143.75 | G47: 139.5 | H47: 147.5 | I47: 149-151 | J47: Profit of Rs.3.75/- | K47: =H47-F47 -> 3.75 | L47: =(F47*-0.07)/100 -> -0.10 | M47: =(K47+L47)/F47 -> 2.54% | N47: Successful | O47: 2021-11-17 | R47: H
A48: 10 | B48: 2021-11-22 | D48: ICICIBANK | E48: Buy | F48: 759.5 | G48: 738 | H48: 738 | I48: 785-805 | J48: Loss of Rs.21.5/- | K48: -21.5 | L48: =(F48*-0.7)/100 -> -5.32 | M48: -3.53% | N48: Unsuccessful | O48: 2021-11-26 | R48: H
A49: 11 | B49: 2021-11-22 | D49: IEX | E49: Buy | F49: 767 | G49: 745 | H49: 789 | I49: 800-810 | J49: Profit of Rs.22/- | K49: =H49-F49 -> 22 | L49: =(F49*-0.7)/100 -> -5.37 | M49: =(K49+L49)/F49 -> 2.17% | N49: Successful | O49: 2021-11-23 | R49: H
A50: 12 | B50: 2021-11-24 | D50: ASIANPAINT | E50: Buy | F50: 3160-3170 | G50: 3080 | I50: 3250-3300 | J50: Open | R50: N
A51: 13 | B51: 2021-11-26 | D51: PIIND | E51: Buy | F51: 2975 | G51: 2890 | H51: 2890 | I51: 3150-3200 | J51: Loss of Rs.85/- | K51: =H51-F51 -> -85 | L51: =(F51*-0.7)/100 -> -20.83 | M51: =(K51+L51)/F51 -> -3.56% | N51: Unsuccessful | O51: 2021-11-30 | R51: H
A52: 14 | B52: 2021-11-29 | D52: HCLTECH | E52: Buy | F52: 1130-1138 | G52: 1095 | I52: 1180-1200 | J52: Open | R52: H
A53: 15 | B53: 2021-11-30 | D53: DHANUKA | E53: Buy | F53: 740-745 | G53: 720 | I53: 765-780 | J53: Open | R53: N
A54: 16 | B54: 2021-11-30 | D54: JBCHEPHARM | E54: Buy | F54: 1619.5 | G54: 1570 | H54: 1660 | I54: 1660-1700 | J54: Profit of Rs.40.5/- | K54: =H54-F54 -> 40.5 | L54: =(F54*-0.07)/100 -> -1.13 | M54: =(K54+L54)/F54 -> 2.43% | N54: Successful | O54: 2021-11-30 | R54: H
A58: CLBS = Closing Basis *** | H58: *
A59: Dividend adjusted <> | F59: Reinitiated $
F60: Revised stoploss #
A62: Master Trade High Risk
A63: Sr.no | B63: Date | D63: Company | E63: Rec | F63: Rec Price | G63: Stop Loss | H63: Call Closed At | I63: Target | J63: Remark | K63: Profit / Loss per share | L63: All charges | M63: Gain / Loss per Lot | N63: Lot | O63: Status | P63: Closed Date
A64: 1 | B64: 2021-11-01 | D64: HINDUNILVR NOV FUT | E64: Buy | F64: 2418 | G64: 2380 | H64: 2445 | I64: 2460-2480 | J64: Profit of Rs.27/- | K64: =H64-F64 -> 27 | L64: =(H64*N64)*0.07% -> 513.45 | M64: =(K64*N64)-L64 -> 7586.6 | N64: 300 | O64: Successful | P64: 2021-11-09 | R64: H
A65: 2 | B65: 2021-11-02 | D65: HDFC NOV FUT | E65: Buy | F65: 2887.5 | G65: 2848 | H65: 2918 | I65: 2940-2960 | J65: Profit of Rs.30.5/- | K65: =H65-F65 -> 30.5 | L65: =(H65*N65)*0.07% -> 612.78 | M65: =(K65*N65)-L65 -> 8537.2 | N65: 300 | O65: Successful | P65: 2021-11-03 | R65: H
A66: 3 | B66: 2021-11-02 | D66: COLPAL NOV FUT | E66: Buy | F66: 1528 | G66: 1490 | H66: 1551 | I66: 1580-1600 | J66: Profit of Rs.23/- | K66: 23 | L66: 434.28 | M66: 8765.7 | N66: 400 | O66: Successful | P66: 2021-11-09 | R66: N
A67: 4 | B67: 2021-11-03 | D67: HDFC NOV FUT | E67: Buy | F67: 2887.5 | G67: 2848 | H67: 2907.5 | I67: 2940-2960 | J67: Profit of Rs.20/- | K67: =H67-F67 -> 20 | L67: =(H67*N67)*0.07% -> 610.58 | M67: =(K67*N67)-L67 -> 5389.4 | N67: 300 | O67: Successful | P67: 2021-11-05 | R67: H
A68: 5 | B68: 2021-11-08 | D68: SIEMENS NOV FUT | E68: Buy | F68: 2330 | G68: 2290 | H68: 2362.5 | I68: 2375-2400 | J68: Profit of Rs.32.5/- | K68: =H68-F68 -> 32.5 | L68: =(H68*N68)*0.07% -> 454.78 | M68: =(K68*N68)-L68 -> 8482.7 | N68: 275 | O68: Successful | P68: 2021-11-08 | R68: N
A69: 6 | B69: 2021-11-08 | D69: NIFTY NOV FUT | E69: Sell | F69: 18050 | G69: 18160 | H69: 18005 | I69: 17900-17800 | J69: Profit of Rs.45/- | K69: =F69-H69 -> 45 | L69: =(H69*N69)*0.07% -> 630.18 | M69: =(K69*N69)-L69 -> 1619.8 | N69: 50 | O69: Successful | P69: 2021-11-09 | R69: H
A70: 7 | B70: 2021-11-09 | D70: HINDUNILVR NOV FUT | E70: Buy | F70: 2424 | G70: 2385 | H70: 2385 | I70: 2460-2480 | J70: Loss of Rs.39/- | K70: =H70-F70 -> -39 | L70: 500.85 | M70: -12200.9 | N70: 300 | O70: Unsuccessful | P70: 2021-11-11 | R70: H
A71: 8 | B71: 2021-11-09 | D71: ICICIBANK NOV FUT | E71: Buy | F71: 782 | G71: 773 | H71: 789 | I71: 794-804 | J71: Profit of Rs.7/- | K71: =H71-F71 -> 7 | L71: =(H71*N71)*0.07% -> 759.41 | M71: =(K71*N71)-L71 -> 8865.6 | N71: 1375 | O71: Successful | P71: 2021-11-09 | R71: N
A72: 9 | B72: 2021-11-10 | D72: NIFTY NOV FUT | E72: Sell | F72: 18000 | G72: 18130 | H72: 17915 | I72: 17850-17750 | J72: Profit of Rs.85/- | K72: =F72-H72 -> 85 | L72: 627.03 | M72: 3623.0 | N72: 50 | O72: Successful | P72: 2021-11-11 | R72: H
A73: 10 | B73: 2021-11-11 | D73: HDFCBANK NOV FUT | E73: Buy | F73: 1547.5 | G73: 1525 | H73: 1571 | I73: 1570-1590 | J73: Profit of Rs.23.5/- | K73: =H73-F73 -> 23.5 | L73: =(H73*N73)*0.07% -> 604.84 | M73: =(K73*N73)-L73 -> 12320.2 | N73: 550 | O73: Successful | P73: 2021-11-15 | R73: H
A74: 11 | B74: 2021-11-12 | D74: NIFTY NOV FUT | E74: Sell | F74: 18030 | G74: 18160 | H74: 18180 | I74: 17850-17750 | J74: Loss of Rs.150/- | K74: =F74-H74 -> -150 | L74: =(H74*N74)*0.07% -> 636.30 | M74: =(K74*N74)-L74 -> -8136.3 | N74: 50 | O74: Unsuccessful | P74: 2021-11-15 | R74: H
A75: 12 | B75: 2021-11-12 | D75: SIEMENS NOV FUT | E75: Buy | F75: 2402 | G75: 2355 | H75: 2370 | I75: 2450-2490 | J75: Loss of Rs.32/- | K75: =H75-F75 -> -32 | L75: 456.23 | M75: -9256.2 | N75: 275 | O75: Unsuccessful | P75: 2021-11-17 | R75: N
A76: 13 | B76: 2021-11-15 | D76: CONCOR NOV FUT | E76: Buy | F76: 687.5 | G76: 678 | H76: 678 | I76: 698-710 | J76: Loss of Rs.9.5/- | K76: =H76-F76 -> -9.5 | L76: =(H76*N76)*0.07% -> 741.80 | M76: =(K76*N76)-L76 -> -15590.3 | N76: 1563 | O76: Unsuccessful | P76: 2021-11-11 | R76: N
A77: 14 | B77: 2021-11-16 | D77: HDFCBANK NOV FUT | E77: Buy | F77: 1548 | G77: 1525 | H77: 1525 | I77: 1570-1590 | J77: Loss of Rs.23/- | K77: =H77-F77 -> -23 | L77: =(H77*N77)*0.07% -> 587.13 | M77: =(K77*N77)-L77 -> -13237.1 | N77: 550 | O77: Unsuccessful | P77: 2021-11-22 | R77: H
A78: 15 | B78: 2021-11-22 | D78: AARTIIND NOV FUT | E78: Buy | F78: 932 | G78: 918 | H78: 918 | I78: 950-965 | J78: Loss of Rs.14/- | K78: =H78-F78 -> -14 | L78: =(H78*N78)*0.07% -> 546.21 | M78: =(K78*N78)-L78 -> -12446.2 | N78: 850 | O78: Unsuccessful | P78: 2021-11-22 | R78: H
A79: 16 | B79: 2021-11-23 | D79: COLPAL DEC FUT | E79: Buy | F79: 1484 | G79: 1448 | H79: 1448 | I79: 1520-1550 | J79: Loss of Rs.36/- | K79: -36 | L79: 304.08 | M79: -11104.1 | N79: 300 | O79: Unsuccessful | P79: 2021-11-29 | R79: N
A80: 17 | B80: 2021-11-23 | D80: HDFC DEC FUT | E80: Buy | F80: 2900 | G80: 2860 | H80: 2935 | I80: 2940-2980 | J80: Profit of Rs.35/- | K80: =H80-F80 -> 35 | L80: =(H80*N80)*0.07% -> 616.35 | M80: =(K80*N80)-L80 -> 9883.7 | N80: 300 | O80: Successful | P80: 2021-11-24 | R80: H
A81: 18 | B81: 2021-11-23 | D81: HINDUNILVR DEC FUT | E81: Buy | F81: 2376 | G81: 2335 | H81: 2335 | I81: 2420-2460 | J81: Loss of Rs.41/- | K81: -41 | L81: 490.35 | M81: -12790.4 | N81: 300 | O81: Unsuccessful | P81: 2021-11-29 | R81: H
A82: 19 | B82: 2021-11-24 | D82: SIEMENS DEC FUT | E82: Buy | F82: 2322 | G82: 2285 | H82: 2285 | I82: 2370-2390 | J82: Loss of Rs.37/- | K82: =H82-F82 -> -37 | L82: =(H82*N82)*0.07% -> 439.86 | M82: =(K82*N82)-L82 -> -10614.9 | N82: 275 | O82: Unsuccessful | P82: 2021-11-24 | R82: N
A83: 20 | B83: 2021-11-25 | D83: ASIANPAINT DEC FUT | E83: Buy | F83: 3145 | G83: 3070 | H83: 3197.5 | I83: 3230-3300 | J83: Profit of Rs.52.5/- | K83: 52.5 | L83: 335.74 | M83: 7539.3 | N83: 150 | O83: Successful | P83: 2021-11-30 | R83: H
A84: 21 | B84: 2021-11-29 | D84: INFY DEC FUT | E84: Buy | F84: 1702 | G84: 1660 | H84: 1733 | I84: 1750-1780 | J84: Profit of Rs.31/- | K84: =H84-F84 -> 31 | L84: =(H84*N84)*0.07% -> 363.93 | M84: =(K84*N84)-L84 -> 8936.1 | N84: 300 | O84: Successful | P84: 2021-11-30 | R84: N
A91: Master Trade Medium Risk
A92: Sr.no | B92: Date | D92: Company | E92: Rec | F92: Rec Price | G92: Stop Loss | H92: Call Closed At | I92: Target | J92: Remark | K92: Profit/ Loss per lot | L92: All charges | M92: Gain / Loss per Lot | N92: Lot | O92: Status | P92: Closed Date
A93: 1 | B93: 2021-11-01 | D93: NIFTY 17850 PE 3 NOV | E93: Buy | F93: 62 | G93: 30 | H93: 75 | I93: 120-140 | J93: Profit of Rs.13/- | K93: =H93-F93 -> 13.00 | L93: 100.00 | M93: =(K93*N93)-100 -> 550 | N93: 50 | O93: Successful | P93: 2021-11-02 | R93: N
A94: 2 | B94: 2021-11-02 | D94: NIFTY 17950 CE 3 NOV | E94: Buy | F94: 62 | G94: 30 | H94: 83 | I94: 120-140 | J94: Profit of Rs.21/- | K94: =H94-F94 -> 21.00 | L94: 100.00 | M94: =(K94*N94)-100 -> 950 | N94: 50 | O94: Successful | P94: 2021-11-02 | R94: N
A95: 3 | B95: 2021-11-02 | D95: BANKNIFTY 39800 CE 3 NOV | E95: Buy | F95: 200 | G95: 95 | H95: 275 | I95: 320-400 | J95: Profit of Rs.75/- | K95: 75.00 | L95: 100.00 | M95: 1775 | N95: 25 | O95: Successful | P95: 2021-11-02 | R95: H
A96: 4 | B96: 2021-11-02 | D96: NIFTY 17900 CE 3 NOV | E96: Buy | F96: 90 | G96: 60 | H96: 91 | I96: 120-150 | J96: Profit of Rs.1/- | K96: =H96-F96 -> 1.00 | L96: 100.00 | M96: =(K96*N96)-100 -> -50 | N96: 50 | O96: Neutral | P96: 2021-11-03 | R96: H
A97: 5 | B97: 2021-11-02 | D97: HDFC 2950 CE NOV | E97: Buy | F97: 50 | G97: 35 | H97: 59 | I97: 65-80 | J97: Profit of Rs.9/- | K97: =H97-F97 -> 9.00 | L97: 100.00 | M97: =(K97*N97)-100 -> 2600 | N97: 300 | O97: Successful | P97: 2021-11-03 | R97: N
A98: 6 | B98: 2021-11-02 | D98: BANKNIFTY 40000 CE 3 NOV | E98: Buy | F98: 155 | G98: 50 | H98: 205 | I98: 260-350 | J98: Profit of Rs.50/- | K98: =H98-F98 -> 50.00 | L98: 100.00 | M98: =(K98*N98)-100 -> 1150 | N98: 25 | O98: Successful | P98: 2021-11-02 | R98: N
A99: 7 | B99: 2021-11-03 | D99: HINDUNILVR 2460 CE NOV | E99: Buy | F99: 41 | G99: 25 | H99: 25 | I99: 55-70 | J99: Loss of Rs.16/- | K99: =H99-F99 -> -16.00 | L99: 100.00 | M99: =(K99*N99)-100 -> -4900 | N99: 300 | O99: Unsuccessful | P99: 2021-11-11 | R99: N
A100: 8 | B100: 2021-11-03 | D100: NIFTY 18000 PE 3 NOV | E100: Buy | F100: 54 | G100: 15 | H100: 74 | I100: 100-110 | J100: Profit of Rs.20/- | K100: =H100-F100 -> 20.00 | L100: 100.00 | M100: =(K100*N100)-100 -> 900 | N100: 50 | O100: Successful | P100: 2021-11-03 | R100: N
A101: 9 | B101: 2021-11-03 | D101: HDFC 2950 CE NOV | E101: Buy | F101: 50 | G101: 35 | H101: 59 | I101: 65-80 | J101: Profit of Rs.9/- | K101: 9.00 | L101: 100.00 | M101: 2600 | N101: 300 | O101: Successful | P101: 2021-11-08 | R101: H
A102: 10 | B102: 2021-11-03 | D102: NIFTY 17900 CE 3-NOV | E102: Buy | F102: 19 | H102: 0 | I102: 40-60 | J102: Loss of Rs.19/- | K102: -19.00 | L102: 100.00 | M102: -1050 | N102: 50 | O102: Unsuccessful | P102: 2021-11-03 | R102: N
A103: 11 | B103: 2021-11-08 | D103: NIFTY 17700 PE 25-NOV | E103: Buy | F103: 125.5 | G103: 97 | H103: 148 | I103: 160-180 | J103: Profit of Rs.22.5/- | K103: 22.50 | L103: 100.00 | M103: 1025 | N103: 50 | O103: Successful | P103: 2021-11-08 | R103: H
A104: 12 | B104: 2021-11-08 | D104: NIFTY 17700 PE 25-NOV | E104: Buy | F104: 124 | G104: 97 | H104: 97 | I104: 160-180 | J104: Loss of Rs.27/- | K104: -27.00 | L104: 100.00 | M104: -1450 | N104: 50 | O104: Unsuccessful | P104: 2021-11-08 | R104: H
A105: 13 | B105: 2021-11-09 | D105: HDFC 2950 CE NOV | E105: Buy | F105: 50 | G105: 35 | H105: 57.5 | I105: 65-80 | J105: Profit of Rs.7.5/- | K105: 7.50 | L105: 100.00 | M105: 2150 | N105: 300 | O105: Successful | P105: 2021-11-09 | R105: N
A106: 14 | B106: 2021-11-10 | D106: HDFC 2950 CE NOV | E106: Buy | F106: 37 | G106: 22 | H106: 54 | I106: 50-65 | J106: Profit of Rs.17/- | K106: =H106-F106 -> 17.00 | L106: 100.00 | M106: =(K106*N106)-100 -> 5000 | N106: 300 | O106: Successful | P106: 2021-11-10 | R106: N
A107: 15 | B107: 2021-11-10 | D107: NIFTY 17950 PE 11-NOV | E107: Buy | F107: 73.5 | G107: 39 | H107: 39 | I107: 105-120 | J107: Loss of Rs.34.5/- | K107: -34.50 | L107: 100.00 | M107: -1825 | N107: 50 | O107: Unsuccessful | P107: 2021-11-10 | R107: N
A108: 16 | B108: 2021-11-10 | D108: NIFTY 17900 PE 25-NOV | E108: Buy | F108: 190 | H108: 235 | J108: Profit of 42.5/- | K108: 45.00 | L108: 100.00 | M108: =(42.5*50)-200 -> 1925 | N108: 50 | O108: Successful | P108: 2021-11-18 | R108: H
D109: NIFTY 17700 PE 25-NOV | E109: Sell | F109: 120 | H109: 122.5 | K109: -2.50 | L109: 100.00 | R109: H
A110: 17 | B110: 2021-11-11 | D110: HDFC 2920 CE NOV | E110: Buy | F110: 47 | G110: 33 | H110: 58 | I110: 62-75 | J110: Profit of Rs.11/- | K110: =H110-F110 -> 11.00 | L110: 100.00 | M110: =(K110*N110)-100 -> 3200 | N110: 300 | O110: Successful | P110: 2021-11-12 | R110: N
A111: 18 | B111: 2021-11-11 | D111: NIFTY 17900 PE 11-NOV | E111: Buy | F111: 42 | G111: 8 | H111: 66 | I111: 70-100 | J111: Profit of Rs.24/- | K111: =H111-F111 -> 24.00 | L111: 100.00 | M111: =(K111*N111)-100 -> 1100 | N111: 50 | O111: Successful | P111: 2021-11-11 | R111: H
A112: 19 | B112: 2021-11-11 | D112: NIFTY 17900 PE 18-NOV | E112: Buy | F112: 81 | G112: 48 | H112: 106 | I112: 120-140 | J112: Profit of Rs.25/- | K112: =H112-F112 -> 25.00 | L112: 100.00 | M112: =(K112*N112)-100 -> 1150 | N112: 50 | O112: Successful | P112: 2021-11-12 | R112: H
A113: 20 | B113: 2021-11-11 | D113: NIFTY 17900 PE 18-NOV | E113: Buy | F113: 81 | G113: 48 | H113: 48 | I113: 120-140 | J113: Loss of Rs.33/- | K113: =H113-F113 -> -33.00 | L113: 100.00 | M113: -1750 | N113: 50 | O113: Unsuccessful | P113: 2021-11-12 | R113: H
A114: 21 | B114: 2021-11-12 | D114: HDFCBANK 1560 CE NOV | E114: Buy | F114: 25 | G114: 17 | H114: 30 | I114: 34-40 | J114: Profit of Rs.5/- | K114: 5.00 | L114: 100.00 | M114: 2650 | N114: 550 | O114: Successful | P114: 2021-11-15 | R114: N
A115: 22 | B115: 2021-11-15 | D115: NIFTY 18050 PE 18-NOV | E115: Buy | F115: 48 | G115: 17 | H115: 69 | I115: 80-100 | J115: Profit of Rs.21/- | K115: =H115-F115 -> 21.00 | L115: 100.00 | M115: =(K115*N115)-100 -> 950 | N115: 50 | O115: Successful | P115: 2021-11-15 | R115: H
A116: 23 | B116: 2021-11-15 | D116: NIFTY 18050 PE 18-NOV | E116: Buy | F116: 53.5 | G116: 17 | H116: 74 | I116: 80-100 | J116: Profit of Rs.20.50/- | K116: =H116-F116 -> 20.50 | L116: 100.00 | M116: =(K116*N116)-100 -> 925 | N116: 50 | O116: Successful | P116: 2021-11-15 | R116: H
A117: 24 | B117: 2021-11-16 | D117: BAJAJ-AUTO 3650 CE NOV | E117: Buy | F117: 50.5 | G117: 32 | H117: 33 | I117: 70-90 | J117: Loss of Rs.17.5/- | K117: =H117-F117 -> -17.50 | L117: 100.00 | M117: -4475 | N117: 250 | O117: Unsuccessful | P117: 2021-11-17 | R117: N
A118: 25 | B118: 2021-11-16 | D118: HDFCBANK 1560 CE NOV | E118: Buy | F118: 15.25 | G118: 8 | H118: 8 | I118: 30-40 | J118: Loss of Rs.7.25/- | K118: =H118-F118 -> -7.25 | L118: 100.00 | M118: =(K118*N118)-100 -> -4087.5 | N118: 550 | O118: Unsuccessful | P118: 2021-11-22 | R118: N
A119: 26 | B119: 2021-11-16 | D119: BANKNIFTY 38400 CE 18-NOV | E119: Buy | F119: 190 | G119: 130 | H119: 240 | I119: 250-300 | J119: Profit of Rs.50/- | K119: =H119-F119 -> 50.00 | L119: 100.00 | M119: =(K119*N119)-100 -> 1150 | N119: 25 | O119: Successful | P119: 2021-11-16 | R119: H
A120: 27 | B120: 2021-11-17 | D120: BANKNIFTY 38300 CE 18-NOV | E120: Buy | F120: 165 | G120: 100 | H120: 215 | I120: 240-300 | J120: Profit of Rs.50/- | K120: =H120-F120 -> 50.00 | L120: 100.00 | M120: =(K120*N120)-100 -> 1150 | N120: 25 | O120: Successful | P120: 2021-11-16 | R120: H
A121: 28 | B121: 2021-11-17 | D121: BANKNIFTY 38200 CE 18-NOV | E121: Buy | F121: 175 | G121: 118 | H121: 165 | I121: 240-300 | J121: Loss of Rs.10/- | K121: =H121-F121 -> -10.00 | L121: 100.00 | M121: =(K121*N121)-100 -> -350 | N121: 25 | O121: Unsuccessful | P121: 2021-11-18 | R121: H
A122: 29 | B122: 2021-11-18 | D122: HDFC 2940 CE NOV | E122: Buy | F122: 31 | G122: 17 | H122: 17 | I122: 45-60 | J122: Loss of Rs.14/- | K122: -14.00 | L122: 100.00 | M122: -4300 | N122: 300 | O122: Unsuccessful | P122: 2021-11-22 | R122: N
A123: 30 | B123: 2021-11-18 | D123: BANKNIFTY 38300 CE 25-NOV | E123: Buy | F123: 295 | G123: 150 | H123: 120 | I123: 500-550 | J123: Loss of Rs.120/- | K123: -175.00 | L123: 100.00 | M123: =(-120*25)-200 -> -3200 | N123: 25 | O123: Unsuccessful | P123: 2021-11-22 | R123: H
D124: BANKNIFTY 38300 CE 18-NOV | E124: Sell | F124: 55 | H124: 0 | K124: 55.00 | L124: 100.00 | R124: H
A125: 31 | B125: 2021-11-18 | D125: NIFTY 17750 CE 18-NOV | E125: Buy | F125: 23 | H125: 38 | I125: 60-80 | J125: Profit of Rs.15/- | K125: =H125-F125 -> 15.00 | L125: 100.00 | M125: =(K125*N125)-100 -> 650 | N125: 50 | O125: Successful | P125: 2021-11-18 | R125: H
A126: 32 | B126: 2021-11-22 | D126: NIFTY 17500 CE 25-NOV | E126: Buy | F126: 86 | G126: 48 | H126: 92 | I126: 120-140 | J126: Profit of Rs.6/- | K126: =H126-F126 -> 6.00 | L126: 100.00 | M126: =(K126*N126)-100 -> 200 | N126: 50 | O126: Successful | P126: 2021-11-22 | R126: H
A127: 33 | B127: 2021-11-22 | D127: BANKNIFTY 37600 25-NOV-1 | E127: Buy | F127: 210 | H127: 275 | J127: Profit of Rs.110/- | K127: 65.00 | L127: 100.00 | M127: =(110*25)-200 -> 2550 | N127: 25 | O127: Successful | P127: 2021-11-24 | R127: H
D128: BANKNIFTY 38000 25-NOV-2 | E128: Sell | F128: 115 | H128: 92.5 | K128: 45.00 | L128: 100.00 | R128: H
A129: 34 | B129: 2021-11-23 | D129: NIFTY 17400 CE 25-NOV | E129: Buy | F129: 62.5 | G129: 30 | H129: 89 | I129: 110-130 | J129: Profit of Rs.26.5/- | K129: =H129-F129 -> 26.50 | L129: 100.00 | M129: =(K129*N129)-100 -> 1225 | N129: 50 | O129: Successful | P129: 2021-11-23 | R129: H
A130: 35 | B130: 2021-11-23 | D130: SBIN 490 CE 25-NOV | E130: Buy | F130: 5.1 | G130: 1.9 | H130: 6.5 | I130: 8.0-10.0 | J130: Profit of Rs.1.40/- | K130: =H130-F130 -> 1.40 | L130: 100.00 | M130: =(K130*N130)-100 -> 2000 | N130: 1500 | O130: Successful | P130: 2021-11-23 | R130: H
A131: 36 | B131: 2021-11-24 | D131: NIFTY 17300 PE 25-NOV | E131: Buy | F131: 52 | G131: 20 | H131: 20 | I131: 80-110 | J131: Loss of Rs.32/- | K131: =H131-F131 -> -32.00 | L131: 100.00 | M131: -1700 | N131: 50 | O131: Unsuccessful | P131: 2021-11-24 | R131: N
A132: 37 | B132: 2021-11-24 | D132: DRREDDY 4650 CE DEC | E132: Buy | F132: 116 | G132: 85 | H132: 135 | I132: 145-170 | J132: Profit of Rs.19/- | K132: 19.00 | L132: 100.00 | M132: 2275 | N132: 125 | O132: Successful | P132: 2021-11-25 | R132: N
A133: 38 | B133: 2021-11-24 | D133: NIFTY 17600 PE 25-NOV | E133: Buy | F133: 73.5 | G133: 34 | H133: 91 | I133: 110-140 | J133: Profit of Rs.17.5/- | K133: =H133-F133 -> 17.50 | L133: 100.00 | M133: =(K133*N133)-100 -> 775 | N133: 50 | O133: Successful | P133: 2021-11-24 | R133: H
A134: 39 | B134: 2021-11-24 | D134: NIFTY 17600 PE 25-NOV | E134: Buy | F134: 67.5 | G134: 34 | H134: 102.5 | I134: 110-140 | J134: Profit of Rs.35/- | K134: 35.00 | L134: 100.00 | M134: 1650 | N134: 50 | O134: Successful | P134: 2021-11-24 | R134: H
A135: 40 | B135: 2021-11-25 | D135: NIFTY 17550 PE 25-NOV | E135: Buy | F135: 24.5 | G135: 24.5 | H135: 24.5 | I135: 40-50 | J135: Profit of Rs.1/- | K135: =H135-F135 -> 0.00 | L135: 100.00 | M135: =(K135*N135)-100 -> -100 | N135: 50 | O135: Neutral | P135: 2021-11-25 | R135: H
A136: 41 | B136: 2021-11-25 | D136: BANKNIFTY 37400 PE 25-NOV | E136: Buy | F136: 27.5 | H136: 52.5 | I136: 80-100 | J136: Profit of Rs.25/- | K136: =H136-F136 -> 25.00 | L136: 100.00 | M136: =(K136*N136)-100 -> 525 | N136: 25 | O136: Successful | P136: 2021-11-25 | R136: N
A137: 42 | B137: 2021-11-26 | D137: HDFC 2860 CE DEC | E137: Buy | F137: 48.5 | G137: 33 | H137: 67 | I137: 65-75 | J137: Profit of Rs. 18.5/- | K137: =H137-F137 -> 18.50 | L137: 100.00 | M137: =(K137*N137)-100 -> 5450 | N137: 300 | O137: Successful | P137: 2021-11-26 | R137: N
A138: 43 | B138: 2021-11-26 | D138: SUNPHARMA 800 CE DEC | E138: Buy | F138: 18 | G138: 11.5 | H138: 11.5 | I138: 25-33 | J138: Loss of Rs.6.5/- | K138: -6.50 | L138: 100.00 | M138: -4000 | N138: 600 | O138: Unsuccessful | P138: 2021-11-29 | R138: N
A139: 44 | B139: 2021-11-29 | D139: NIFTY 16700 PE 02-DEC | E139: Buy | F139: 80 | G139: 38 | H139: 39 | I139: 130-150 | J139: Loss of Rs.41/- | K139: =H139-F139 -> -41.00 | L139: 100.00 | M139: =(K139*N139)-100 -> -2150 | N139: 50 | O139: Unsuccessful | P139: 2021-11-29 | R139: N
A140: 45 | B140: 2021-11-30 | D140: NIFTY 17500 CE 09-DEC | E140: Sell | F140: 76 | G140: 125 | H140: 53.5 | I140: 1 | J140: Profit of Rs.22.5/- | K140: =F140-H140 -> 22.50 | L140: 100.00 | M140: 1025 | N140: 50 | O140: Successful | P140: 2021-11-30 | R140: H
A141: 46 | B141: 2021-11-30 | D141: NIFTY 17100 CE 02-DEC | E141: Buy | F141: 82.5 | G141: 40 | H141: 102 | I141: 140-170 | J141: Profit of Rs.19.40/- | K141: =H141-F141 -> 19.50 | L141: 100.00 | M141: 875 | N141: 50 | O141: Successful | P141: 2021-11-30 | R141: N
A142: 47 | B142: 2021-11-30 | D142: NIFTY 17100 CE 02-DEC | E142: Buy | F142: 62.5 | G142: 25 | H142: 63 | I142: 110-130 | J142: Profit of Rs.0.50/- | K142: =H142-F142 -> 0.50 | L142: 100.00 | M142: =(K142*N142)-100 -> -75 | N142: 50 | O142: Neutral | P142: 2021-11-30 | R142: N
A146: Techno -Funda (positional)
A147: Sr.no | B147: Date | D147: Company | E147: Rec | F147: Rec Price | G147: Stop Loss*** | H147: Call Closed At | I147: Target | J147: Remark | K147: Profit / Loss per Share/Lot | L147: All charges | M147: Net Gain / Loss % | N147: Status | O147: Closed Date | P147: Market Closing Price
A148: 1 | B148: 2021-08-12 | D148: SHARDACROP | E148: Buy | F148: 314 | G148: 284 | H148: 343.50 | I148: 380-390 | J148: Part profit of Rs.29.5/- | K148: =H148-F148 -> 29.5 | L148: =(F148*-0.7)/100 -> -2.20 | M148: =(K148+L148)/F148 -> 8.69% | N148: Successful | O148: 2021-09-16 | P148: =VLOOKUP(D148,'MidCap Intra'!B169:C666,2,0) -> 314.4 | R148: H
A149: 2 | B149: 2021-10-19 | D149: ITC | E149: Buy | F149: 230-251 | G149: 198 | I149: 320-340 | J149: Open | R149: H
A150: 3 | B150: 2021-10-21 | D150: OFSS | E150: Buy | F150: 4150-4550 | G150: 3700 | I150: 5400-6000 | J150: Open | R150: H
A152: CLBS = Closing Basis *** | F152: Reinitiated $
A153: Dividend adjusted <> | F153: Revised stoploss # | H153: .................
B155: Intrday Call
A156: Sr.no | B156: Date | D156: Company | E156: Rec | F156: Rec Price | G156: Stop Loss | H156: Call Closed At | I156: Target | J156: Remark | K156: Profit / Loss per Share/Lot | L156: Gain / Loss per Lot | M156: Lot | N156: All charges | O156: Net Gain / Loss % | P156: Status | Q156: Closed Date
B169: Investment Idea
A170: Sr.no | B170: Date | D170: Company | E170: Rec | F170: Rec Price | G170: Point of Review | H170: Close Rate | I170: Target | J170: Remark | K170: Profit / Loss per Share | L170: Gain / Loss % | M170: Status | N170: Closed Date
A171: 1 | B171: 2013-11-01 | D171: L&T Finance Holding | E171: Accu | F171: 82.00 | G171: - | H171: 100 | I171: 100.00 | J171: Target Achieved | K171: =H171-F171 -> 18.00 | L171: =K171/F171 -> 21.95% | M171: Successful | N171: 2016-10-14
A172: 2 | B172: 2014-06-04 | D172: Finolex Inds | E172: Buy | F172: 257.00 | G172: - | H172: 300 | I172: 300.00 | J172: Target Achieved | K172: 43.00 | L172: 16.73% | M172: Successful | N172: 2014-07-02
A173: 3 | B173: 2014-07-08 | D173: JK Cement | E173: Buy | F173: 393.00 | G173: - | H173: 468 | I173: 468.00 | J173: Target Achieved | K173: 75.00 | L173: 19.08% | M173: Successful | N173: 2014-08-12
A174: 4 | B174: 2014-08-06 | D174: Finolex Cables | E174: Buy | F174: 205.00 | G174: - | H174: 275 | I174: 250.00 | J174: Target Achieved | K174: 70.00 | L174: 34.15% | M174: Successful | N174: 2014-11-19
A175: 5 | B175: 2014-09-04 | D175: Exide Inds | E175: Buy | F175: 162.00 | G175: - | H175: 190 | I175: 190.00 | J175: Target Achieved | K175: 28.00 | L175: 17.28% | M175: Successful | N175: 2015-01-02
A176: 6 | B176: 2014-09-04 | D176: Deepak Nitrite | E176: Buy | F176: 75.00 | G176: - | H176: 91.5 | I176: 95-100 | J176: Profit of Rs.16.50/- | K176: 16.50 | L176: 22.00% | M176: Successful | N176: 2014-11-11
A177: 7 | B177: 2014-10-01 | D177: Mercks | E177: Buy | F177: 850.00 | G177: - | H177: 982.5 | I177: 1050.00 | J177: Profit of Rs.132.50/- | K177: 132.50 | L177: 15.59% | M177: Successful | N177: 2015-02-04
A178: 8 | B178: 2014-10-01 | D178: Grindwell Norton | E178: Buy | F178: 475.00 | G178: - | H178: 515 | I178: 600.00 | J178: Profit of Rs.40/- | K178: 40.00 | L178: 8.42% | M178: Successful | N178: 2014-10-27
A179: 9 | B179: 2014-10-01 | D179: Snowman Logistics | E179: Buy | F179: 86.00 | G179: - | H179: 99 | I179: 140.00 | J179: Profit of Rs.13.00/- | K179: 13.00 | L179: 15.12% | M179: Successful | N179: 2014-10-27
A180: 10 | B180: 2014-10-14 | D180: Birla Corp | E180: Buy | F180: 496.60 | G180: - | H180: 621 | I180: 580.00 | J180: Target Achieved | K180: 124.40 | L180: 25.05% | M180: Successful | N180: 2016-08-23
A181: 11 | B181: 2014-10-14 | D181: Ultratech Cem | E181: Buy | F181: 2481.90 | G181: - | H181: 2840 | I181: 2870.00 | J181: Profit of Rs.358.10/- | K181: 358.10 | L181: 14.43% | M181: Successful | N181: 2015-01-13
A182: 12 | B182: 2014-10-16 | D182: Sintex Inds | E182: Buy | F182: 84.50 | G182: - | H182: 93 | I182: 110.00 | J182: Profit of Rs.8.50/- | K182: 8.50 | L182: 10.06% | M182: Successful | N182: 2014-10-27
A183: 13 | B183: 2014-10-16 | D183: HSIL | E183: Buy | F183: 401.00 | G183: - | H183: 428 | I183: 450.00 | J183: Profit of Rs.27.00/- | K183: 27.00 | L183: 6.73% | M183: Successful | N183: 2015-01-16
A184: 14 | B184: 2014-10-16 | D184: Eveready Inds | E184: Buy | F184: 101.00 | G184: - | H184: 112 | I184: 120.00 | J184: Profit of Rs.11.00/- | K184: 11.00 | L184: 10.89% | M184: Successful | N184: 2014-10-27
A185: 15 | B185: 2014-11-11 | D185: Pennar Inds | E185: Buy | F185: 59.00 | G185: - | H185: 76 | I185: 76.00 | J185: Target Achieved | K185: 17.00 | L185: 28.81% | M185: Successful | N185: 2017-10-24
A186: 16 | B186: 2014-11-11 | D186: Snowman Logistics | E186: Buy | F186: 99.00 | G186: - | H186: 120 | I186: 120.00 | J186: Profit of Rs.21/- | K186: 21.00 | L186: 21.21% | M186: Successful | N186: 2014-11-17
A187: 17 | B187: 2014-11-13 | D187: Dharamsi Morarji Chem | E187: Buy | F187: 22.00 | G187: - | H187: 33.55 | I187: 32.00 | J187: Profit of Rs 11.55/- | K187: 11.55 | L187: 52.50% | M187: Successful | N187: 2015-07-03
A188: 18 | B188: 2014-12-03 | D188: Tatachem | E188: Buy | F188: 440.00 | G188: - | H188: 520 | I188: 520.00 | J188: Profit of Rs 80.00/- | K188: 80.00 | L188: 18.18% | M188: Successful | N188: 2015-07-23
A189: 19 | B189: 2014-12-03 | D189: Advanta | E189: Buy | F189: 360.00 | G189: - | H189: 427 | I189: 425.00 | J189: Profit of Rs.67.00/- | K189: 67.00 | L189: 18.61% | M189: Successful | N189: 2015-02-23
A190: 20 | B190: 2015-01-08 | D190: GDL | E190: Buy | F190: 360.00 | G190: - | H190: 455 | I190: 420.00 | J190: Profit of Rs.95.00/- | K190: 95.00 | L190: 26.39% | M190: Successful | N190: 2015-01-20
A191: 21 | B191: 2015-01-08 | D191: NRB Bearing | E191: Buy | F191: 130.00 | H191: 175.5 | I191: 165.00 | J191: Profit of Rs 45.50/- | K191: 45.50 | L191: 35.00% | M191: Successful | N191: 2017-12-19
A192: 22 | B192: 2015-02-05 | D192: GSFC | E192: Accu | F192: 98.00 | H192: 120 | I192: 120.00 | J192: Target Achieved | K192: 22.00 | L192: 22.45% | M192: Successful | N192: 2017-01-18
A193: 23 | B193: 2015-02-05 | D193: Sundrmfast | E193: Accu | F193: 196.00 | H193: 262 | I193: 255.00 | J193: Target Achieved | K193: 66.00 | L193: 33.67% | M193: Successful | N193: 2016-08-17
A194: 24 | B194: 2015-03-04 | D194: GPPL | E194: Accu | F194: 235 | H194: 77.00 | I194: 280-285 | J194: Loss of Rs.158/- | K194: -158.00 | L194: -67.23% | M194: Unsuccessful | N194: 2019-02-26
A195: 25 | B195: 2015-03-04 | D195: ORIENTCEM | E195: Accu | F195: 185.00 | H195: 224 | I195: 220-225 | J195: Target Achieved | K195: 39.00 | L195: 21.08% | M195: Successful | N195: 2016-10-04
A196: 26 | B196: 2015-03-27 | D196: PFS | E196: Accu | F196: 49.5 | H196: 15.85 | I196: 67.00 | J196: Loss of Rs.33.65/- | K196: -33.65 | L196: -68% | M196: Unsuccessful | N196: 2019-06-11
A197: 27 | B197: 2015-03-30 | D197: Walchandnagar Ind Ltd | E197: Accu | F197: 183.50 | H197: 219 | I197: 218.00 | J197: Profit of Rs.35.50/- | K197: 35.50 | L197: 19.35% | M197: Successful | N197: 2015-04-09
A198: 28 | B198: 2015-04-20 | D198: Kalpataru Power Transmission Ltd | E198: Accu | F198: =(227+237)/2 -> 232.00 | H198: 298 | I198: 298.00 | J198: Target Achieved | K198: 66.00 | L198: 28.45% | M198: Successful | N198: 2017-03-29
A199: 29 | B199: 2015-05-04 | D199: Mastek Ltd | E199: Buy | F199: 385.00 | H199: =212.5+331 -> 543.5 | I199: 510.00 | J199: Profit of Rs 158.50/- | K199: 158.50 | L199: 41.17% | M199: Successful | N199: 2015-08-19
A200: 30 | B200: 2015-05-04 | D200: Suprajit Eng | E200: Buy | F200: 115.50 | H200: 146 | I200: 142.00 | J200: Profit of Rs 30.50/- | K200: 30.50 | L200: 26.41% | M200: Successful | N200: 2015-07-17
A201: 31 | B201: 2015-05-27 | D201: TCI | E201: Buy | F201: 237.50 | H201: 279.5 | I201: 278.00 | J201: Target Achieved | K201: 42.00 | L201: 17.68% | M201: Successful | N201: 2015-08-06
A202: 32 | B202: 2015-06-19 | D202: HSIL | E202: Accu | F202: 340.00 | H202: 448 | I202: 448.00 | J202: Target Achieved | K202: 108.00 | L202: 31.76% | M202: Successful | N202: 2017-10-10
A203: 33 | B203: 2015-07-06 | D203: Capital First | E203: Accu | F203: 390.00 | H203: 460 | I203: 460.00 | J203: Target Achieved | K203: 70.00 | L203: 17.95% | M203: Successful | N203: 2016-04-18
A204: 34 | B204: 2015-07-10 | D204: Dolphin OffShore | E204: Accu | F204: 122.5 | H204: 61.00 | I204: 172.00 | J204: Loss of Rs.61.50/- | K204: -61.50 | L204: -50.20% | M204: Unsuccessful | N204: 2018-08-21
A205: 35 | B205: 2015-08-03 | D205: Allcargo logistics | E205: Accu | F205: 297.50 | H205: 350 | I205: 360.00 | J205: Profit of Rs 52.50/- | K205: 52.50 | L205: 17.65% | M205: Successful | N205: 2015-08-16
A206: 36 | B206: 2015-08-03 | D206: Camline Fine | E206: Accu | F206: 115.50 | H206: 149 | I206: 140.00 | J206: Profit of Rs 33.50/- | K206: 33.50 | L206: 29.00% | M206: Successful | N206: 2017-01-05
A207: 37 | B207: 2015-09-04 | D207: TCI | E207: Accu | F207: 226.00 | H207: 292 | I207: 292.00 | J207: Target Achieved | K207: 66.00 | L207: 29.20% | M207: Successful | N207: 2015-10-09
A208: 38 | B208: 2015-09-07 | D208: Kalpataru Power Transmission Ltd | E208: Accu | F208: 232.50 | H208: 312.5 | I208: 310.00 | J208: Target Achieved | K208: 80.00 | L208: 34.41% | M208: Successful | N208: 2017-03-29
A209: 39 | B209: 2015-09-21 | D209: LLOYD ELECTRIC & ENG LTD | E209: Accu | F209: 196.50 | H209: 238 | I209: 238.00 | J209: Target Achieved | K209: 41.50 | L209: 21.12% | M209: Successful | N209: 2015-10-14
A210: 40 | B210: 2015-09-24 | D210: L&T Finance Holding | E210: Accu | F210: 65.00 | H210: 82 | I210: 82.00 | J210: Target Achieved | K210: 17.00 | L210: 26.15% | M210: Successful | N210: 2016-07-27
A211: 41 | B211: 2015-10-14 | D211: KEC International ltd | E211: Accu | F211: 144.00 | H211: 182.5 | I211: 181.00 | J211: Target Achieved | K211: 38.50 | L211: 26.74% | M211: Successful | N211: 2017-03-23
A212: 42 | B212: 2015-10-14 | D212: Gruh Finance | E212: Accu | F212: 264.00 | H212: 311 | I212: 311.00 | J212: Target Achieved | K212: 47.00 | L212: 17.80% | M212: Successful | N212: 2016-08-22
A213: 43 | B213: 2015-11-10 | D213: Pidilitind | E213: Buy | F213: 549.50 | H213: 630 | I213: 630.00 | J213: Target Achieved | K213: 80.50 | L213: 14.65% | M213: Successful | N213: 2016-02-19
A214: 44 | B214: 2015-12-04 | D214: Zensar Technology | E214: Accu | F214: 1027.50 | H214: 1315 | I214: 1250.00 | J214: Target Achieved | K214: 287.50 | L214: 27.98% | M214: Successful | N214: 2018-05-24
A215: 45 | B215: 2015-12-29 | D215: Vinati Organics Ltd | E215: Accu | F215: 465.00 | H215: 540 | I215: 540.00 | J215: Target Achieved | K215: 75.00 | L215: 16.13% | M215: Successful | N215: 2016-06-09
A216: 46 | B216: 2016-01-11 | D216: GSFC | E216: Buy | F216: 81.00 | H216: 110 | I216: 110.00 | J216: Target Achieved | K216: 29.00 | L216: 35.80% | M216: Successful | N216: 2017-01-10
A217: 47 | B217: 2016-01-13 | D217: SSWL | E217: Buy | F217: 417.50 | H217: 547 | I217: 535.00 | J217: Target Achieved | K217: 129.50 | L217: 31.02% | M217: Successful | N217: 2016-07-27
A218: 48 | B218: 2016-02-08 | D218: Persistent System Ltd | E218: Accu | F218: 650.00 | H218: 800 | I218: 800.00 | J218: Target Achieved | K218: 150.00 | L218: 23.08% | M218: Successful | N218: 2018-02-23
A219: 49 | B219: 2016-03-04 | D219: UPL | E219: Accu | F219: 437.50 | H219: 504.5 | I219: 522.00 | J219: Profit of Rs.67/- | K219: 67.00 | L219: 15.31% | M219: Successful | N219: 2016-04-20
A220: 50 | B220: 2016-03-09 | D220: Ashoka Buildcon Ltd | E220: Accu | F220: 189.50 | H220: 218 | I220: 218.00 | J220: Target Achieved | K220: 28.50 | L220: 15.04% | M220: Successful | N220: 2017-10-26
A221: 51 | B221: 2016-04-11 | D221: PTC INDIA FIN SERV LTD | E221: Accu | F221: 36.5 | H221: 15.85 | I221: 60.00 | J221: Loss of Rs.20.65/- | K221: -20.65 | L221: -56.58% | M221: Unsuccessful | N221: 2019-06-11
A222: 52 | B222: 2016-04-12 | D222: CAMLINFINE $ | E222: Accu | F222: 93.00 | H222: 149 | I222: 140.00 | J222: Profit of Rs 56/- | K222: 56.00 | L222: 60.22% | M222: Successful | N222: 2017-01-05
A223: 53 | B223: 2016-04-12 | D223: Greaves Cotton Ltd. | E223: Accu | F223: 130.00 | H223: 150 | I223: 150-155 | J223: Target Achieved | K223: 20.00 | L223: 15.38% | M223: Successful | N223: 2016-07-13
A224: 54 | B224: 2016-04-13 | D224: DHFL | E224: Accu | F224: 196.00 | H224: 299 | I224: 299.00 | J224: Target Achieved | K224: 103.00 | L224: 52.55% | M224: Successful | N224: 2016-09-07
A225: 55 | B225: 2016-04-13 | D225: Magma | E225: Accu | F225: 88.00 | H225: 103 | I225: 103.00 | J225: Target Achieved | K225: 15.00 | L225: 17.05% | M225: Successful | N225: 2016-06-09
A226: 56 | B226: 2016-05-02 | D226: KEC International ltd $ | E226: Accu | F226: 127.50 | H226: 148 | I226: 148-150 | J226: Target Achieved | K226: =H226-F226 -> 20.50 | L226: =K226/F226 -> 16.08% | M226: Successful | N226: 2016-07-13
A227: 57 | B227: 2016-05-03 | D227: Mindtree | E227: Accu | F227: 675.00 | H227: 815 | I227: 790-800 | J227: Target Achieved | K227: 140.00 | L227: 20.74% | M227: Successful | N227: 2018-02-23
A228: 58 | B228: 2016-06-01 | D228: Atulauto | E228: Accu | F228: 500 | H228: 232.50 | I228: 565-570 | J228: Loss of Rs.267.50 /- | K228: -267.50 | L228: -53.50% | M228: Unsuccessful | N228: 2019-09-27
A229: 59 | B229: 2016-06-06 | D229: TRITURBINE | E229: Accu | F229: 110.00 | H229: 126.5 | I229: 125.00 | J229: Profit of Rs.16.50/- | K229: 16.50 | L229: 15.00% | M229: Successful | N229: 2016-07-01
A230: 60 | B230: 2016-06-17 | D230: Pennar Industries Ltd | E230: Accu | F230: 44.00 | H230: 69.5 | I230: 69.50 | J230: Profit of Rs.25.50/- | K230: 25.50 | L230: 57.95% | M230: Successful | N230: 2017-08-30
A231: 61 | B231: 2016-06-28 | D231: EVEREADY | E231: Accu | F231: 262.50 | H231: 340 | I231: 333.00 | J231: Profit of Rs.77.50/- | K231: 77.50 | L231: 29.52% | M231: Successful | N231: 2017-10-09
A232: 62 | B232: 2016-06-28 | D232: FIEMIND | E232: Accu | F232: 840.00 | H232: 1230 | I232: 1230.00 | J232: Target Achieved | K232: 390.00 | L232: 46.43% | M232: Successful | N232: 2016-10-06
A233: 63 | B233: 2016-07-05 | D233: Bajaj Corp Ltd | E233: Accu | F233: 395 | H233: =(468.5+342.5)/2 -> 405.50 | I233: 510.00 | J233: Profit of Rs.10.50/- | K233: =H233-F233 -> 10.50 | L233: =K233/F233 -> 3% | M233: Neutral | N233: 2019-05-21
A234: 64 | B234: 2016-08-02 | D234: GPPL $ | E234: Buy | F234: =169.5-12.8 -> 156.7 | H234: 77.00 | I234: 198-200 | J234: Loss of Rs.79.7/- | K234: -79.70 | L234: -50.86% | M234: Unsuccessful | N234: 2019-02-26
A235: 65 | B235: 2016-08-04 | D235: WONDERLA HOLIDAYS LTD | E235: Accu | F235: 400 | H235: 305.00 | I235: 475.00 | J235: Loss of Rs.95/- | K235: -95.00 | L235: -23.75% | M235: Unsuccessful | N235: 2019-05-21
A236: 66 | B236: 2016-08-11 | D236: CAMLINFINE | E236: Accu | F236: 86.50 | H236: 130 | I236: 130.00 | J236: Profit of Rs.43.50/- | K236: 43.50 | L236: 50.29% | M236: Successful | N236: 2017-12-22
A237: 67 | B237: 2016-08-18 | D237: GRANULES | E237: Accu | F237: 133.5 | H237: 126.50 | I237: 178.00 | J237: Exit | K237: -7.00 | L237: -5.24% | M237: Unsuccessful | N237: 2016-09-02
... 106 more rows
